Workbook

Sheet 1. adat
C1: II. | D1: III. | E1: IV. | F1: 2008. I. | G1: II. | H1: III. | I1: IV. | J1: 2009. I. | K1: II. | L1: III. | M1: IV. | N1: 2010. I. | O1: II. | P1: III. | Q1: IV. | R1: 2011. I. | S1: II. | T1: III. | U1: IV. | V1: 2012. I. | W1: II. | X1: III. | Y1: IV. | Z1: 2013. I. | AA1: II. | AB1: III. | AC1: IV. | AD1: 2014. I. | AE1: II. | AF1: III. | AG1: IV. | AH1: 2015. I. | AI1: II. | AJ1: III. | AK1: IV. | AL1: 2016. I. | AM1: II. | AN1: III. | AO1: IV. | AP1: 2017. I. | AQ1: II. | AR1: III. | AS1: IV. | AT1: 2018. I. | AU1: II. | AV1: III.
C2: Q2 | D2: Q3 | E2: Q4 | F2: 2008 Q1 | G2: Q2 | H2: Q3 | I2: Q4 | J2: 2009 Q1 | K2: Q2 | L2: Q3 | M2: Q4 | N2: 2010 Q1 | O2: Q2 | P2: Q3 | Q2: Q4 | R2: 2011 Q1 | S2: Q2 | T2: Q3 | U2: Q4 | V2: 2012 Q1 | W2: Q2 | X2: Q3 | Y2: Q4 | Z2: 2013 Q1 | AA2: Q2 | AB2: Q3 | AC2: Q4 | AD2: 2014 Q1 | AE2: Q2 | AF2: Q3 | AG2: Q4 | AH2: 2015 Q1 | AI2: Q2 | AJ2: Q3 | AK2: Q4 | AL2: 2016 Q1 | AM2: Q2 | AN2: Q3 | AO2: Q4 | AP2: 2017 Q1 | AQ2: Q2 | AR2: Q3 | AS2: Q4 | AT2: 2018 Q1 | AU2: Q2 | AV2: Q3
C3: 2007-06-30 | D3: 2007-09-30 | E3: 2007-12-31 | F3: 2008-03-31 | G3: 2008-06-30 | H3: 2008-09-30 | I3: 2008-12-31 | J3: 2009-03-31 | K3: 2009-06-30 | L3: 2009-09-30 | M3: 2009-12-31 | N3: 2010-03-31 | O3: 2010-06-30 | P3: 2010-09-30 | Q3: 2010-12-31 | R3: 2011-03-31 | S3: 2011-06-30 | T3: 2011-09-30 | U3: 2011-12-31 | V3: 2012-03-31 | W3: 2012-06-30 | X3: 2012-09-30 | Y3: 2012-12-31 | Z3: 2013-03-31 | AA3: 2013-06-30 | AB3: 2013-09-30 | AC3: 2013-12-31 | AD3: 2014-03-31 | AE3: 2014-06-30 | AF3: 2014-09-30 | AG3: 2014-12-31 | AH3: 2015-03-31 | AI3: 2015-06-30 | AJ3: 2015-09-30 | AK3: 2015-12-31 | AL3: 2016-03-31 | AM3: 2016-06-30 | AN3: 2016-09-30 | AO3: 2016-12-31 | AP3: 2017-03-31 | AQ3: 2017-06-30 | AR3: 2017-09-30 | AS3: 2017-12-31 | AT3: 2018-03-31 | AU3: 2018-06-30 | AV3: 2018-09-30
A4: Áru- és szolgáltatásegyenleg | B4: Balance of goods and services | C4: 0 | D4: 0 | E4: 0 | F4: 0.5423291177 | G4: 0.6073694757 | H4: 0.275862938 | I4: 0.3561396113 | J4: 0.7245873697 | K4: 1.689252582 | L4: 3.051647674 | M4: 4.017699767 | N4: 4.723370889 | O4: 4.87531813 | P4: 4.905755766 | Q4: 5.322621106 | R4: 5.632341161 | S4: 5.781564567 | T4: 6.074904859 | U4: 6.133299276 | V4: 6.015642263 | W4: 6.42292087 | X4: 6.937671015 | Y4: 6.753380352 | Z4: 7.018771514 | AA4: 6.686838668 | AB4: 6.876937822 | AC4: 6.964171057 | AD4: 7.045113228 | AE4: 6.644120549 | AF4: 6.340983777 | AG4: 6.378092549 | AH4: 6.925572795 | AI4: 7.418502465 | AJ4: 7.611205936 | AK4: 8.096562595 | AL4: 8.210635233 | AM4: 9.282950442 | AN4: 9.915085194 | AO4: 10.0061271 | AP4: 9.213925962 | AQ4: 8.724305125 | AR4: 7.838310412 | AS4: 7.465111142 | AT4: 7.290651756 | AU4: 6.933376972 | AV4: 6.060932676
A5: Jövedelemegyenleg | B5: Income balance | C5: 0 | D5: 0 | E5: 0 | F5: -6.85494368 | G5: -6.317990739 | H5: -6.627060341 | I5: -6.873753315 | J5: -6.895663057 | K5: -6.900345056 | L5: -6.33298419 | M5: -5.648926538 | N5: -5.708734614 | O5: -5.733586303 | P5: -5.752726497 | Q5: -5.696024441 | R5: -5.750549198 | S5: -5.822329721 | T5: -5.873372691 | U5: -6.109736802 | V5: -5.905395675 | W5: -5.787148941 | X5: -5.536990179 | Y5: -5.532959765 | Z5: -5.185848041 | AA5: -4.81342916 | AB5: -4.481459386 | AC5: -4.021066156 | AD5: -4.377326278 | AE5: -4.812367282 | AF5: -5.217119622 | AG5: -5.478095858 | AH5: -5.202268686 | AI5: -5.119487815 | AJ5: -5.198596145 | AK5: -5.617616969 | AL5: -5.30676348 | AM5: -4.805585601 | AN5: -4.268855454 | AO5: -3.577420658 | AP5: -4.048665265 | AQ5: -4.562831951 | AR5: -4.829609217 | AS5: -5.055308971 | AT5: -4.998113401 | AU5: -4.954758133 | AV5: -4.937479486
A6: Transzferegyenleg | B6: Transfer balance | C6: 0 | D6: 0 | E6: 0 | F6: 0.1437309634 | G6: 0.01556511115 | H6: 0.05675282319 | I6: 0.4340018885 | J6: 0.9821848489 | K6: 1.581627771 | L6: 2.305561458 | M6: 2.583606152 | N6: 2.785002655 | O6: 2.896514999 | P6: 2.976417463 | Q6: 2.468143886 | R6: 2.352998477 | S6: 2.145120039 | T6: 2.308522016 | U6: 3.043748181 | V6: 2.763979392 | W6: 2.782501442 | X6: 2.416774221 | Y6: 3.069425506 | Z6: 3.510825176 | AA6: 3.956699838 | AB6: 4.041064257 | AC6: 4.438948459 | AD6: 4.196276945 | AE6: 3.911607907 | AF6: 4.266346666 | AG6: 4.329544364 | AH6: 4.578618991 | AI6: 5.096220022 | AJ6: 4.703338359 | AK6: 4.962622806 | AL6: 4.308460323 | AM6: 3.022481639 | AN6: 2.179832933 | AO6: -0.254534557 | AP6: 0.1606033588 | AQ6: 1.045740487 | AR6: 1.300171063 | AS6: 1.745335622 | AT6: 2.013021516 | AU6: 1.878131623 | AV6: 2.25763916
A7: Külső finanszírozási képesség | B7: Net lending | C7: 0 | D7: 0 | E7: 0 | F7: -6.168883599 | G7: -5.695056152 | H7: -6.29444458 | I7: -6.083611815 | J7: -5.188890838 | K7: -3.629464703 | L7: -0.9757750589 | M7: 0.952379381 | N7: 1.79963893 | O7: 2.038246826 | P7: 2.129446733 | Q7: 2.094740551 | R7: 2.234790441 | S7: 2.104354884 | T7: 2.510054184 | U7: 3.067310656 | V7: 2.87422598 | W7: 3.418273372 | X7: 3.817455057 | Y7: 4.289846093 | Z7: 5.34374865 | AA7: 5.830109346 | AB7: 6.436542693 | AC7: 7.38205336 | AD7: 6.864063896 | AE7: 5.743361174 | AF7: 5.390210822 | AG7: 5.229541055 | AH7: 6.3019231 | AI7: 7.395234673 | AJ7: 7.115948151 | AK7: 7.441568431 | AL7: 7.212332075 | AM7: 7.49984648 | AN7: 7.826062672 | AO7: 6.174171889 | AP7: 5.325864056 | AQ7: 5.207213661 | AR7: 4.308872258 | AS7: 4.155137793 | AT7: 4.30555987 | AU7: 3.856750462 | AV7: 3.38109235
A8: Folyó fizetési mérleg | B8: Current account | F8: -6.857809715 | G8: -6.248483976 | H8: -6.697403366 | I8: -7.036852547 | J8: -6.414246849 | K8: -5.199703864 | L8: -2.927654758 | M8: -0.7983326126 | N8: -0.1544322233 | O8: -0.05363732447 | P8: -0.07640456159 | Q8: 0.2770535821 | R8: 0.4643882171 | S8: 0.476060415 | T8: 0.7091653207 | U8: 0.7442180677 | V8: 0.577299834 | W8: 1.026373809 | X8: 1.646631188 | Y8: 1.757930068 | Z8: 2.634507643 | AA8: 2.815544423 | AB8: 3.331007902 | AC8: 3.82235837 | AD8: 3.583911862 | AE8: 2.688210487 | AF8: 2.089721215 | AG8: 1.503941276 | AH8: 2.188934427 | AI8: 2.698032539 | AJ8: 2.619164745 | AK8: 2.819663787 | AL8: 3.235436071 | AM8: 4.658937711 | AN8: 5.767059399 | AO8: 6.206519801 | AP8: 5.193171898 | AQ8: 4.681053415 | AR8: 3.593809017 | AS8: 3.183296051 | AT8: 3.038083307 | AU8: 2.451059302 | AV8: 1.775016569

Sheet 2. adat
C1: 2008. I. | D1: II. | E1: III. | F1: IV. | G1: 2009. I. | H1: II. | I1: III. | J1: IV. | K1: 2010. I. | L1: II. | M1: III. | N1: IV. | O1: 2011. I. | P1: II. | Q1: III. | R1: IV. | S1: 2012. I. | T1: II. | U1: III. | V1: IV. | W1: 2013. I. | X1: II. | Y1: III. | Z1: IV. | AA1: 2014. I. | AB1: II. | AC1: III. | AD1: IV. | AE1: 2015. I. | AF1: II. | AG1: III. | AH1: IV. | AI1: 2016. I. | AJ1: II. | AK1: III. | AL1: IV. | AM1: 2017. I. | AN1: II. | AO1: III. | AP1: IV. | AQ1: 2018. I. | AR1: II. | AS1: III.
C2: 2008 Q1 | D2: Q2 | E2: Q3 | F2: Q4 | G2: 2009 Q1 | H2: Q2 | I2: Q3 | J2: Q4 | K2: 2010 Q1 | L2: Q2 | M2: Q3 | N2: Q4 | O2: 2011 Q1 | P2: Q2 | Q2: Q3 | R2: Q4 | S2: 2012 Q1 | T2: Q2 | U2: Q3 | V2: Q4 | W2: 2013 Q1 | X2: Q2 | Y2: Q3 | Z2: Q4 | AA2: 2014 Q1 | AB2: Q2 | AC2: Q3 | AD2: Q4 | AE2: 2015 Q1 | AF2: Q2 | AG2: Q3 | AH2: Q4 | AI2: 2016 Q1 | AJ2: Q2 | AK2: Q3 | AL2: Q4 | AM2: 2017 Q1 | AN2: Q2 | AO2: Q3 | AP2: Q4 | AQ2: 2018 Q1 | AR2: Q2 | AS2: Q3
A3: Áruegyenleg | B3: Balance of goods | C3: -0.3393049887 | D3: -0.4219281873 | E3: -0.9072844265 | F3: -0.8535323981 | G3: -0.5287047749 | H3: 0.3566225341 | I3: 1.678848141 | J3: 2.780659345 | K3: 3.022321529 | L3: 2.949989352 | M3: 2.77701293 | N3: 2.644981914 | O3: 3.098516009 | P3: 3.007293887 | Q3: 3.064659186 | R3: 2.880565215 | S3: 2.455255363 | T3: 2.782754726 | U3: 3.194139827 | V3: 2.946445541 | W3: 3.149836462 | X3: 2.911558474 | Y3: 2.973942892 | Z3: 3.270938587 | AA3: 3.342381613 | AB3: 2.760689252 | AC3: 2.298316196 | AD3: 2.013170615 | AE3: 2.427172989 | AF3: 2.836417849 | AG3: 2.878244776 | AH3: 3.652581201 | AI3: 3.51491886 | AJ3: 4.346454335 | AK3: 4.580080237 | AL3: 4.058926652 | AM3: 3.251952431 | AN3: 2.731644186 | AO3: 2.002721613 | AP3: 1.535315787 | AQ3: 1.192933951 | AR3: 0.8183377482 | AS3: -0.03513351422
A4: Szolgáltatásegyenleg | B4: Balance of services | C4: 0.8811225134 | D4: 1.028360752 | E4: 1.182554683 | F4: 1.209621218 | G4: 1.255502684 | H4: 1.336912842 | I4: 1.379261866 | J4: 1.245230503 | K4: 1.695277796 | L4: 1.914922489 | M4: 2.125003263 | N4: 2.673785567 | O4: 2.524066785 | P4: 2.761710715 | Q4: 3.009355171 | R4: 3.237490188 | S4: 3.558835016 | T4: 3.646694839 | U4: 3.757420498 | V4: 3.814925936 | W4: 3.874345439 | X4: 3.787342181 | Y4: 3.918782405 | Z4: 3.692469035 | AA4: 3.694950887 | AB4: 3.878806591 | AC4: 4.041851417 | AD4: 4.36419033 | AE4: 4.483900091 | AF4: 4.567886686 | AG4: 4.718671262 | AH4: 4.441781097 | AI4: 4.686586467 | AJ4: 4.933256068 | AK4: 5.325428047 | AL4: 5.948954357 | AM4: 5.943372326 | AN4: 5.974537706 | AO4: 5.817637562 | AP4: 5.928878377 | AQ4: 6.093790595 | AR4: 6.124377898 | AS4: 6.122509788
A5: Külkereskedelmi egyenleg | B5: Balance of goods and services | C5: 0.5418175247 | D5: 0.6064325645 | E5: 0.2752702568 | F5: 0.3560888195 | G5: 0.7267979091 | H5: 1.693535377 | I5: 3.058110006 | J5: 4.025889848 | K5: 4.717599325 | L5: 4.864911841 | M5: 4.902016193 | N5: 5.318767481 | O5: 5.622582793 | P5: 5.769004602 | Q5: 6.074014357 | R5: 6.118055403 | S5: 6.014090379 | T5: 6.429449565 | U5: 6.951560325 | V5: 6.761371477 | W5: 7.024181901 | X5: 6.698900655 | Y5: 6.892725298 | Z5: 6.963407622 | AA5: 7.0373325 | AB5: 6.639495843 | AC5: 6.340167613 | AD5: 6.377360945 | AE5: 6.91107308 | AF5: 7.404304535 | AG5: 7.596916038 | AH5: 8.094362298 | AI5: 8.201505327 | AJ5: 9.279710402 | AK5: 9.905508284 | AL5: 10.00788101 | AM5: 9.195324757 | AN5: 8.706181892 | AO5: 7.820359175 | AP5: 7.464194164 | AQ5: 7.286724546 | AR5: 6.942715646 | AS5: 6.087376273

Sheet 3. adat
C1: 2008. I. | D1: II. | E1: III. | F1: IV. | G1: 2009. I. | H1: II. | I1: III. | J1: IV. | K1: 2010. I. | L1: II. | M1: III. | N1: IV. | O1: 2011. I. | P1: II. | Q1: III. | R1: IV. | S1: 2012. I. | T1: II. | U1: III. | V1: IV. | W1: 2013. I. | X1: II. | Y1: III. | Z1: IV. | AA1: 2014. I. | AB1: II. | AC1: III. | AD1: IV. | AE1: 2015. I. | AF1: II. | AG1: III. | AH1: IV. | AI1: 2016. I. | AJ1: II. | AK1: III. | AL1: IV. | AM1: 2017. I. | AN1: II. | AO1: III. | AP1: IV. | AQ1: 2018. I. | AR1: II. | AS1: III.
C2: 2008 Q1 | D2: Q2 | E2: Q3 | F2: Q4 | G2: 2009 Q1 | H2: Q2 | I2: Q3 | J2: Q4 | K2: 2010 Q1 | L2: Q2 | M2: Q3 | N2: Q4 | O2: 2011 Q1 | P2: Q2 | Q2: Q3 | R2: Q4 | S2: 2012 Q1 | T2: Q2 | U2: Q3 | V2: Q4 | W2: 2013 Q1 | X2: Q2 | Y2: Q3 | Z2: Q4 | AA2: 2014 Q1 | AB2: Q2 | AC2: Q3 | AD2: Q4 | AE2: 2015 Q1 | AF2: Q2 | AG2: Q3 | AH2: Q4 | AI2: 2016 Q1 | AJ2: Q2 | AK2: Q3 | AL2: Q4 | AM2: 2017 Q1 | AN2: Q2 | AO2: Q3 | AP2: Q4 | AQ2: 2018 Q1 | AR2: Q2 | AS2: Q3
A3: Export | B3: Export | C3: 16.11425387 | D3: 11.01118067 | E3: 5.198119092 | F3: -3.299922855 | G3: -18.77595842 | H3: -15.97425738 | I3: -9.68204056 | J3: -0.5873804297 | K3: 10.31691643 | L3: 13.59281594 | M3: 11.24277371 | N3: 10.15270338 | O3: 13.09365862 | P3: 6.239959562 | Q3: 4.705217964 | R3: 2.963334543 | S3: -0.9440044808 | T3: 0.3117653985 | U3: -1.309911452 | V3: -5.078721441 | W3: -0.5762991719 | X3: 2.647914418 | Y3: 5.778766459 | Z3: 8.794457645 | AA3: 10.915767 | AB3: 9.459113635 | AC3: 8.624178714 | AD3: 7.550148946 | AE3: 7.260353658 | AF3: 6.810728021 | AG3: 6.176534248 | AH3: 8.57030658 | AI3: 4.175802946 | AJ3: 8.649199363 | AK3: 5.562752103 | AL3: 2.008302425 | AM3: 7.732469391 | AN3: 2.927938462 | AO3: 3.088512815 | AP3: 5.358556128 | AQ3: 4.163601022 | AR3: 8.644528115 | AS3: 3.427644956
A4: Import | B4: Import | C4: 14.55923136 | D4: 12.34809414 | E4: 4.797700437 | F4: -5.981149894 | G4: -21.434696 | H4: -21.78325934 | I4: -13.4497951 | J4: -1.269779768 | K4: 8.449485901 | L4: 13.17262364 | M4: 11.39819412 | N4: 7.857685043 | O4: 12.11123606 | P4: 5.43019432 | Q4: 1.418982332 | R4: -0.1178084234 | S4: -2.251108397 | T4: -3.005654796 | U4: -4.078405429 | V4: -4.539987834 | W4: -1.617254253 | X4: 5.547887257 | Y4: 4.901502423 | Z4: 9.126596947 | AA4: 11.23733768 | AB4: 12.27177346 | AC4: 12.04284854 | AD4: 8.508162943 | AE4: 5.013288955 | AF4: 4.655555033 | AG4: 6.046225961 | AH4: 7.337490846 | AI4: 5.516909196 | AJ4: 5.599327644 | AK4: 3.496091215 | AL4: 1.083633072 | AM4: 10.57808916 | AN4: 5.824624839 | AO4: 7.765976199 | AP4: 7.004863858 | AQ4: 5.502152109 | AR4: 9.078789188 | AS4: 5.923991882
A5: Különbség | B5: Difference | C5: =+C3-C4 -> 1.555022507 | D5: -1.336913466 | E5: 0.4004186549 | F5: 2.681227039 | G5: 2.65873758 | H5: 5.809001953 | I5: 3.767754539 | J5: 0.6823993383 | K5: 1.86743053 | L5: 0.420192306 | M5: -0.1554204142 | N5: 2.295018333 | O5: 0.9824225525 | P5: 0.8097652426 | Q5: 3.286235631 | R5: 3.081142967 | S5: 1.307103916 | T5: 3.317420195 | U5: 2.768493977 | V5: -0.5387336068 | W5: 1.040955081 | X5: -2.89997284 | Y5: 0.8772640363 | Z5: -0.332139302 | AA5: -0.3215706794 | AB5: -2.812659826 | AC5: -3.418669825 | AD5: -0.9580139968 | AE5: 2.247064703 | AF5: 2.155172989 | AG5: =+AG3-AG4 -> 0.1303082874 | AH5: =+AH3-AH4 -> 1.232815733 | AI5: =+AI3-AI4 -> -1.34110625 | AJ5: 3.049871718 | AK5: =+AK3-AK4 -> 2.066660888 | AL5: 0.9246693535 | AM5: -2.845619765 | AN5: =+AN3-AN4 -> -2.896686376 | AO5: -4.677463385 | AP5: -1.64630773 | AQ5: =+AQ3-AQ4 -> -1.338551088 | AR5: =+AR3-AR4 -> -0.4342610735 | AS5: =+AS3-AS4 -> -2.496346926

Sheet 4. adat
C1: 2008. I. | D1: II. | E1: III. | F1: IV. | G1: 2009. I. | H1: II. | I1: III. | J1: IV. | K1: 2010. I. | L1: II. | M1: III. | N1: IV. | O1: 2011. I. | P1: II. | Q1: III. | R1: IV. | S1: 2012. I. | T1: II. | U1: III. | V1: IV. | W1: 2013. I. | X1: II. | Y1: III. | Z1: IV. | AA1: 2014. I. | AB1: II. | AC1: III. | AD1: IV. | AE1: 2015. I. | AF1: II. | AG1: III. | AH1: IV. | AI1: 2016. I. | AJ1: II. | AK1: III. | AL1: IV. | AM1: 2017. I. | AN1: II. | AO1: III. | AP1: IV. | AQ1: 2018. I. | AR1: II. | AS1: III.
C2: 2008 Q1 | D2: Q2 | E2: Q3 | F2: Q4 | G2: 2009 Q1 | H2: Q2 | I2: Q3 | J2: Q4 | K2: 2010 Q1 | L2: Q2 | M2: Q3 | N2: Q4 | O2: 2011 Q1 | P2: Q2 | Q2: Q3 | R2: Q4 | S2: 2012 Q1 | T2: Q2 | U2: Q3 | V2: Q4 | W2: 2013 Q1 | X2: Q2 | Y2: Q3 | Z2: Q4 | AA2: 2014 Q1 | AB2: Q2 | AC2: Q3 | AD2: Q4 | AE2: 2015 Q1 | AF2: Q2 | AG2: Q3 | AH2: Q4 | AI2: 2016 Q1 | AJ2: Q2 | AK2: Q3 | AL2: Q4 | AM2: 2017 Q1 | AN2: Q2 | AO2: Q3 | AP2: Q4 | AQ2: 2018 Q1 | AR2: Q2 | AS2: Q3
A3: Volumenváltozás | B3: Change in volume | C3: 67.17959629 | D3: -50.58313904 | E3: 19.38057761 | F3: 157.2531831 | G3: 161.9784111 | H3: 330.6267666 | I3: 182.4149015 | J3: 32.60901219 | K3: 101.7147762 | L3: 64.62635056 | M3: 29.73472676 | N3: 142.5244154 | O3: 91.23112335 | P3: 65.62008641 | Q3: 194.9282838 | R3: 200.770569 | S3: 75.27558532 | T3: 198.063708 | U3: 155.306846 | V3: -52.37229225 | W3: 57.18737938 | X3: -145.8740764 | Y3: 85.66160644 | Z3: 13.55934003 | AA3: 38.95452399 | AB3: -115.7445366 | AC3: -134.8644258 | AD3: -26.25440447 | AE3: 181.1064685 | AF3: 173.0852535 | AG3: 52.11205365 | AH3: 128.9690989 | AI3: -48.72702081 | AJ3: 271.6798361 | AK3: 186.8713291 | AL3: 79.58297318 | AM3: -139.1036271 | AN3: -179.6698151 | AO3: -300.8320185 | AP3: -81.94703272 | AQ3: -74.21865377 | AR3: 34.02079557 | AS3: -183.706548
A4: Cserearány-változás | B4: Change in terms of trade | C4: -64.00959629 | D4: 52.47413904 | E4: -113.1425776 | F4: -144.3161831 | G4: -43.32241112 | H4: -54.06176661 | I4: 149.5570985 | J4: 206.7149878 | K4: 82.06922385 | L4: -15.64435056 | M4: -7.600726762 | N4: -20.23441542 | O4: 6.651876654 | P4: -15.17208641 | Q4: -88.00128383 | R4: -173.439569 | S4: -114.9765853 | T4: -67.714708 | U4: -5.04084598 | V4: 8.29129225 | W4: 59.94962062 | X4: 75.95107639 | Y4: 5.334393563 | Z4: 32.03465997 | AA4: 23.89947601 | AB4: 27.20753656 | AC4: 87.18842578 | AD4: 71.03340447 | AE4: 19.53353151 | AF4: 16.35974654 | AG4: 40.53594635 | AH4: 93.54790108 | AI4: 109.8670208 | AJ4: 136.9331639 | AK4: 61.69967085 | AL4: -32.27997318 | AM4: -88.01137292 | AN4: 54.84281514 | AO4: 34.07701846 | AP4: 51.81903272 | AQ4: 61.52765377 | AR4: -104.9977956 | AS4: -110.188452
A5: Áru- és szolgáltatásegyenleg változása | B5: Change in trade balance | C5: 3.17 | D5: 1.891 | E5: -93.762 | F5: 12.937 | G5: 118.656 | H5: 276.565 | I5: 331.972 | J5: 239.324 | K5: 183.784 | L5: 48.982 | M5: 22.134 | N5: 122.29 | O5: 97.883 | P5: 50.448 | Q5: 106.927 | R5: 27.331 | S5: -39.701 | T5: 130.349 | U5: 150.266 | V5: -44.081 | W5: 117.137 | X5: -69.923 | Y5: 90.996 | Z5: 45.594 | AA5: 62.854 | AB5: -88.537 | AC5: -47.676 | AD5: 44.779 | AE5: 200.64 | AF5: 189.445 | AG5: 92.648 | AH5: 222.517 | AI5: 61.14 | AJ5: 408.613 | AK5: 248.571 | AL5: 47.303 | AM5: -227.115 | AN5: -124.827 | AO5: -266.755 | AP5: -30.128 | AQ5: -12.691 | AR5: -70.977 | AS5: -293.895

Sheet 5. adat
C1: 2008. I. | D1: II. | E1: III. | F1: IV. | G1: 2009. I. | H1: II. | I1: III. | J1: IV. | K1: 2010. I. | L1: II. | M1: III. | N1: IV. | O1: 2011. I. | P1: II. | Q1: III. | R1: IV. | S1: 2012. I. | T1: II. | U1: III. | V1: IV. | W1: 2013. I. | X1: II. | Y1: III. | Z1: IV. | AA1: 2014. I. | AB1: II. | AC1: III. | AD1: IV. | AE1: 2015. I. | AF1: II. | AG1: III. | AH1: IV. | AI1: 2016. I. | AJ1: II. | AK1: III. | AL1: IV. | AM1: 2017. I. | AN1: II. | AO1: III. | AP1: IV. | AQ1: 2018 I. | AR1: II. | AS1: III.
C2: 2008 Q1 | D2: Q2 | E2: Q3 | F2: Q4 | G2: 2009 Q1 | H2: Q2 | I2: Q3 | J2: Q4 | K2: 2010 Q1 | L2: Q2 | M2: Q3 | N2: Q4 | O2: 2011 Q1 | P2: Q2 | Q2: Q3 | R2: Q4 | S2: 2012 Q1 | T2: Q2 | U2: Q3 | V2: Q4 | W2: 2013 Q1 | X2: Q2 | Y2: Q3 | Z2: Q4 | AA2: 2014 Q1 | AB2: Q2 | AC2: Q3 | AD2: Q4 | AE2: 2015 Q1 | AF2: Q2 | AG2: Q3 | AH2: Q4 | AI2: 2016 Q1 | AJ2: Q2 | AK2: Q3 | AL2: Q4 | AM2: 2017 Q1 | AN2: Q2 | AO2: Q3 | AP2: Q4 | AQ2: 2018 Q1 | AR2: Q2 | AS2: Q3
A3: Belföldi felhasználás éves növekedési üteme | B3: Annual increase of domestic absorption | C3: 0.7239760912 | D3: 3.354478936 | E3: 1.320348636 | F3: -4.469050953 | G3: -9.173556638 | H3: -12.60397678 | I3: -10.31814654 | J3: -4.786009932 | K3: -2.276099087 | L3: -0.5490873148 | M3: 0.8149762053 | N3: -0.6834190732 | O3: 1.217301806 | P3: 0.3752642315 | Q3: -1.42458691 | R3: -1.194835027 | S3: -1.593071277 | T3: -4.525155495 | U3: -3.989955901 | V3: -2.126132344 | W3: -1.148501456 | X3: 4.130904544 | Y3: 1.759137373 | Z3: 3.880644184 | AA3: 4.094312863 | AB3: 6.719482167 | AC3: 6.49812077 | AD3: 4.452867075 | AE3: 1.897607626 | AF3: 1.216907373 | AG3: 2.610488285 | AH3: 2.43326317 | AI3: 2.296913436 | AJ3: -0.02559110859 | AK3: 0.5138395572 | AL3: 1.196748249 | AM3: 6.704446059 | AN3: 6.244854067 | AO3: 8.324179687 | AP3: 5.784033586 | AQ3: 5.758351242 | AR3: 4.992467089 | AS3: 7.160918143
A4: Nettó export GDP-növekedéshez való hozzájárulása (jobb tengely) | B4: Contribution of net exports to GDP growth (right scale) | C4: 1.465215484 | D4: -0.8246115299 | E4: 0.4336139871 | F4: 2.183969975 | G4: 2.061696114 | H4: 4.889352766 | I4: 2.892173299 | J4: 0.5231218252 | K4: 1.983439541 | L4: 1.240056463 | M4: 0.5360630051 | N4: 2.231678638 | O4: 1.744546329 | P4: 1.18170301 | Q4: 3.11201462 | R4: 2.844338791 | S4: 1.162417 | T4: 2.932294405 | U4: 2.250771875 | V4: -0.8890607712 | W4: 0.9160460471 | X4: -2.178172988 | Y4: 1.410691396 | Z4: 0.4028492491 | AA4: 0.848542269 | AB4: -1.585954806 | AC4: -1.812832599 | AD4: -0.2519546115 | AE4: 2.993171973 | AF4: 2.607121906 | AG4: 0.7711943279 | AH4: 1.761275988 | AI4: -0.7706409705 | AJ4: 3.845197076 | AK4: 2.567146021 | AL4: 1.056464339 | AM4: -1.973168584 | AN4: -2.486430666 | AO4: -4.057814701 | AP4: -1.039117667 | AQ4: -1.044304085 | AR4: 0.4847465217 | AS4: -2.166098357

Sheet 6. adat
C1: II. | D1: III. | E1: IV. | F1: 2008. I. | G1: II. | H1: III. | I1: IV. | J1: 2009. I. | K1: II. | L1: III. | M1: IV. | N1: 2010. I. | O1: II. | P1: III. | Q1: IV. | R1: 2011. I. | S1: II. | T1: III. | U1: IV. | V1: 2012. I. | W1: II. | X1: III. | Y1: IV. | Z1: 2013. I. | AA1: II. | AB1: III. | AC1: IV. | AD1: 2014. I. | AE1: II. | AF1: III. | AG1: IV. | AH1: 2015. I. | AI1: II. | AJ1: III. | AK1: IV. | AL1: 2016. I. | AM1: II. | AN1: III. | AO1: IV. | AP1: 2017. I. | AQ1: II. | AR1: III. | AS1: IV. | AT1: 2018. I. | AU1: II. | AV1: III.
C2: Q2 | D2: Q3 | E2: Q4 | F2: 2008 Q1 | G2: Q2 | H2: Q3 | I2: Q4 | J2: 2009 Q1 | K2: Q2 | L2: Q3 | M2: Q4 | N2: 2010 Q1 | O2: Q2 | P2: Q3 | Q2: Q4 | R2: 2011 Q1 | S2: Q2 | T2: Q3 | U2: Q4 | V2: 2012 Q1 | W2: Q2 | X2: Q3 | Y2: Q4 | Z2: 2013 Q1 | AA2: Q2 | AB2: Q3 | AC2: Q4 | AD2: 2014 Q1 | AE2: Q2 | AF2: Q3 | AG2: Q4 | AH2: 2015 Q1 | AI2: Q2 | AJ2: Q3 | AK2: Q4 | AL2: 2016 Q1 | AM2: Q2 | AN2: Q3 | AO2: Q4 | AP2: 2017 Q1 | AQ2: Q2 | AR2: Q3 | AS2: Q4 | AT2: 2018 Q1 | AU2: Q2 | AV2: Q3
A3: Munkavállalói jövedelmek | B3: Compensation of employees | C3: 0.1892948087 | D3: 0.361492191 | E3: 0.5415808397 | F3: 0.6971689533 | G3: 0.684122277 | H3: 0.6761564882 | I3: 0.6637137961 | J3: 0.6000335052 | K3: 0.5194454411 | L3: 0.4280896297 | M3: 0.3281090715 | N3: 0.3982962863 | O3: 0.4729585921 | P3: 0.5498860185 | Q3: 0.6292916182 | R3: 0.7126330227 | S3: 0.8012624367 | T3: 0.8840096725 | U3: 0.9683365672 | V3: 1.128199805 | W3: 1.290501353 | X3: 1.458227504 | Y3: 1.611126965 | Z3: 1.785869012 | AA3: 2.005030633 | AB3: 2.217103865 | AC3: 2.392710067 | AD3: 2.382853769 | AE3: 2.316681146 | AF3: 2.284690781 | AG3: 2.37329494 | AH3: 2.464902674 | AI3: 2.565458998 | AJ3: 2.675143934 | AK3: 2.693577571 | AL3: 2.756958549 | AM3: 2.761888369 | AN3: 2.711266222 | AO3: 2.668006907 | AP3: 2.547874224 | AQ3: 2.454862997 | AR3: 2.367177598 | AS3: 2.203785861 | AT3: 2.05472286 | AU3: 1.960518685 | AV3: 1.862992428
A4: Tulajdonosi hitelek kamategyenlege | B4: Interest paid on intercompany loans | C4: -0.08316925948 | D4: -0.1658179866 | E4: -0.243487984 | F4: -0.3497382118 | G4: -0.382404077 | H4: -0.4225110908 | I4: -0.4752399488 | J4: -0.4814573936 | K4: -0.5033373395 | L4: -0.5367894894 | M4: -0.6381446504 | N4: -0.7853370135 | O4: -0.9241681521 | P4: -1.052637475 | Q4: -1.036447588 | R4: -1.008305453 | S4: -0.9838472548 | T4: -0.9189489556 | U4: -0.9411798199 | V4: -0.9569894294 | W4: -0.9540316172 | X4: -0.9814756755 | Y4: -0.9960631044 | Z4: -0.898631589 | AA4: -0.7907645943 | AB4: -0.6773281942 | AC4: -0.563896828 | AD4: -0.5431066131 | AE4: -0.5309309355 | AF4: -0.5264448363 | AG4: -0.5248727176 | AH4: -0.5411018722 | AI4: -0.5567314396 | AJ4: -0.5589154788 | AK4: -0.5250139808 | AL4: -0.3876459032 | AM4: -0.2395460694 | AN4: -0.1200095201 | AO4: -0.0416205018 | AP4: -0.09291010889 | AQ4: -0.1560915432 | AR4: -0.1774700631 | AS4: -0.1837773797 | AT4: -0.1560645547 | AU4: -0.1292530508 | AV4: -0.1168010061
A5: Részesedések jövedelme | B5: Equity income | C5: -1.860966789 | D5: -3.150480333 | E5: -4.457930573 | F5: -5.203143503 | G5: -4.429694544 | H5: -4.425010507 | I5: -4.38344422 | J5: -4.300055177 | K5: -4.178944239 | L5: -3.56894691 | M5: -2.896133379 | N5: -3.02925401 | O5: -3.124530322 | P5: -3.169408097 | Q5: -3.222462131 | R5: -3.334619173 | S5: -3.415614987 | T5: -3.481135995 | U5: -3.626128533 | V5: -3.474964795 | W5: -3.468242763 | X5: -3.382540546 | Y5: -3.533681637 | Z5: -3.507940442 | AA5: -3.523941737 | AB5: -3.566529625 | AC5: -3.468358569 | AD5: -3.89129 | AE5: -4.335197803 | AF5: -4.757446165 | AG5: -5.149985302 | AH5: -4.990407341 | AI5: -5.068556227 | AJ5: -5.353333134 | AK5: -5.930985904 | AL5: -5.904897978 | AM5: -5.659989312 | AN5: -5.288364975 | AO5: -4.702898424 | AP5: -5.094604695 | AQ5: -5.521131086 | AR5: -5.766232238 | AS5: -5.927133273 | AT5: -5.839349501 | AU5: -5.803426283 | AV5: -5.748525205
A6: Külföldi hitelek kamategyenlege | B6: Interest paid on external debt | C6: -0.4813231381 | D6: -0.8940889529 | E6: -1.370721649 | F6: -1.999230919 | G6: -2.190014395 | H6: -2.455695231 | I6: -2.678782942 | J6: -2.714183991 | K6: -2.737508918 | L6: -2.655337421 | M6: -2.442757579 | N6: -2.292439877 | O6: -2.157846421 | P6: -2.080566943 | Q6: -2.06640634 | R6: -2.120257595 | S6: -2.224129916 | T6: -2.357297413 | U6: -2.510765016 | V6: -2.601641256 | W6: -2.655375914 | X6: -2.631201461 | Y6: -2.614341988 | Z6: -2.565145021 | AA6: -2.503753463 | AB6: -2.454705432 | AC6: -2.381520826 | AD6: -2.325783433 | AE6: -2.26291969 | AF6: -2.217919402 | AG6: -2.176532779 | AH6: -2.135662147 | AI6: -2.059659145 | AJ6: -1.961491466 | AK6: -1.855194656 | AL6: -1.771178148 | AM6: -1.667938588 | AN6: -1.571747181 | AO6: -1.50090864 | AP6: -1.409024685 | AQ6: -1.340472319 | AR6: -1.253084514 | AS6: -1.14818418 | AT6: -1.057422206 | AU6: -0.982597485 | AV6: -0.9351457026
A8: Jövedelemegyenleg | B8: Income balance | C8: -2.236164378 | D8: -3.848895082 | E8: -5.530559366 | F8: -6.85494368 | G8: -6.317990739 | H8: -6.627060341 | I8: -6.873753315 | J8: -6.895663057 | K8: -6.900345056 | L8: -6.33298419 | M8: -5.648926538 | N8: -5.708734614 | O8: -5.733586303 | P8: -5.752726497 | Q8: -5.696024441 | R8: -5.750549198 | S8: -5.822329721 | T8: -5.873372691 | U8: -6.109736802 | V8: -5.905395675 | W8: -5.787148941 | X8: -5.536990179 | Y8: -5.532959765 | Z8: -5.185848041 | AA8: -4.81342916 | AB8: -4.481459386 | AC8: -4.021066156 | AD8: -4.377326278 | AE8: -4.812367282 | AF8: -5.217119622 | AG8: -5.478095858 | AH8: -5.202268686 | AI8: -5.119487815 | AJ8: -5.198596145 | AK8: -5.617616969 | AL8: -5.30676348 | AM8: -4.805585601 | AN8: -4.268855454 | AO8: -3.577420658 | AP8: -4.048665265 | AQ8: -4.562831951 | AR8: -4.829609217 | AS8: -5.055308971 | AT8: -4.998113401 | AU8: -4.954758133 | AV8: -4.937479486

Sheet 7. adat
C1: 2008. I. | D1: II. | E1: III. | F1: IV. | G1: 2009. I. | H1: II. | I1: III. | J1: IV. | K1: 2010. I. | L1: II. | M1: III. | N1: IV. | O1: 2011. I. | P1: II. | Q1: III. | R1: IV. | S1: 2012. I. | T1: II. | U1: III. | V1: IV. | W1: 2013. I. | X1: II. | Y1: III. | Z1: IV. | AA1: 2014. I. | AB1: II. | AC1: III. | AD1: IV. | AE1: 2015. I. | AF1: II. | AG1: III. | AH1: IV. | AI1: 2016. I. | AJ1: II. | AK1: III. | AL1: IV. | AM1: 2017. I. | AN1: II. | AO1: III. | AP1: IV. | AQ1: 2018. I. | AR1: II. | AS1: III.
C2: 2008 Q1 | D2: Q2 | E2: Q3 | F2: Q4 | G2: 2009 Q1 | H2: Q2 | I2: Q3 | J2: Q4 | K2: 2010 Q1 | L2: Q2 | M2: Q3 | N2: Q4 | O2: 2011 Q1 | P2: Q2 | Q2: Q3 | R2: Q4 | S2: 2012 Q1 | T2: Q2 | U2: Q3 | V2: Q4 | W2: 2013 Q1 | X2: Q2 | Y2: Q3 | Z2: Q4 | AA2: 2014 Q1 | AB2: Q2 | AC2: Q3 | AD2: Q4 | AE2: 2015 Q1 | AF2: Q2 | AG2: Q3 | AH2: Q4 | AI2: 2016 Q1 | AJ2: Q2 | AK2: Q3 | AL2: Q4 | AM2: 2017 Q1 | AN2: Q2 | AO2: Q3 | AP2: Q4 | AQ2: 2018 Q1 | AR2: Q2 | AS2: Q3
A3: Nettó EU-transzfer | B3: EU transfer (net) | C3: 0.7301726026 | D3: 0.7162197942 | E3: 0.7331321607 | F3: 1.143882804 | G3: 1.627629504 | H3: 2.061150646 | I3: 2.61663115 | J3: 2.813765066 | K3: 3.121686435 | L3: 3.323367253 | M3: 3.494552137 | N3: 3.338118781 | O3: 3.217272282 | P3: 3.02195288 | Q3: 3.221499309 | R3: 3.611909192 | S3: 3.42576939 | T3: 3.477193315 | U3: 3.176257627 | V3: 3.903664472 | W3: 4.298153444 | X3: 4.788964159 | Y3: 4.946611743 | Z3: 5.41921451 | AA3: 5.165539463 | AB3: 4.853908981 | AC3: 5.196859857 | AD3: 5.324347566 | AE3: 5.557496407 | AF3: 6.17815297 | AG3: 5.769508024 | AH3: 6.032149781 | AI3: 5.391749994 | AJ3: 3.990095698 | AK3: 3.352868093 | AL3: 1.004255026 | AM3: 1.331324242 | AN3: 2.1830324 | AO3: 2.235568462 | AP3: 2.598184827 | AQ3: 2.799970765 | AR3: 2.620064139 | AS3: 2.956325878
A4: Egyéb folyó transzfer | B4: Other current transfer | C4: -0.4896618039 | D4: -0.6189546362 | E4: -0.6631812356 | F4: -0.8125077942 | G4: -0.7504947982 | H4: -0.5833313473 | I4: -0.4658073777 | J4: -0.2841620289 | K4: -0.3306141493 | L4: -0.4237875982 | M4: -0.4349451673 | N4: -0.4684503678 | O4: -0.4707897995 | P4: -0.4875550677 | Q4: -0.533372304 | R4: -0.5336696416 | S4: -0.6728197433 | T4: -0.6998368648 | U4: -0.7737644565 | V4: -0.8601867415 | W4: -0.8300615457 | X4: -0.898286908 | Y4: -0.956462063 | Z4: -0.9858391478 | AA4: -0.9850157822 | AB4: -0.9350384129 | AC4: -0.9022651998 | AD4: -0.9471514683 | AE4: -0.927738683 | AF4: -0.9306975667 | AG4: -0.9582211593 | AH4: -0.9692869912 | AI4: -0.9854252683 | AJ4: -0.9822791489 | AK4: -0.9410462063 | AL4: -0.8867669941 | AM4: -0.7925418798 | AN4: -0.7452231046 | AO4: -0.7034970439 | AP4: -0.6261967712 | AQ4: -0.5840664438 | AR4: -0.5458308799 | AS4: -0.5150823581
A5: Egyéb tőketranszfer | B5: Other capital transfer | C5: -0.09677983537 | D5: -0.08170004693 | E5: -0.01319810193 | F5: 0.1026268783 | G5: 0.1050501428 | H5: 0.1038084721 | I5: 0.1547376852 | J5: 0.05400311482 | K5: -0.006069630966 | L5: -0.003064655657 | M5: -0.08318950675 | N5: -0.4015245265 | O5: -0.3934840055 | P5: -0.3892777735 | Q5: -0.3796049884 | R5: -0.03449136854 | S5: 0.01102974538 | T5: 0.005144992009 | U5: 0.01428105 | V5: 0.02594777473 | W5: 0.04273327757 | X5: 0.0660225867 | Y5: 0.050914578 | Z5: 0.005573096519 | AA5: 0.01575326481 | AB5: -0.00726266145 | AC5: -0.02824799075 | AD5: -0.04765173424 | AE5: -0.05113873288 | AF5: -0.1512353816 | AG5: -0.1079485053 | AH5: -0.1002399841 | AI5: -0.09786440251 | AJ5: 0.01466508941 | AK5: -0.2319889539 | AL5: -0.3720225893 | AM5: -0.3781790033 | AN5: -0.3920688076 | AO5: -0.2319003547 | AP5: -0.226652434 | AQ5: -0.2028828057 | AR5: -0.1961016359 | AS5: -0.1836043602
A6: Transzferegyenleg | B6: Transfer balance | C6: =+C3+C4+C5 -> 0.1437309634 | D6: 0.01556511115 | E6: 0.05675282319 | F6: 0.4340018885 | G6: 0.9821848489 | H6: 1.581627771 | I6: 2.305561458 | J6: 2.583606152 | K6: 2.785002655 | L6: 2.896514999 | M6: 2.976417463 | N6: 2.468143886 | O6: 2.352998477 | P6: 2.145120039 | Q6: 2.308522016 | R6: 3.043748181 | S6: 2.763979392 | T6: 2.782501442 | U6: 2.416774221 | V6: 3.069425506 | W6: 3.510825176 | X6: 3.956699838 | Y6: 4.041064257 | Z6: 4.438948459 | AA6: 4.196276945 | AB6: 3.911607907 | AC6: 4.266346666 | AD6: 4.329544364 | AE6: 4.578618991 | AF6: 5.096220022 | AG6: 4.703338359 | AH6: 4.962622806 | AI6: 4.308460323 | AJ6: 3.022481639 | AK6: 2.179832933 | AL6: -0.254534557 | AM6: 0.1606033588 | AN6: =+AN3+AN4+AN5 -> 1.045740487 | AO6: 1.300171063 | AP6: 1.745335622 | AQ6: =+AQ3+AQ4+AQ5 -> 2.013021516 | AR6: =+AR3+AR4+AR5 -> 1.878131623 | AS6: =+AS3+AS4+AS5 -> 2.25763916

Sheet 8. adat
C1: Hungary | Z1: Czech Republic | AV1: Poland | BR1: Slovakia | CN1: Romania
C2: 2013 | G2: 2014 | K2: 2015 | O2: 2016 | S2: 2017 | W2: 2018* | Z2: 2013 | AD2: 2014 | AH2: 2015 | AL2: 2016 | AP2: 2017 | AT2: 2018 | AV2: 2013 | AZ2: 2014 | BD2: 2015 | BH2: 2016 | BL2: 2017 | BO2: 2018 | BR2: 2013 | BV2: 2014 | BZ2: 2015 | CD2: 2016 | CH2: 2017 | CL2: 2018 | CN2: 2013 | CR2: 2014 | CV2: 2015 | CZ2: 2016 | DD2: 2017 | DH2: 2018
C3: Magyarország | Z3: Csehország | AV3: Lengyelország | BR3: Szlovákia | CN3: Románia
C4: 2013 | G4: 2014 | K4: 2015 | O4: 2016 | S4: 2017 | W4: 2018* | Z4: 2013 | AD4: 2014 | AH4: 2015 | AL4: 2016 | AP4: 2017 | AT4: 2018 | AV4: 2013 | AZ4: 2014 | BD4: 2015 | BH4: 2016 | BL4: 2017 | BO4: 2018 | BR4: 2013 | BV4: 2014 | BZ4: 2015 | CD4: 2016 | CH4: 2017 | CL4: 2018 | CN4: 2013 | CR4: 2014 | CV4: 2015 | CZ4: 2016 | DD4: 2017 | DH4: 2018
A5: Folyó fizetési mérleg | B5: Current account | C5: 2.634507643 | D5: 2.815544423 | E5: 3.331007902 | F5: 3.82235837 | G5: 3.583911862 | H5: 2.688210487 | I5: 2.089721215 | J5: 1.503941276 | K5: 2.188934427 | L5: 2.698032539 | M5: 2.619164745 | N5: 2.819663787 | O5: 3.235436071 | P5: 4.658937711 | Q5: 5.767059399 | R5: 6.206519801 | S5: 5.193171898 | T5: 4.681053415 | U5: 3.593809017 | V5: 3.183296051 | W5: 3.038083307 | X5: 2.451059302 | Y5: 1.775016569 | Z5: -1.800496301 | AA5: -1.777356798 | AB5: -1.253182992 | AC5: -0.5259736759 | AD5: 0.9628041143 | AE5: 0.1872207908 | AF5: 0.01496641192 | AG5: 0.1888287193 | AH5: 0.4356389277 | AI5: 0.1822278138 | AJ5: -0.05975867666 | AK5: 0.2186069916 | AL5: 0.8234024818 | AM5: 1.615318323 | AN5: 2.218222851 | AO5: 1.55595384 | AP5: 1.083719902 | AQ5: 1.101718254 | AR5: 0.7439192697 | AS5: 1.016876206 | AT5: 0.2737416697 | AU5: 0.58438999 | AV5: -2.981397052 | AW5: -2.292621132 | AX5: -1.558357007 | AY5: -1.273535586 | AZ5: -1.388358622 | BA5: -2.052873688 | BB5: -2.364956104 | BC5: -2.07547831 | BD5: -1.374433269 | BE5: -0.5802851475 | BF5: -0.6386020104 | BG5: -0.5603594153 | BH5: -0.7315136957 | BI5: -0.4966125331 | BJ5: -0.6267924964 | BK5: -0.5259466464 | BL5: 0.04781874042 | BM5: -0.3714811149 | BN5: 0.3260042631 | BO5: 0.1515786979 | BP5: -0.1584601736 | BQ5: -0.01942696883 | BR5: 1.615870435 | BS5: 2.299598625 | BT5: 2.627256242 | BU5: 1.85938212 | BV5: 1.513566016 | BW5: 0.865927898 | BX5: 0.8887982282 | BY5: 1.143941604 | BZ5: 0.8149264333 | CA5: -0.2147636758 | CB5: -1.594099026 | CC5: -1.763198321 | CD5: -2.320308234 | CE5: -1.771390416 | CF5: -1.360107567 | CG5: -2.164280257 | CH5: -2.034198869 | CI5: -2.483146325 | CJ5: -2.58693783 | CK5: -1.988228539 | CL5: -2.004036875 | CM5: -1.809454948 | CN5: -3.963868344 | CO5: -2.172271103 | CP5: -1.324969573 | CQ5: -1.073365679 | CR5: -0.9670932699 | CS5: -1.642308364 | CT5: -1.380948252 | CU5: -0.6664776421 | CV5: 0.2340103781 | CW5: -0.2730514993 | CX5: -0.5986977926 | CY5: -1.233304845 | CZ5: -2.191465321 | DA5: -2.366594724 | DB5: -2.235561043 | DC5: -2.045989859 | DD5: -2.352782597 | DE5: -2.716556334 | DF5: -3.014854863 | DG5: -3.355298139 | DH5: -3.496006735 | DI5: -3.363178044
A6: Tőkemérleg | B6: Capital account | C6: 2.709241007 | D6: 3.014564923 | E6: 3.105534791 | F6: 3.55969499 | G6: 3.280152033 | H6: 3.055150687 | I6: 3.300489607 | J6: 3.725599779 | K6: 4.112988673 | L6: 4.697202134 | M6: 4.496783406 | N6: 4.621904644 | O6: 3.976896005 | P6: 2.84090877 | Q6: 2.059003273 | R6: -0.03234791162 | S6: 0.1326921588 | T6: 0.526160246 | U6: 0.7150632404 | V6: 0.9718417421 | W6: 1.267476563 | X6: 1.40569116 | Y6: 1.606075781 | Z6: 1.315610539 | AA6: 1.407508006 | AB6: 2.600140725 | AC6: 2.006360641 | AD6: 2.499781471 | AE6: 2.430290777 | AF6: 1.089222201 | AG6: 0.7502079478 | AH6: 0.9502102661 | AI6: 2.102077236 | AJ6: 2.188850738 | AK6: 2.207194805 | AL6: 1.922985932 | AM6: 1.249527218 | AN6: 1.328191284 | AO6: 1.122087548 | AP6: 0.7475652639 | AQ6: 0.453447409 | AR6: 0.3703992661 | AS6: 0.9346549181 | AT6: 0.9164064669 | AU6: 0.7272276553 | AV6: 2.046872946 | AW6: 2.288357915 | AX6: 2.23696474 | AY6: 2.281345996 | AZ6: 2.42876159 | BA6: 2.496775828 | BB6: 2.377481007 | BC6: 2.442201546 | BD6: 2.938426075 | BE6: 2.310389283 | BF6: 2.916136957 | BG6: 2.363436961 | BH6: 2.080588565 | BI6: 1.818314973 | BJ6: 0.7549034436 | BK6: 1.04949825 | BL6: 0.6216205358 | BM6: 0.8087446388 | BN6: 1.009272868 | BO6: 1.265302215 | BP6: 1.394378149 | BQ6: 1.518170865 | BR6: 2.130266122 | BS6: 1.736067618 | BT6: 1.57825117 | BU6: 1.434815788 | BV6: 1.211577264 | BW6: 1.05106467 | BX6: 0.9849632824 | BY6: 0.9591550814 | BZ6: 1.223760701 | CA6: 1.493248343 | CB6: 2.371852158 | CC6: 3.536536521 | CD6: 3.983279688 | CE6: 4.134242763 | CF6: 3.234957806 | CG6: 2.009389556 | CH6: 1.26685548 | CI6: 1.130020619 | CJ6: 1.072315723 | CK6: 0.9294559523 | CL6: 1.018045158 | CM6: 1.053050007 | CN6: 1.274628051 | CO6: 1.282679942 | CP6: 1.894725093 | CQ6: 2.112488333 | CR6: 3.021821078 | CS6: 2.857197462 | CT6: 2.318498038 | CU6: 2.624874085 | CV6: 2.550236881 | CW6: 2.688004369 | CX6: 2.94699063 | CY6: 2.430926819 | CZ6: 2.27650412 | DA6: 2.607015888 | DB6: 2.733215954 | DC6: 2.490849136 | DD6: 1.812065331 | DE6: 1.246303397 | DF6: 0.7541514442 | DG6: 1.182242179 | DH6: 1.193589112 | DI6: 1.243306088
A7: Külső finanszírozási képesség | B7: Net lending | C7: 5.34374865 | D7: 5.830109346 | E7: 6.436542693 | F7: 7.38205336 | G7: 6.864063896 | H7: 5.743361174 | I7: 5.390210822 | J7: 5.229541055 | K7: 6.3019231 | L7: 7.395234673 | M7: 7.115948151 | N7: 7.441568431 | O7: 7.212332075 | P7: 7.49984648 | Q7: 7.826062672 | R7: 6.174171889 | S7: 5.325864056 | T7: 5.207213661 | U7: 4.308872258 | V7: 4.155137793 | W7: 4.30555987 | X7: 3.856750462 | Y7: 3.38109235 | Z7: -0.4850105236 | AA7: -0.3699115211 | AB7: 1.346894797 | AC7: 1.480323549 | AD7: 3.462585585 | AE7: 2.617511568 | AF7: 1.104316531 | AG7: 0.939228177 | AH7: 1.385975083 | AI7: 2.284428636 | AJ7: 2.129152607 | AK7: 2.425801796 | AL7: 2.746446828 | AM7: 2.864960678 | AN7: 3.546585537 | AO7: 2.678211487 | AP7: 1.831341285 | AQ7: 1.555165663 | AR7: 1.11426473 | AS7: 1.951531124 | AT7: 1.190198792 | AU7: 1.311667224 | AV7: -0.9345241057 | AW7: -0.004263217115 | AX7: 0.678607733 | AY7: 1.007835739 | AZ7: 1.040428069 | BA7: 0.4439269557 | BB7: 0.01254936573 | BC7: 0.3667232366 | BD7: 1.563992805 | BE7: 1.730104135 | BF7: 2.277534947 | BG7: 1.803054286 | BH7: 1.349051576 | BI7: 1.321655494 | BJ7: 0.128063977 | BK7: 0.5235281231 | BL7: 0.6694161865 | BM7: 0.437263524 | BN7: 1.335277131 | BO7: 1.416902377 | BP7: 1.235938969 | BQ7: 1.498764673 | BR7: 3.746136557 | BS7: 4.035530092 | BT7: 4.205236351 | BU7: 3.293928257 | BV7: 2.724874965 | BW7: 1.916859184 | BX7: 1.873761511 | BY7: 2.103096686 | BZ7: 2.038687134 | CA7: 1.278484667 | CB7: 0.777753132 | CC7: 1.7733382 | CD7: 1.662971454 | CE7: 2.362852347 | CF7: 1.874850239 | CG7: -0.1548907016 | CH7: -0.7673433895 | CI7: -1.353125706 | CJ7: -1.514622108 | CK7: -1.058772586 | CL7: -0.9859917172 | CM7: -0.7564049405 | CN7: -2.689091847 | CO7: -0.8894447868 | CP7: 0.5697555196 | CQ7: 1.039122655 | CR7: 2.054796886 | CS7: 1.214957354 | CT7: 0.9375497865 | CU7: 1.958529247 | CV7: 2.784377736 | CW7: 2.415082278 | CX7: 2.348483405 | CY7: 1.197684356 | CZ7: 0.08485326014 | DA7: 0.2403605893 | DB7: 0.4976549118 | DC7: 0.4447422397 | DD7: -0.5406025496 | DE7: -1.470140343 | DF7: -2.260758135 | DG7: -2.173002682 | DH7: -2.302417623 | DI7: -2.120026698
C10: -10000 | D10: =IF(D3="",C10,C10*(-1)) -> -10000 | E10: =IF(E3="",D10,D10*(-1)) -> -10000 | F10: -10000 | G10: -10000 | H10: -10000 | I10: -10000 | J10: -10000 | K10: -10000 | L10: -10000 | M10: -10000 | N10: -10000 | O10: -10000 | P10: -10000 | Q10: -10000 | R10: -10000 | S10: -10000 | T10: -10000 | U10: -10000 | V10: -10000 | W10: -10000 | X10: -10000 | Y10: =IF(Y3="",X10,X10*(-1)) -> -10000 | Z10: 10000 | AA10: 10000 | AB10: 10000 | AC10: 10000 | AD10: 10000 | AE10: 10000 | AF10: 10000 | AG10: 10000 | AH10: 10000 | AI10: 10000 | AJ10: 10000 | AK10: 10000 | AL10: 10000 | AM10: 10000 | AN10: 10000 | AO10: 10000 | AP10: 10000 | AQ10: 10000 | AR10: 10000 | AS10: 10000 | AT10: 10000 | AU10: 10000 | AV10: -10000 | AW10: -10000 | AX10: -10000 | AY10: -10000 | AZ10: -10000 | BA10: -10000 | BB10: -10000 | BC10: -10000 | BD10: -10000 | BE10: -10000 | BF10: -10000 | BG10: -10000 | BH10: -10000 | BI10: -10000 | BJ10: -10000 | BK10: -10000 | BL10: -10000 | BM10: -10000 | BN10: -10000 | BO10: -10000 | BP10: -10000 | BQ10: -10000 | BR10: 10000 | BS10: 10000 | BT10: 10000 | BU10: 10000 | BV10: 10000 | BW10: 10000 | BX10: 10000 | BY10: 10000 | BZ10: 10000 | CA10: 10000 | CB10: 10000 | CC10: 10000 | CD10: 10000 | CE10: 10000 | CF10: 10000 | CG10: 10000 | CH10: 10000 | CI10: 10000 | CJ10: 10000 | CK10: =IF(CK3="",CJ10,CJ10*(-1)) -> 10000 | CL10: 10000 | CM10: 10000 | CN10: -10000 | CO10: -10000 | CP10: -10000 | CQ10: -10000 | CR10: -10000 | CS10: -10000 | CT10: -10000 | CU10: -10000 | CV10: -10000 | CW10: -10000 | CX10: -10000 | CY10: -10000 | CZ10: -10000 | DA10: -10000 | DB10: -10000 | DC10: -10000 | DD10: -10000 | DE10: -10000 | DF10: -10000 | DG10: -10000 | DH10: -10000 | DI10: -10000

Sheet 9. adat
C1: 2008. I. | D1: II. | E1: III. | F1: IV. | G1: 2009. I. | H1: II. | I1: III. | J1: IV. | K1: 2010. I. | L1: II. | M1: III. | N1: IV. | O1: 2011. I. | P1: II. | Q1: III. | R1: IV. | S1: 2012. I. | T1: II. | U1: III. | V1: IV. | W1: 2013. I. | X1: II. | Y1: III. | Z1: IV. | AA1: 2014. I. | AB1: II. | AC1: III. | AD1: IV. | AE1: 2015. I. | AF1: II. | AG1: III. | AH1: IV. | AI1: 2016. I. | AJ1: II. | AK1: III. | AL1: IV. | AM1: 2017. I. | AN1: II. | AO1: III. | AP1: IV. | AQ1: 2018. I. | AR1: II. | AS1: III.
C2: 2008 Q1 | D2: Q2 | E2: Q3 | F2: Q4 | G2: 2009 Q1 | H2: Q2 | I2: Q3 | J2: Q4 | K2: 2010 Q1 | L2: Q2 | M2: Q3 | N2: Q4 | O2: 2011 Q1 | P2: Q2 | Q2: Q3 | R2: Q4 | S2: 2012 Q1 | T2: Q2 | U2: Q3 | V2: Q4 | W2: 2013 Q1 | X2: Q2 | Y2: Q3 | Z2: Q4 | AA2: 2014 Q1 | AB2: Q2 | AC2: Q3 | AD2: Q4 | AE2: 2015 Q1 | AF2: Q2 | AG2: Q3 | AH2: Q4 | AI2: 2016 Q1 | AJ2: Q2 | AK2: Q3 | AL2: Q4 | AM2: 2017 Q1 | AN2: Q2 | AO2: Q3 | AP2: Q4 | AQ2: 2018 Q1 | AR2: Q2 | AS2: Q3
A3: Külső finanszírozási képesség (reálgazdasági adatok alapján) | B3: Net lending from the real economy's side | C3: -6.163064333 | D3: -5.686271117 | E3: -6.280921202 | F3: -6.082744184 | G3: -5.204720879 | H3: -3.638666555 | I3: -0.9778414123 | J3: 0.9543208064 | K3: 1.797439922 | L3: 2.033896221 | M3: 2.127823492 | N3: 2.09322394 | O3: 2.230918533 | P3: 2.099783349 | Q3: 2.509686243 | R3: 3.059687077 | S3: 2.873484503 | T3: 3.421747937 | U3: 3.825097653 | V3: 4.294922173 | W3: 5.347867853 | X3: 5.84062593 | Y3: 6.451319149 | Z3: 7.381244115 | AA3: 6.856483122 | AB3: 5.739363451 | AC3: 5.389517034 | AD3: 5.228941196 | AE3: 6.288729089 | AF3: 7.381081273 | AG3: 7.10258809 | AH3: 7.439546133 | AI3: 7.204312244 | AJ3: 7.497228799 | AK3: 7.818503534 | AL3: 6.175254117 | AM3: 5.315112126 | AN3: 5.196396577 | AO3: 4.299004112 | AP3: 4.154627396 | AQ3: 4.303240622 | AR3: 3.861945179 | AS3: 3.395843915
A4: Külső finanszírozási képesség (finanszírozási adatok alapján) | B4: Net lending from the financial account's side | C4: -6.62512515 | D4: -6.352564857 | E4: -7.652076819 | F4: -8.290830703 | G4: -6.28007791 | H4: -3.582532652 | I4: -1.573270937 | J4: 0.2661575769 | K4: 0.8683941303 | L4: 0.3422719892 | M4: 0.707365228 | N4: 1.117726627 | O4: 0.6982303752 | P4: -0.0179966141 | Q4: 0.2891801127 | R4: 0.7131659795 | S4: 0.4975426043 | T4: 2.34470999 | U4: 3.9160347 | V4: 4.687715423 | W4: 6.563309956 | X4: 6.423624852 | Y4: 6.407338074 | Z4: 6.295136405 | AA4: 4.963504578 | AB4: 4.01512205 | AC4: 3.497777949 | AD4: 4.142078479 | AE4: 4.864037116 | AF4: 5.870182503 | AG4: 5.844407108 | AH4: 6.197232019 | AI4: 5.95530237 | AJ4: 6.227220184 | AK4: 5.878098674 | AL4: 3.588887159 | AM4: 2.760369638 | AN4: 2.848664696 | AO4: 1.478459136 | AP4: 1.916354993 | AQ4: 2.490690773 | AR4: 1.424929696 | AS4: 1.667473902
A5: Tévedések és kihagyások egyenlege | B5: Net errors and omissions | C5: -0.4620608176 | D5: -0.66629374 | E5: -1.371155617 | F5: -2.208086519 | G5: -1.075357031 | H5: 0.0561339037 | I5: -0.5954295248 | J5: -0.6881632295 | K5: -0.9290457913 | L5: -1.691624231 | M5: -1.420458264 | N5: -0.975497313 | O5: -1.532688157 | P5: -2.117779963 | Q5: -2.22050613 | R5: -2.346521097 | S5: -2.375941898 | T5: -1.077037948 | U5: 0.09093704713 | V5: 0.3927932506 | W5: 1.215442103 | X5: 0.5829989214 | Y5: -0.04398107428 | Z5: -1.08610771 | AA5: -1.892978544 | AB5: -1.724241401 | AC5: -1.891739085 | AD5: -1.086862717 | AE5: -1.424691974 | AF5: -1.510898771 | AG5: -1.258180981 | AH5: -1.242314114 | AI5: -1.249009874 | AJ5: -1.270008615 | AK5: -1.94040486 | AL5: -2.586366957 | AM5: -2.554742488 | AN5: -2.347731881 | AO5: -2.820544977 | AP5: -2.238272403 | AQ5: -1.812549848 | AR5: -2.437015484 | AS5: -1.728370013

Sheet 10. adat
C1: 2008.I. | D1: II. | E1: III. | F1: IV. | G1: 2009.I. | H1: II. | I1: III. | J1: IV. | K1: 2010.I. | L1: II. | M1: III. | N1: IV. | O1: 2011.I. | P1: II. | Q1: III. | R1: IV. | S1: 2012.I. | T1: II. | U1: III. | V1: IV. | W1: 2013.I. | X1: II. | Y1: III. | Z1: IV. | AA1: 2014.I. | AB1: II. | AC1: III. | AD1: IV. | AE1: 2015.I. | AF1: II. | AG1: III. | AH1: IV. | AI1: 2016.I. | AJ1: II. | AK1: III. | AL1: IV. | AM1: 2017.I. | AN1: II. | AO1: III. | AP1: IV. | AQ1: 2018. I. | AR1: II. | AS1: III.
C2: 2008 Q1 | D2: Q2 | E2: Q3 | F2: Q4 | G2: 2009 Q1 | H2: Q2 | I2: Q3 | J2: Q4 | K2: 2010 Q1 | L2: Q2 | M2: Q3 | N2: Q4 | O2: 2011 Q1 | P2: Q2 | Q2: Q3 | R2: Q4 | S2: 2012 Q1 | T2: Q2 | U2: Q3 | V2: Q4 | W2: 2013 Q1 | X2: Q2 | Y2: Q3 | Z2: Q4 | AA2: 2014 Q1 | AB2: Q2 | AC2: Q3 | AD2: Q4 | AE2: 2015 Q1 | AF2: Q2 | AG2: Q3 | AH2: Q4 | AI2: 2016 Q1 | AJ2: Q2 | AK2: Q3 | AL2: Q4 | AM2: 2017 Q1 | AN2: Q2 | AO2: Q3 | AP2: Q4 | AQ2: 2018 Q1 | AR2: Q2 | AS2: Q3
A3: Derivatív tranzakciók | B3: Transactions related to derivatives | C3: -0.7968842355 | D3: 0.9857849776 | E3: 0.29166984 | F3: -1.151948339 | G3: -1.357980371 | H3: 0.7584995877 | I3: 1.180887529 | J3: 0.05967894728 | K3: -0.02825019598 | L3: 0.3842977633 | M3: -0.2164061243 | N3: 0.4852134221 | O3: -0.3619844344 | P3: 0.3014205731 | Q3: -0.3550597297 | R3: -0.3715036157 | S3: -0.2282504219 | T3: -0.1124431628 | U3: 0.1852825031 | V3: 0.4609552234 | W3: 0.2382997084 | X3: 0.05688350412 | Y3: 0.1290464442 | Z3: 0.1933593241 | AA3: -0.0153015227 | AB3: -0.06202129659 | AC3: -0.01199467921 | AD3: -0.1753022935 | AE3: 0.1075498616 | AF3: 0.3492727871 | AG3: 0.2886455242 | AH3: -0.05947983942 | AI3: -0.406138825 | AJ3: -0.07756273816 | AK3: 0.07010708072 | AL3: 0.3606876233 | AM3: 0.5147263972 | AN3: -0.02740877881 | AO3: 0.6492610552 | AP3: 0.4402733686 | AQ3: 0.2239545336 | AR3: -0.175503705 | AS3: 0.1144654632
A4: Adósság jellegű finanszírozás | B4: Debt-type financing | C4: =+C6-C3-C5 -> 3.407035611 | D4: 1.13073087 | E4: 2.577733807 | F4: 2.627952605 | G4: 1.74231369 | H4: -1.502357017 | I4: -0.4260649083 | J4: -0.5369433011 | K4: 0.1077937245 | L4: -0.4107495785 | M4: 0.1344345125 | N4: -1.672120453 | O4: 0.3844979417 | P4: -0.2788683908 | Q4: -0.8267472496 | R4: -1.967155177 | S4: -0.2818973035 | T4: -1.816461702 | U4: -3.251379076 | V4: -3.363158041 | W4: -2.384696497 | X4: -1.079479354 | Y4: -1.267974819 | Z4: -3.71535314 | AA4: -0.8732951627 | AB4: =+AB6-AB3-AB5 -> 0.6873580919 | AC4: =+AC6-AC3-AC5 -> -2.163531921 | AD4: =+AD6-AD3-AD5 -> -3.457599536 | AE4: -0.8864976959 | AF4: =+AF6-AF3-AF5 -> -1.363044935 | AG4: -2.747885705 | AH4: =+AH6-AH3-AH5+0.15 -> -3.91754337 | AI4: =+AI6-AI3-AI5 -> -0.2800640298 | AJ4: -1.286289415 | AK4: =+AK6-AK3-AK5 -> -2.66259559 | AL4: -1.957717147 | AM4: -0.5544289997 | AN4: =+AN6-AN3-AN5 -> -1.269833535 | AO4: -0.9105719549 | AP4: -2.058242212 | AQ4: =+AQ6-AQ3-AQ5 -> -1.155631646 | AR4: =+AR6-AR3-AR5 -> -1.105350072 | AS4: =+AS6-AS3-AS5 -> -1.359319813
A5: Nem adósság jellegű finanszírozás | B5: Non-debt type financing | C5: 0.3217834852 | D5: -0.38479512 | E5: -0.364263272 | F5: 0.3343322757 | G5: 0.09579270183 | H5: -0.4947658468 | I5: -0.3102625995 | J5: 0.5402168659 | K5: -0.187814676 | L5: -0.7093887043 | M5: 0.166699986 | N5: 0.8408921171 | O5: 0.2792718378 | P5: -0.04482969361 | Q5: 0.9509193597 | R5: 1.565824099 | S5: 1.038353566 | T5: 0.1066330402 | U5: 1.306656921 | V5: 1.289926572 | W5: 0.7520530996 | X5: -0.7335015097 | Y5: -0.6012314695 | Z5: 2.001684141 | AA5: 0.8004671272 | AB5: -1.444867717 | AC5: 0.9440923431 | AD5: 1.399450519 | AE5: -0.1314090845 | AF5: -0.9482164191 | AG5: 1.186853758 | AH5: 1.397383672 | AI5: 0.00777186228 | AJ5: -0.942759768 | AK5: 1.649627764 | AL5: 1.437106153 | AM5: 0.2406149923 | AN5: -1.177655298 | AO5: 0.8999478875 | AP5: 0.8769940345 | AQ5: 0.3632961987 | AR5: 0.1245456006 | AS5: 1.556096541
A6: Külső finanszírozási igény (finanszírozási oldal) | B6: Net borrowing (financial account) | C6: 2.93193486 | D6: 1.731720728 | E6: 2.505140375 | F6: 1.810336542 | G6: 0.4801260207 | H6: -1.238623276 | I6: 0.4445600209 | J6: 0.06295251206 | K6: -0.1082711475 | L6: -0.7358405195 | M6: 0.08472837414 | N6: -0.3460149136 | O6: 0.3017853452 | P6: -0.02227751136 | Q6: -0.2308876196 | R6: -0.7728346937 | S6: 0.5282058406 | T6: -1.822271825 | U6: -1.759439652 | V6: -1.612276245 | W6: -1.394343689 | X6: -1.75609736 | Y6: -1.740159844 | Z6: -1.520309675 | AA6: -0.08812955815 | AB6: -0.8195309216 | AC6: -1.231434257 | AD6: -2.23345131 | AE6: -0.9103569188 | AF6: -1.961988567 | AG6: -1.272386423 | AH6: -2.729639538 | AI6: -0.6784309924 | AJ6: -2.306611921 | AK6: -0.9428607457 | AL6: -0.1599233714 | AM6: 0.2009123898 | AN6: -2.474897612 | AO6: 0.6386369878 | AP6: -0.7409748085 | AQ6: -0.5683809134 | AR6: -1.156308177 | AS6: 0.3112421912
A7: Külső finanszírozási igény (reálgazdasági oldal) | B7: Net borrowing (current and capital account) | C7: 1.603342952 | D7: 1.371433003 | E7: 2.079430012 | F7: 1.533525465 | G7: 0.4252415038 | H7: -0.4254838001 | I7: -0.6032200899 | J7: -0.2964554195 | K7: -0.412229817 | L7: -0.6882808648 | M7: -0.6979655087 | N7: -0.2716596841 | O7: -0.5637829017 | P7: -0.5925901803 | Q7: -1.152944808 | R7: -0.797770428 | S7: -0.3316308936 | T7: -1.070926729 | U7: -1.537158089 | V7: -1.335110775 | W7: -1.425060057 | X7: -1.632886472 | Y7: -2.154456705 | Z7: -2.304589704 | AA7: -0.9595897703 | AB7: -0.5394424735 | AC7: -1.834935644 | AD7: -2.185914527 | AE7: -2.156046451 | AF7: -1.79144464 | AG7: -1.617869632 | AH7: -2.687066062 | AI7: -1.939190089 | AJ7: -2.167918826 | AK7: -2.061073615 | AL7: -0.8655774008 | AM7: -1.083389121 | AN7: -2.149699427 | AO7: -1.121552742 | AP7: -0.7971895818 | AQ7: -1.366333286 | AR7: -1.666661863 | AS7: -0.5573381193

Sheet 11. adat
C1: 2008.I. | D1: II. | E1: III. | F1: IV. | G1: 2009.I. | H1: II. | I1: III. | J1: IV. | K1: 2010.I. | L1: II. | M1: III. | N1: IV. | O1: 2011. I. | P1: II. | Q1: III. | R1: IV. | S1: 2012.I. | T1: II. | U1: III. | V1: IV. | W1: 2013.I. | X1: II. | Y1: III. | Z1: IV. | AA1: 2014.I. | AB1: II. | AC1: III. | AD1: IV. | AE1: 2015.I. | AF1: II. | AG1: III. | AH1: IV. | AI1: 2016.I. | AJ1: II. | AK1: III. | AL1: IV. | AM1: 2017.I. | AN1: II. | AO1: III. | AP1: IV. | AQ1: 2018. I. | AR1: II. | AS1: III.
C2: 2008 Q1 | D2: Q2 | E2: Q3 | F2: Q4 | G2: 2009 Q1 | H2: Q2 | I2: Q3 | J2: Q4 | K2: 2010 Q1 | L2: Q2 | M2: Q3 | N2: Q4 | O2: 2011 Q1 | P2: Q2 | Q2: Q3 | R2: Q4 | S2: 2012 Q1 | T2: Q2 | U2: Q3 | V2: Q4 | W2: 2013 Q1 | X2: Q2 | Y2: Q3 | Z2: Q4 | AA2: 2014 Q1 | AB2: Q2 | AC2: Q3 | AD2: Q4 | AE2: 2015 Q1 | AF2: Q2 | AG2: Q3 | AH2: Q4 | AI2: 2016 Q1 | AJ2: Q2 | AK2: Q3 | AL2: Q4 | AM2: 2017 Q1 | AN2: Q2 | AO2: Q3 | AP2: Q4 | AQ2: 2018 Q1 | AR2: Q2 | AS2: Q3
A3: FDI Magyarországon: részesedések és hitelek | B3: FDI in Hungary: equity and other capital | C3: 0 | D3: 1.28357853 | E3: 1.428521134 | F3: 2.210607937 | G3: 3.147880239 | H3: 3.895699497 | I3: 3.046071035 | J3: 3.691425411 | K3: 3.864585191 | L3: 4.224863697 | M3: 4.010734547 | N3: 5.109135712 | O3: 4.737127265 | P3: 5.822188431 | Q3: 4.823078356 | R3: 5.440695046 | S3: 6.295447747 | T3: 7.866513537 | U3: 7.519722903 | V3: 7.92077011 | W3: 8.200912258 | X3: 8.665479758 | Y3: 7.059364106 | Z3: 8.314961648 | AA3: 8.566217123 | AB3: 8.021728347 | AC3: 8.121919557 | AD3: 9.542854015 | AE3: 8.992276848 | AF3: 9.05959055 | AG3: 8.963093192 | AH3: 7.645070983 | AI3: 7.131700453 | AJ3: 6.959119034 | AK3: 7.126373644 | AL3: 7.216780976 | AM3: 6.993029998 | AN3: 6.599904195 | AO3: 5.675596443 | AP3: 5.468925888 | AQ3: 4.751485792 | AR3: 4.626042786 | AS3: 4.505576033
A4: FDI Magyarországon: újrabefektett jövedelmek | B4: FDI in Hungary: reinvested earnings | C4: 0 | D4: -1.258432645 | E4: -0.747039285 | F4: 0.3892440268 | G4: 0.1627581069 | H4: -1.434691199 | I4: -0.6554274334 | J4: 0.1974867661 | K4: 0.3926974776 | L4: -1.395785652 | M4: -0.5994469704 | N4: 0.01139111434 | O4: 0.6216254671 | P4: -0.7301647625 | Q4: 0.1704770348 | R4: 1.237282108 | S4: 1.510931296 | T4: 0.2718907681 | U4: 1.339272349 | V4: 2.699257213 | W4: 3.117388211 | X4: 1.918195408 | Y4: 3.01513733 | Z4: 4.230574907 | AA4: 5.333546986 | AB4: 4.924505282 | AC4: 6.478613033 | AD4: 8.032231505 | AE4: 8.924520705 | AF4: 7.853552287 | AG4: 9.677437991 | AH4: 11.99452498 | AI4: 12.9287047 | AJ4: 12.54667491 | AK4: 14.25022904 | AL4: 16.00238085 | AM4: 17.43928757 | AN4: 17.91169319 | AO4: 20.1104997 | AP4: 22.25121214 | AQ4: 23.77246646 | AR4: 24.19412387 | AS4: 26.39729248
A5: FDI külföldön | B5: FDI abroad | C5: 0 | D5: 0.71883335 | E5: 0.04715716991 | F5: -0.1582130543 | G5: -0.3227246448 | H5: -0.7640965755 | I5: -0.6258177446 | J5: -1.294197946 | K5: -1.77728673 | L5: -0.7163146986 | M5: -0.8514960933 | N5: -1.55479373 | O5: -1.649297007 | P5: -1.532662603 | Q5: -1.70129764 | R5: -2.065592198 | S5: -2.659130434 | T5: -3.057257054 | U5: -2.925479194 | V5: -3.538706297 | W5: -3.75090604 | X5: -3.698618033 | Y5: -3.94490027 | Z5: -4.326428173 | AA5: -4.673201299 | AB5: -5.166301447 | AC5: -5.56028119 | AD5: -6.407996098 | AE5: -6.823273286 | AF5: -6.691231639 | AG5: -7.185224584 | AH5: -7.259545806 | AI5: -7.371754759 | AJ5: -7.554857042 | AK5: -7.869933675 | AL5: -8.530030369 | AM5: -9.089865344 | AN5: -10.03868225 | AO5: -10.44502754 | AP5: -11.3182932 | AQ5: -11.76957865 | AR5: -11.86007702 | AS5: -12.20142947
A6: Nettó FDI | B6: Net FDI | C6: 0 | D6: 0.7439792345 | E6: 0.7286390188 | F6: 2.44163891 | G6: 2.987913701 | H6: 1.696911723 | I6: 1.764825857 | J6: 2.594714231 | K6: 2.479995938 | L6: 2.112763347 | M6: 2.559791483 | N6: 3.565733097 | O6: 3.709455725 | P6: 3.559361065 | Q6: 3.292257751 | R6: 4.612384957 | S6: 5.147248609 | T6: 5.081147252 | U6: 5.933516058 | V6: 7.081321026 | W6: 7.567394429 | X6: 6.885057133 | Y6: 6.129601166 | Z6: 8.219108382 | AA6: 9.226562809 | AB6: 7.779932182 | AC6: 9.0402514 | AD6: 11.16708942 | AE6: 11.09352427 | AF6: 10.2219112 | AG6: 11.4553066 | AH6: 12.38005016 | AI6: 12.6886504 | AJ6: 11.9509369 | AK6: 13.50666901 | AL6: 14.68913146 | AM6: 15.34245223 | AN6: 14.47291514 | AO6: 15.3410686 | AP6: 16.40184483 | AQ6: 16.7543736 | AR6: 16.96008964 | AS6: 18.70143904
R7: GDP arányos
R8: =+R3-N3 -> 0.331559334 | V8: =+V3-R3 -> 2.480075063 | Z8: =+Z3-V3 -> 0.3941915385 | AD8: =+AD3-Z3 -> 1.227892367 | AH8: =+AH3-AD3 -> -1.897783032 | AL8: =+AL3-AH3 -> -0.4282900069
R9: 1.225890993 | S9: =+R9+R8 -> 1.557450327 | V9: 1.461975105 | W9: =+V9+V8 -> 3.942050168 | Z9: 1.531317694 | AA9: =+Z9+Z8 -> 1.925509233 | AD9: 3.801656597 | AE9: =+AD9+AD8 -> 5.029548964 | AH9: 3.962293476 | AI9: =+AH9+AH8 -> 2.064510444 | AL9: =+AL4-AH4 -> 4.007855869 | AM9: =+AL9+AL8 -> 3.579565862
R10: -0.510798468 | S10: =+R10 -> -0.510798468 | V10: -1.473114099 | W10: =+V10 -> -1.473114099 | Z10: -0.7877218763 | AA10: =+Z10 -> -0.7877218763 | AD10: -2.081567924 | AE10: =+AD10 -> -2.081567924 | AH10: -0.8515497087 | AI10: =+AH10 -> -0.8515497087 | AL10: -1.270484563 | AM10: =+AL10 -> -1.270484563
R11: 1.046651859 | S11: =+R11 -> 1.046651859 | V11: 2.468936069 | W11: =+V11 -> 2.468936069 | Z11: 1.137787357 | AA11: =+Z11 -> 1.137787357 | AD11: 2.94798104 | AE11: =+AD11 -> 2.94798104 | AH11: 1.212960735 | AI11: =+AH11 -> 1.212960735 | AL11: 2.3090813 | AM11: =+AL11 -> 2.3090813
R13: GDP | S13: 101.3614258 | V13: GDP | W13: 99.62405581 | Z13: GDP | AA13: 101.8415427 | AD13: GDP | AE13: 105.5637427 | AH13: GDP | AI13: 110.9367775 | AL13: GDP | AM13: 113.8937188
S15: =+S9/$S$13*100 -> 1.536531589 | W15: =+W9/$W$13*100 -> 3.956926002 | AA15: =+AA9/$AA$13*100 -> 1.890691345 | AE15: =+AE9/$AE$13*100 -> 4.764466315 | AI15: =+AI9/$AI$13*100 -> 1.86097928 | AM15: =+AM9/$AM$13*100 -> 3.142900153
S16: =+S10/$S$13*100 -> -0.5039377296 | W16: =+W10/$W$13*100 -> -1.478673085 | AA16: =+AA10/$AA$13*100 -> -0.7734779499 | AE16: =+AE10/$AE$13*100 -> -1.971858775 | AI16: =+AI10/$AI$13*100 -> -0.7675991025 | AM16: =+AM10/$AM$13*100 -> -1.115500114
S17: 1.03259386 | W17: 2.478252917 | AA17: 1.117213395 | AE17: 2.792607541 | AI17: =+AI11/$AI$13*100 -> 1.093380178 | AM17: 2.027400039

Sheet 12. adat
C1: 2008.I. | D1: II. | E1: III. | F1: IV. | G1: 2009.I. | H1: II. | I1: III. | J1: IV. | K1: 2010. I. | L1: II. | M1: III. | N1: IV. | O1: 2011.I. | P1: II. | Q1: III. | R1: IV. | S1: 2012.I. | T1: II. | U1: III. | V1: IV. | W1: 2013.I. | X1: II. | Y1: III. | Z1: IV. | AA1: 2014. I. | AB1: II. | AC1: III. | AD1: IV. | AE1: 2015.I. | AF1: II. | AG1: III. | AH1: IV. | AI1: 2016.I. | AJ1: II. | AK1: III. | AL1: IV. | AM1: 2017.I. | AN1: II. | AO1: III. | AP1: IV. | AQ1: 2018. I. | AR1: II. | AS1: III.
C2: 2008 Q1 | D2: Q2 | E2: Q3 | F2: Q4 | G2: 2009 Q1 | H2: Q2 | I2: Q3 | J2: Q4 | K2: 2010 Q1 | L2: Q2 | M2: Q3 | N2: Q4 | O2: 2011 Q1 | P2: Q2 | Q2: Q3 | R2: Q4 | S2: 2012 Q1 | T2: Q2 | U2: Q3 | V2: Q4 | W2: 2013 Q1 | X2: Q2 | Y2: Q3 | Z2: Q4 | AA2: 2014 Q1 | AB2: Q2 | AC2: Q3 | AD2: Q4 | AE2: 2015 Q1 | AF2: Q2 | AG2: Q3 | AH2: Q4 | AI2: 2016 Q1 | AJ2: Q2 | AK2: Q3 | AL2: Q4 | AM2: 2017 Q1 | AN2: Q2 | AO2: Q3 | AP2: Q4 | AQ2: 2018 Q1 | AR2: Q2 | AS2: Q3
A3: Adóssággeneráló finanszírozás | B3: Debt-type financing | C3: =+C4+C5+C6 -> 3.38065799 | D3: 1.13073087 | E3: 2.551481186 | F3: 2.627952594 | G3: 1.715647248 | H3: -1.502357017 | I3: -0.4260649083 | J3: -0.5369433011 | K3: 0.1077937245 | L3: -0.4107495785 | M3: 0.1344345125 | N3: -1.672124289 | O3: 0.3842479417 | P3: -0.2769140846 | Q3: -0.8287015559 | R3: -1.967155159 | S3: -0.2808431176 | T3: -1.817514332 | U3: -3.251395576 | V3: -3.363158041 | W3: -2.428306473 | X3: -1.079479356 | Y3: -1.267961169 | Z3: -3.71535314 | AA3: -0.897384765 | AB3: 0.6873580919 | AC3: -2.172976921 | AD3: -3.457599536 | AE3: -0.9153450338 | AF3: -1.373777329 | AG3: -2.747885705 | AH3: -4.06754337 | AI3: -0.2975343905 | AJ3: -1.286289405 | AK3: =+AK4+AK5+AK6 -> -2.66259559 | AL3: -1.957717147 | AM3: -0.5544289997 | AN3: =+AN4+AN5+AN6 -> -1.274559012 | AO3: =+AO4+AO5+AO6 -> -0.9105719549 | AP3: =+AP4+AP5+AP6 -> -2.058242212 | AQ3: -1.155630022 | AR3: =+AR4+AR5+AR6 -> -1.105346448 | AS3: -1.359319818
A4: Konszolidált államháztartás | B4: Consolidated government | C4: 0.5236696042 | D4: -0.5138712943 | E4: 1.205350442 | F4: -2.272410471 | G4: 1.283854314 | H4: 1.155382928 | I4: 0.7638705687 | J4: -1.344802668 | K4: 0.1626356778 | L4: -0.7735619642 | M4: 1.151524663 | N4: 1.348145887 | O4: -1.296938262 | P4: 1.039616804 | Q4: 1.906519032 | R4: 0.588723116 | S4: 0.2437353844 | T4: -1.659007605 | U4: 0.5702982756 | V4: -1.270081853 | W4: -3.091070262 | X4: 0.08965305701 | Y4: -0.5708009794 | Z4: -1.681931322 | AA4: -1.804751861 | AB4: 1.046601212 | AC4: -1.406610667 | AD4: -0.7126800136 | AE4: -1.165262875 | AF4: -0.6224013259 | AG4: 0.415344718 | AH4: -0.905679484 | AI4: 1.386708248 | AJ4: 1.550688638 | AK4: 1.015968085 | AL4: -0.4533222145 | AM4: -0.2771930704 | AN4: -1.629876657 | AO4: 0.5139514111 | AP4: -2.09721865 | AQ4: 0.2213255942 | AR4: -1.86748664 | AS4: -0.2789555474
A5: Bankszektor | B5: Banks | C5: 1.650310011 | D5: 2.252951979 | E5: 0.2715665083 | F5: 4.923238626 | G5: 0.7151026754 | H5: -3.741270062 | I5: -1.02135974 | J5: -0.05129667669 | K5: 0.1625322963 | L5: -0.218346083 | M5: -0.9858013521 | N5: -3.002146475 | O5: 1.938064805 | P5: -0.6848320684 | Q5: -1.842342695 | R5: -3.611730382 | S5: -0.3671603694 | T5: 0.455074928 | U5: -2.605876459 | V5: -1.989519894 | W5: -0.1997497958 | X5: -0.8530468836 | Y5: 0.2290634316 | Z5: -2.016669055 | AA5: 0.7586747473 | AB5: -0.1418070005 | AC5: -0.2227339487 | AD5: -1.759604137 | AE5: 0.2208093829 | AF5: -0.08629045285 | AG5: -2.181930035 | AH5: -2.787747037 | AI5: -1.843564946 | AJ5: -2.394929476 | AK5: -2.175737707 | AL5: -1.550488609 | AM5: 0.7733490971 | AN5: 1.213328981 | AO5: -1.153401291 | AP5: 0.2382055874 | AQ5: -0.6739990473 | AR5: 0.3188246665 | AS5: -0.4521496956
A6: Vállalati szektor | B6: Corporates | C6: 1.206678375 | D6: -0.6083498146 | E6: 1.074564236 | F6: -0.02287556099 | G6: -0.2833097413 | H6: 1.083530117 | I6: -0.1685757366 | J6: 0.8591560433 | K6: -0.2173742496 | L6: 0.5811584687 | M6: -0.0312887985 | N6: -0.01812370098 | O6: -0.2568786013 | P6: -0.63169882 | Q6: -0.8928778932 | R6: 1.055852108 | S6: -0.1574181326 | T6: -0.6135816541 | U6: -1.215817392 | V6: -0.1035562946 | W6: 0.8625135849 | X6: -0.3160855294 | Y6: -0.9262236213 | Z6: -0.01675276381 | AA6: 0.1486923483 | AB6: -0.2174361195 | AC6: -0.5436323049 | AD6: -0.9853153852 | AE6: 0.02910845813 | AF6: -0.6650855505 | AG6: -0.9813003882 | AH6: -0.3741168492 | AI6: 0.1593223079 | AJ6: -0.4420485669 | AK6: -1.502825967 | AL6: 0.04609367603 | AM6: -1.050585026 | AN6: -0.8580113364 | AO6: -0.2711220754 | AP6: -0.1992291494 | AQ6: -0.7029565687 | AR6: 0.443315525 | AS6: -0.628214575

Sheet 13. adat
C1: 2008.I. | D1: II. | E1: III. | F1: IV. | G1: 2009.I. | H1: II. | I1: III. | J1: IV. | K1: 2010. I. | L1: II. | M1: III. | N1: IV. | O1: 2011.I. | P1: II. | Q1: III. | R1: IV. | S1: 2012.I. | T1: II. | U1: III. | V1: IV. | W1: 2013.I. | X1: II. | Y1: III. | Z1: IV. | AA1: 2014.I. | AB1: II. | AC1: III. | AD1: IV. | AE1: 2015.I. | AF1: II. | AG1: III. | AH1: IV. | AI1: 2016.I. | AJ1: II. | AK1: III. | AL1: IV. | AM1: 2017.I. | AN1: II. | AO1: III. | AP1: IV. | AQ1: 2018. I. | AR1: II. | AS1: III.
C2: 2008 Q1 | D2: Q2 | E2: Q3 | F2: Q4 | G2: 2009 Q1 | H2: Q2 | I2: Q3 | J2: Q4 | K2: 2010 Q1 | L2: Q2 | M2: Q3 | N2: Q4 | O2: 2011 Q1 | P2: Q2 | Q2: Q3 | R2: Q4 | S2: 2012 Q1 | T2: Q2 | U2: Q3 | V2: Q4 | W2: 2013 Q1 | X2: Q2 | Y2: Q3 | Z2: Q4 | AA2: 2014 Q1 | AB2: Q2 | AC2: Q3 | AD2: Q4 | AE2: 2015 Q1 | AF2: Q2 | AG2: Q3 | AH2: Q4 | AI2: 2016 Q1 | AJ2: Q2 | AK2: Q3 | AL2: Q4 | AM2: 2017 Q1 | AN2: Q2 | AO2: Q3 | AP2: Q4 | AQ2: 2018 Q1 | AR2: Q2 | AS2: Q3
A3: Bruttó adósság | B3: Gross debt | C3: 0 | D3: 3.242252084 | E3: 5.600931423 | F3: 8.237016288 | G3: 8.814168399 | H3: 6.012750747 | I3: 4.090702651 | J3: 4.143806083 | K3: 4.111719239 | L3: 3.762057907 | M3: 2.911618054 | N3: -1.035604663 | O3: 0.4969532116 | P3: -0.7078691487 | Q3: -2.371877932 | R3: -6.198866182 | S3: -6.804849125 | T3: -7.976279804 | U3: -10.61297811 | V3: -13.16336431 | W3: -12.93412922 | X3: -14.50479184 | Y3: -14.85662923 | Z3: -16.84962959 | AA3: -16.42864765 | AB3: -17.60129899 | AC3: -17.80170899 | AD3: -18.29538625 | AE3: -17.96217042 | AF3: -17.56276346 | AG3: -19.74454521 | AH3: -20.2891501 | AI3: -20.24561158 | AJ3: -19.96410839 | AK3: -20.82642317 | AL3: -21.54931057 | AM3: -19.83526134 | AN3: -18.27075124 | AO3: -18.09071914 | AP3: -18.91109277 | AQ3: -18.71414284 | AR3: -18.79870125 | AS3: -18.36027564
A4: Bruttó eszközök | B4: Assets | C4: 0 | D4: 0.9893001046 | E4: 3.076412935 | F4: 0.7892591746 | G4: 0.6513086101 | H4: 1.59116102 | I4: 0.6904726646 | J4: 0.7948727734 | K4: 0.600253633 | L4: 0.4689383842 | M4: 0.604299883 | N4: -0.3407763587 | O4: -0.7462832889 | P4: -1.266273581 | Q4: -1.087939669 | R4: -1.303197537 | S4: -1.542020111 | T4: -3.168525718 | U4: -3.199347561 | V4: -3.760213866 | W4: -3.331228985 | X4: -4.048844723 | Y4: -4.629745547 | Z4: -4.606076852 | AA4: -4.943769655 | AB4: -5.974614 | AC4: -5.952290048 | AD4: -4.686363174 | AE4: -4.573956719 | AF4: -4.088259309 | AG4: -4.088111023 | AH4: -1.844968877 | AI4: 0.04213458556 | AJ4: 2.718567251 | AK4: 4.031990179 | AL4: 4.859591394 | AM4: 5.800291527 | AN4: 6.151472645 | AO4: 7.484906034 | AP4: 6.426326812 | AQ4: 7.297275789 | AR4: 6.89389272 | AS4: 7.784468023
A5: Nettó adósság | B5: Net debt | C5: 0 | D5: 2.252951979 | E5: 2.524518487 | F5: 7.447757113 | G5: 8.162859789 | H5: 4.421589727 | I5: 3.400229987 | J5: 3.34893331 | K5: 3.511465606 | L5: 3.293119523 | M5: 2.307318171 | N5: -0.6948283041 | O5: 1.243236501 | P5: 0.5584044322 | Q5: -1.283938263 | R5: -4.895668645 | S5: -5.262829014 | T5: -4.807754086 | U5: -7.413630546 | V5: -9.403150439 | W5: -9.602900235 | X5: -10.45594712 | Y5: -10.22688369 | Z5: -12.24355274 | AA5: -11.48487799 | AB5: -11.62668499 | AC5: -11.84941894 | AD5: -13.60902308 | AE5: -13.3882137 | AF5: -13.47450415 | AG5: -15.65643419 | AH5: -18.44418122 | AI5: -20.28774617 | AJ5: -22.68267564 | AK5: -24.85841335 | AL5: -26.40890196 | AM5: -25.63555286 | AN5: -24.42222388 | AO5: -25.57562517 | AP5: -25.33741959 | AQ5: -26.01141863 | AR5: -25.69259397 | AS5: -26.14474366

Sheet 14. adat
C1: 2008.I. | D1: II. | E1: III. | F1: IV. | G1: 2009.I. | H1: II. | I1: III. | J1: IV. | K1: 2010. I. | L1: II. | M1: III. | N1: IV. | O1: 2011.I. | P1: II. | Q1: III. | R1: IV. | S1: 2012.I. | T1: II. | U1: III. | V1: IV. | W1: 2013.I. | X1: II. | Y1: III. | Z1: IV. | AA1: 2014.I. | AB1: II. | AC1: III. | AD1: IV. | AE1: 2015.I. | AF1: II. | AG1: III. | AH1: IV. | AI1: 2016.I. | AJ1: II. | AK1: III. | AL1: IV. | AM1: 2017.I. | AN1: II. | AO1: III. | AP1: IV. | AQ1: 2018. I. | AR1: II. | AS1: III.
C2: 2008 Q1 | D2: Q2 | E2: Q3 | F2: Q4 | G2: 2009 Q1 | H2: Q2 | I2: Q3 | J2: Q4 | K2: 2010 Q1 | L2: Q2 | M2: Q3 | N2: Q4 | O2: 2011 Q1 | P2: Q2 | Q2: Q3 | R2: Q4 | S2: 2012 Q1 | T2: Q2 | U2: Q3 | V2: Q4 | W2: 2013 Q1 | X2: Q2 | Y2: Q3 | Z2: Q4 | AA2: 2014 Q1 | AB2: Q2 | AC2: Q3 | AD2: Q4 | AE2: 2015 Q1 | AF2: Q2 | AG2: Q3 | AH2: Q4 | AI2: 2016 Q1 | AJ2: Q2 | AK2: Q3 | AL2: Q4 | AM2: 2017 Q1 | AN2: Q2 | AO2: Q3 | AP2: Q4 | AQ2: 2018 Q1 | AR2: Q2 | AS2: Q3
A3: Nettó adósság-beáramlás | B3: Net debt inflow | C3: 0 | D3: -0.5138712943 | E3: 0.6914791479 | F3: -1.580931323 | G3: -0.2970770096 | H3: 0.8583059179 | I3: 1.622176487 | J3: 0.2773738189 | K3: 0.4400094967 | L3: -0.3335524675 | M3: 0.8179721955 | N3: 2.166118082 | O3: 0.8691798208 | P3: 1.906842318 | Q3: 3.815315657 | R3: 4.404038773 | S3: 4.646719971 | T3: 2.988764995 | U3: 3.559063271 | V3: 2.288981418 | W3: -0.802088844 | X3: -0.712435787 | Y3: -1.283236766 | Z3: -2.965168088 | AA3: -4.769919949 | AB3: -3.723318737 | AC3: -5.129929404 | AD3: -5.842609418 | AE3: -7.007872292 | AF3: -7.630273618 | AG3: -7.2149289 | AH3: -8.120608384 | AI3: -6.733900136 | AJ3: -5.183211499 | AK3: -4.167243414 | AL3: -4.620565629 | AM3: -4.897758699 | AN3: -6.527635356 | AO3: -6.013683945 | AP3: -8.110902594 | AQ3: -7.889577 | AR3: -9.75706364 | AS3: -10.03601919
A4: Devizatartalék | B4: FX-reserves | C4: 0 | D4: -0.7628074952 | E4: -0.6359641218 | F4: -7.231019597 | G4: -10.52545076 | H4: -9.994663296 | I4: -13.72130208 | J4: -13.79850584 | K4: -16.70868859 | L4: -17.66466108 | M4: -16.51737771 | N4: -16.81636908 | O4: -19.23614109 | P4: -20.508399 | Q4: -21.7863733 | R4: -20.69001281 | S4: -17.88243879 | T4: -18.37196437 | U4: -17.48255577 | V4: -17.33874989 | W4: -19.18386658 | X4: -18.52758841 | Y4: -15.21009095 | Z4: -18.54853046 | AA4: -20.96486923 | AB4: -20.77374049 | AC4: -20.22987273 | AD4: -19.28819732 | AE4: -20.51261765 | AF4: -18.87489276 | AG4: -16.34904764 | AH4: -14.37484621 | AI4: -11.5717518 | AJ4: -8.275455171 | AK4: -7.207935926 | AL4: -8.27533532 | AM4: -8.242875226 | AN4: -7.907134055 | AO4: -6.990251129 | AP4: -8.303265321 | AQ4: -8.012899916 | AR4: -8.746249405 | AS4: -8.58684103
A5: Egyéb követelés | B5: Other assets | C5: 0 | D5: -0.08848027217 | E5: -0.06238568226 | F5: -0.1520881074 | G5: -0.06222977813 | H5: 0.07669537198 | I5: 0.1362434452 | J5: -0.4089009842 | K5: 0.1196844201 | L5: 0.4098770229 | M5: 0.3168041235 | N5: -0.5107612167 | O5: 0.2134956286 | P5: 0.07482321465 | Q5: 0.2340844325 | R5: -0.05424346388 | S5: 0.4304703752 | T5: 0.5692776193 | U5: 0.563462666 | V5: 0.03416278376 | W5: 0.217220695 | X5: -0.129717336 | Y5: -0.3066833878 | Z5: -0.4950932657 | AA5: -0.6107674881 | AB5: -0.1283046729 | AC5: -0.0008599453332 | AD5: 0.07378919664 | AE5: -0.01182594511 | AF5: -0.05294605761 | AG5: -0.3965870435 | AH5: -1.87430993 | AI5: -1.906920509 | AJ5: -1.913399596 | AK5: -0.7259093914 | AL5: -0.1228524241 | AM5: 0.5035727943 | AN5: -0.6933832648 | AO5: 0.1532906152 | AP5: 0.1617033142 | AQ5: 0.03271655205 | AR5: -0.5154495261 | AS5: -0.947124619
A6: Tartozás | C6: 0 | D6: 0.3374164731 | E6: 1.389828952 | F6: 5.802176382 | G6: 10.29060353 | H6: 10.77627384 | I6: 15.20723513 | J6: 14.48478065 | K6: 17.02901367 | L6: 16.92123159 | M6: 17.01854578 | N6: 19.49324838 | O6: 19.89182528 | P6: 22.34237241 | Q6: 25.36760452 | R6: 25.14829505 | S6: 22.09974258 | T6: 20.79145331 | U6: 20.47815793 | V6: 19.59357009 | W6: 18.1645586 | X6: 17.94487152 | Y6: 14.23353913 | Z6: 16.07845719 | AA6: 16.80571832 | AB6: 17.17872798 | AC6: 15.10080483 | AD6: 13.37180026 | AE6: 13.51657286 | AF6: 11.29756676 | AG6: 9.53070734 | AH6: 8.128549308 | AI6: 6.744773725 | AJ6: 5.005644825 | AK6: 3.76660346 | AL6: 3.777623672 | AM6: 2.841545289 | AN6: 2.072883521 | AO6: 0.8232781263 | AP6: 0.03066096886 | AQ6: 0.09060792018 | AR6: -0.4953631514 | AS6: -0.502051981
A7: Deviza állampapír | B7: FX-bonds | C7: 0 | D7: 1.686669044 | E7: 1.718107463 | F7: 1.877750029 | G7: 1.366539744 | H7: 0.7755186616 | I7: 1.845732558 | J7: 1.860587322 | K7: 3.195332438 | L7: 2.959038808 | M7: 1.717215262 | N7: 1.817432712 | O7: 4.286436678 | P7: 4.623119253 | Q7: 4.447650422 | R7: 3.3980752 | S7: 3.002476563 | T7: 2.739168413 | U7: 2.150667309 | V7: 1.637146947 | W7: 2.806526489 | X7: 2.340109086 | Y7: 1.98120695 | Z7: 4.050909503 | AA7: 5.290569685 | AB7: 4.548643646 | AC7: 3.587986808 | AD7: 3.559449317 | AE7: 2.056637429 | AF7: 1.940858087 | AG7: 1.451921258 | AH7: 0.9344314679 | AI7: -0.3196098959 | AJ7: -0.5039940831 | AK7: -1.243364147 | AL7: -0.9592418395 | AM7: -1.080544713 | AN7: -1.42781618 | AO7: -1.87498842 | AP7: -1.898433087 | AQ7: -2.077620002 | AR7: -2.891482455 | AS7: -3.016406897
A8: Forint állampapír | B8: Forint bonds | C8: 0 | D8: -0.8160851904 | E8: 0.1369475226 | F8: -2.942203389 | G8: -3.245976382 | H8: -4.342709308 | I8: -3.829891457 | J8: -4.541878518 | K8: -3.786058948 | L8: -4.548480936 | M8: -3.736592607 | N8: -3.233194815 | O8: -2.186460861 | P8: -0.09102501668 | Q8: 1.814219756 | R8: 1.034873979 | S8: 1.811377389 | T8: 2.040554118 | U8: 4.260863331 | V8: 4.987034033 | W8: 4.32898834 | X8: 5.19089277 | Y8: 4.63937728 | Z8: 4.244278592 | AA8: 3.472235391 | AB8: 4.363463373 | AC8: 4.508029815 | AD8: 4.941163642 | AE8: 5.204967284 | AF8: 3.316983607 | AG8: 2.68098237 | AH8: 2.008763521 | AI8: 1.136719898 | AJ8: 0.9329295406 | AK8: 1.51326775 | AL8: 0.4929890035 | AM8: 0.1360521947 | AN8: -0.1931012124 | AO8: 0.3793868423 | AP8: -0.07964140223 | AQ8: 0.6472313673 | AR8: 0.385834552 | AS8: 0.8577525367
A9: Egyéb tartozás | B9: Other liabilities | C9: 0 | D9: -0.5331673802 | E9: -0.4652260332 | F9: -0.002706858146 | G9: 0.9299346679 | H9: 1.651037811 | I9: 2.945006847 | J9: 2.919684666 | K9: 3.373353003 | L9: 4.264286541 | M9: 4.791535944 | N9: 6.662623308 | O9: 3.545462289 | P9: 3.563890997 | Q9: 4.859347165 | R9: 8.468958692 | S9: 5.659259241 | T9: 5.330847286 | U9: 4.347327557 | V9: 4.197459454 | W9: 3.182624151 | X9: 3.492960084 | Y9: 2.856045325 | Z9: 3.026359523 | AA9: 3.286003668 | AB9: 3.509711384 | AC9: 2.247878633 | AD9: 2.114277726 | AE9: 3.498058572 | AF9: 3.28281549 | AG9: 2.640894134 | AH9: 3.628444742 | AI9: 4.370754146 | AJ9: 4.57579979 | AK9: 3.49579028 | AL9: 4.242966931 | AM9: 3.785128231 | AN9: 3.692891336 | AO9: 2.317970127 | AP9: 2.007825881 | AQ9: 1.520086977 | AR9: 2.009375174 | AS9: 1.655692802
A10: EU/IMF hitel | B10: EU-IMF loan | C10: 0 | D10: 0 | E10: 0 | F10: 6.8693366 | G10: 11.2401055 | H10: 12.69242668 | I10: 14.24638718 | J10: 14.24638718 | K10: 14.24638718 | L10: 14.24638718 | M10: 14.24638718 | N10: 14.24638718 | O10: 14.24638718 | P10: 14.24638718 | Q10: 14.24638718 | R10: 12.24638718 | S10: 11.62662938 | T10: 10.68088349 | U10: 9.719299733 | V10: 8.771929652 | W10: 7.846419615 | X10: 6.920909577 | Y10: 4.756909577 | Z10: 4.756909577 | AA10: 4.756909577 | AB10: 4.756909577 | AC10: 4.756909577 | AD10: 2.756909577 | AE10: 2.756909577 | AF10: 2.756909577 | AG10: 2.756909577 | AH10: 1.556909577 | AI10: 1.556909577 | AJ10: 0.0009095772034 | AK10: 0.0009095772034 | AL10: 0.0009095772034 | AM10: 0.0009095772034 | AN10: 0.0009095772034 | AO10: 0.0009095772034 | AP10: 0.0009095772034 | AQ10: 0.0009095772034 | AR10: 0.0009095772034 | AS10: 0.0009095772034

Sheet 15. adat
C1: 2008. I. | D1: II. | E1: III. | F1: IV. | G1: 2009. I. | H1: II. | I1: III. | J1: IV. | K1: 2010. I. | L1: II. | M1: III. | N1: IV. | O1: 2011. I. | P1: II. | Q1: III. | R1: IV. | S1: 2012. I. | T1: II. | U1: III. | V1: IV. | W1: 2013. I. | X1: II. | Y1: III. | Z1: IV. | AA1: 2014. I. | AB1: II. | AC1: III. | AD1: IV. | AE1: 2015. I. | AF1: II. | AG1: III. | AH1: IV. | AI1: 2016. I. | AJ1: II. | AK1: III. | AL1: IV. | AM1: 2017. I. | AN1: II. | AO1: III. | AP1: IV. | AQ1: 2018. I. | AR1: II. | AS1: III.
C2: 2008 Q1 | D2: Q2 | E2: Q3 | F2: Q4 | G2: 2009 Q1 | H2: Q2 | I2: Q3 | J2: Q4 | K2: 2010 Q1 | L2: Q2 | M2: Q3 | N2: Q4 | O2: 2011 Q1 | P2: Q2 | Q2: Q3 | R2: Q4 | S2: 2012 Q1 | T2: Q2 | U2: Q3 | V2: Q4 | W2: 2013 Q1 | X2: Q2 | Y2: Q3 | Z2: Q4 | AA2: 2014 Q1 | AB2: Q2 | AC2: Q3 | AD2: Q4 | AE2: 2015 Q1 | AF2: Q2 | AG2: Q3 | AH2: Q4 | AI2: 2016 Q1 | AJ2: Q2 | AK2: Q3 | AL2: Q4 | AM2: 2017 Q1 | AN2: Q2 | AO2: Q3 | AP2: Q4 | AQ2: 2018 Q1 | AR2: Q2 | AS2: Q3
A3: Adóssággeneráló forrásbeáramlás | B3: Debt-type financing | C3: 0 | D3: 1.04501939 | E3: 3.398881878 | F3: 5.917919497 | G3: 7.641117609 | H3: 6.144471133 | I3: 5.545158199 | J3: 4.923981214 | K3: 4.947440649 | L3: 4.509862847 | M3: 4.544490777 | N3: 2.865720001 | O3: 3.182146668 | P3: 2.823195559 | Q3: 1.914519161 | R3: -0.1205193267 | S3: -0.5049177565 | T3: -2.465174951 | U3: -5.619491205 | V3: -8.812318743 | W3: -11.3145028 | X3: -12.3975532 | Y3: -13.65538996 | Z3: -17.32370709 | AA3: -18.21594675 | AB3: -17.54877462 | AC3: -19.67419474 | AD3: -22.79985945 | AE3: -23.73110978 | AF3: -25.03952163 | AG3: -27.58912911 | AH3: -31.25665348 | AI3: -31.52953851 | AJ3: -32.69417257 | AK3: -35.02898127 | AL3: -36.74902236 | AM3: -37.16081855 | AN3: -38.22169089 | AO3: -38.98561019 | AP3: -40.64866313 | AQ3: -41.60254479 | AR3: -42.48785114 | AS3: -43.56903049
A4: Átértékelődés és egyéb volumenhatás | B4: Revaluation and other changes in volume | C4: 0 | D4: -3.066228902 | E4: -2.04282267 | F4: 0.5328758216 | G4: 5.583493588 | H4: 0.3366066094 | I4: 1.093649856 | J4: 1.510884526 | K4: 2.522777566 | L4: 6.400436943 | M4: 4.845471708 | N4: 5.20943539 | O4: 3.857196186 | P4: 4.566398129 | Q4: 7.350236024 | R4: 7.419868133 | S4: 7.14763699 | T4: 8.269646827 | U4: 9.34084612 | V4: 11.12171103 | W4: 11.99845672 | X4: 11.57377742 | Y4: 12.10083406 | Z4: 12.63430401 | AA4: 13.92979788 | AB4: 15.57988368 | AC4: 16.31455533 | AD4: 17.73720352 | AE4: 19.14005954 | AF4: 18.7236579 | AG4: 18.88706681 | AH4: 19.00082698 | AI4: 18.80208066 | AJ4: 18.44576738 | AK4: 18.76123861 | AL4: 19.2115977 | AM4: 19.07194449 | AN4: 18.80751934 | AO4: 18.82467552 | AP4: 18.71121164 | AQ4: 18.19219372 | AR4: 17.70621369 | AS4: 18.02831263
A5: Nominális GDP változásának hatása | B5: Changes in the nominal amount of GDP | C5: 0 | D5: -0.885425151 | E5: -1.246322253 | F5: -1.698339402 | G5: -1.037916147 | H5: -0.3465590957 | I5: -0.04991118833 | J5: -0.07609263074 | K5: -0.1359375573 | L5: -0.4972352556 | M5: -1.239938129 | N5: -1.773207013 | O5: -2.260783133 | P5: -2.710579709 | Q5: -3.291240491 | R5: -3.854100392 | S5: -4.184479225 | T5: -4.471199549 | U5: -4.752980906 | V5: -4.702029956 | W5: -5.073989538 | X5: -5.681609418 | Y5: -6.23075545 | Z5: -6.811613567 | AA5: -7.454989873 | AB5: -8.115283032 | AC5: -8.887722583 | AD5: -9.534786884 | AE5: -9.881448396 | AF5: -10.24953738 | AG5: -10.58867471 | AH5: -11.2094254 | AI5: -11.3796889 | AJ5: -11.68026114 | AK5: -11.86059133 | AL5: -11.93942325 | AM5: -12.23633503 | AN5: -12.53768461 | AO5: -12.86051427 | AP5: -13.24365004 | AQ5: -13.49600389 | AR5: -13.75311722 | AS5: -13.99457307
A6: Nettó külső adósság | B6: Net external debt | C6: =+'16. adat'!C6 -> 48.31422574 | D6: =+'16. adat'!D6 -> 45.40759107 | E6: =+'16. adat'!E6 -> 48.42396269 | F6: =+'16. adat'!F6 -> 53.06668165 | G6: =+'16. adat'!G6 -> 60.50092079 | H6: =+'16. adat'!H6 -> 54.44874438 | I6: =+'16. adat'!I6 -> 54.9031226 | J6: =+'16. adat'!J6 -> 54.67299885 | K6: =+'16. adat'!K6 -> 55.64850639 | L6: =+'16. adat'!L6 -> 58.72729027 | M6: =+'16. adat'!M6 -> 56.46425009 | N6: =+'16. adat'!N6 -> 54.61617411 | O6: =+'16. adat'!O6 -> 53.09278546 | P6: =+'16. adat'!P6 -> 52.99323972 | Q6: =+'16. adat'!Q6 -> 54.28774043 | R6: =+'16. adat'!R6 -> 51.75947415 | S6: =+'16. adat'!S6 -> 50.77246574 | T6: =+'16. adat'!T6 -> 49.64749806 | U6: =+'16. adat'!U6 -> 47.28259975 | V6: =+'16. adat'!V6 -> 45.92158807 | W6: =+'16. adat'!W6 -> 43.92419012 | X6: =+'16. adat'!X6 -> 41.80884055 | Y6: =+'16. adat'!Y6 -> 40.52891438 | Z6: =+'16. adat'!Z6 -> 36.81320908 | AA6: =+'16. adat'!AA6 -> 36.57308699 | AB6: =+'16. adat'!AB6 -> 38.23005176 | AC6: =+'16. adat'!AC6 -> 36.06686375 | AD6: =+'16. adat'!AD6 -> 33.71678292 | AE6: =+'16. adat'!AE6 -> 33.84172711 | AF6: =+'16. adat'!AF6 -> 31.74882463 | AG6: =+'16. adat'!AG6 -> 29.02348873 | AH6: =+'16. adat'!AH6 -> 24.84897383 | AI6: =+'16. adat'!AI6 -> 24.20707898 | AJ6: =+'16. adat'!AJ6 -> 22.38544587 | AK6: =+'16. adat'!AK6 -> 20.18607808 | AL6: =+'16. adat'!AL6 -> 18.83756415 | AM6: =+'16. adat'!AM6 -> 17.98892943 | AN6: =+'16. adat'!AN6 -> 16.36174606 | AO6: =+'16. adat'!AO6 -> 15.29219324 | AP6: =+'16. adat'!AP6 -> 13.13254063 | AQ6: =+'16. adat'!AQ6 -> 11.32202161 | AR6: =+'16. adat'!AR6 -> 9.692105986 | AS6: =+'16. adat'!AS6 -> 8.697741849

Sheet 16. adat
C1: 2008. I. | D1: II. | E1: III. | F1: IV. | G1: 2009. I. | H1: II. | I1: III. | J1: IV. | K1: 2010. I. | L1: II. | M1: III. | N1: IV. | O1: 2011. I. | P1: II. | Q1: III. | R1: IV. | S1: 2012. I. | T1: II. | U1: III. | V1: IV. | W1: 2013. I. | X1: II. | Y1: III. | Z1: IV. | AA1: 2014. I. | AB1: II. | AC1: III. | AD1: IV. | AE1: 2015. I. | AF1: II. | AG1: III. | AH1: IV. | AI1: 2016. I. | AJ1: II. | AK1: III. | AL1: IV. | AM1: 2017. I. | AN1: II. | AO1: III. | AP1: IV. | AQ1: 2018. I. | AR1: II. | AS1: III.
C2: 2008 Q1 | D2: Q2 | E2: Q3 | F2: Q4 | G2: 2009 Q1 | H2: Q2 | I2: Q3 | J2: Q4 | K2: 2010 Q1 | L2: Q2 | M2: Q3 | N2: Q4 | O2: 2011 Q1 | P2: Q2 | Q2: Q3 | R2: Q4 | S2: 2012 Q1 | T2: Q2 | U2: Q3 | V2: Q4 | W2: 2013 Q1 | X2: Q2 | Y2: Q3 | Z2: Q4 | AA2: 2014 Q1 | AB2: Q2 | AC2: Q3 | AD2: Q4 | AE2: 2015 Q1 | AF2: Q2 | AG2: Q3 | AH2: Q4 | AI2: 2016 Q1 | AJ2: Q2 | AK2: Q3 | AL2: Q4 | AM2: 2017 Q1 | AN2: Q2 | AO2: Q3 | AP2: Q4 | AQ2: 2018 Q1 | AR2: Q2 | AS2: Q3
A3: Bankrendszer | B3: Banking sector | C3: 22.71695327 | D3: 22.05471146 | E3: 22.58347024 | F3: 29.09138972 | G3: 33.95201123 | H3: 26.9007241 | I3: 26.33732614 | J3: 26.42296511 | K3: 26.64761994 | L3: 28.67010757 | M3: 26.37193166 | N3: 23.59883216 | O3: 24.13563181 | P3: 23.83425455 | Q3: 23.4124322 | R3: 20.3054596 | S3: 19.20355537 | T3: 19.21289255 | U3: 16.37753947 | V3: 14.8435371 | W3: 15.06486992 | X3: 13.57433542 | Y3: 13.81791503 | Z3: 11.65044467 | AA3: 12.68656902 | AB3: 12.49235732 | AC3: 12.10413496 | AD3: 10.41200629 | AE3: 10.64871519 | AF3: 10.64949924 | AG3: 8.457734049 | AH3: 5.770298874 | AI3: 4.032993705 | AJ3: 1.841480397 | AK3: -0.08453718264 | AL3: -1.409867874 | AM3: -0.6326438467 | AN3: 0.3526905236 | AO3: -0.6173810034 | AP3: -0.4362280687 | AQ3: -1.022996435 | AR3: -0.9092622989 | AS3: -1.18334584
A4: Államháztartás | B4: General government | C4: 16.45763281 | D4: 15.67749788 | E4: 16.91077189 | F4: 14.1649359 | G4: 15.12048431 | H4: 16.63332397 | I4: 17.80323858 | J4: 16.57043696 | K4: 17.44048762 | L4: 16.78863098 | M4: 17.65440501 | N4: 18.48757733 | O4: 17.32644673 | P4: 18.1604207 | Q4: 19.6539299 | R4: 18.39576751 | S4: 19.0650705 | T4: 18.8244167 | U4: 20.74591207 | V4: 20.67058511 | W4: 17.23745346 | X4: 17.51395334 | Y4: 16.98020162 | Z4: 15.6908616 | AA4: 14.03630325 | AB4: 16.18516783 | AC4: 15.00945459 | AD4: 15.18855303 | AE4: 15.53081779 | AF4: 13.80948315 | AG4: 14.26374859 | AH4: 13.20742461 | AI4: 14.29241404 | AJ4: 15.06315384 | AK4: 16.27514688 | AL4: 16.15590249 | AM4: 15.50832347 | AN4: 13.77919828 | AO4: 14.02840663 | AP4: 11.97348358 | AQ4: 11.29704784 | AR4: 9.008508075 | AS4: 8.812278432
A5: Vállalat | B5: Corporate sector | C5: 9.139639658 | D5: 7.675381742 | E5: 8.929720565 | F5: 9.810356037 | G5: 11.42842525 | H5: 10.91469632 | I5: 10.76255789 | J5: 11.67959677 | K5: 11.56039883 | L5: 13.26855172 | M5: 12.43791342 | N5: 12.52976462 | O5: 11.63070692 | P5: 10.99856446 | Q5: 11.22137834 | R5: 13.05824704 | S5: 12.50383988 | T5: 11.61018881 | U5: 10.15914821 | V5: 10.40746586 | W5: 11.62186675 | X5: 10.72055179 | Y5: 9.730797735 | Z5: 9.471902819 | AA5: 9.850214724 | AB5: 9.552526613 | AC5: 8.953274193 | AD5: 8.116223603 | AE5: 7.662194126 | AF5: 7.289842241 | AG5: 6.302006087 | AH5: 5.871250348 | AI5: 5.881671236 | AJ5: 5.480811635 | AK5: 3.995468382 | AL5: 4.091529534 | AM5: 3.113249803 | AN5: 2.229857263 | AO5: 1.881167609 | AP5: 1.595285116 | AQ5: 1.04797021 | AR5: 1.592860209 | AS5: 1.068809257
A6: Nettó külső adósság | B6: Net external debt | C6: 48.31422574 | D6: 45.40759107 | E6: 48.42396269 | F6: 53.06668165 | G6: 60.50092079 | H6: 54.44874438 | I6: 54.9031226 | J6: 54.67299885 | K6: 55.64850639 | L6: 58.72729027 | M6: 56.46425009 | N6: 54.61617411 | O6: 53.09278546 | P6: 52.99323972 | Q6: 54.28774043 | R6: 51.75947415 | S6: 50.77246574 | T6: 49.64749806 | U6: 47.28259975 | V6: 45.92158807 | W6: 43.92419012 | X6: 41.80884055 | Y6: 40.52891438 | Z6: 36.81320908 | AA6: 36.57308699 | AB6: 38.23005176 | AC6: 36.06686375 | AD6: 33.71678292 | AE6: 33.84172711 | AF6: 31.74882463 | AG6: 29.02348873 | AH6: 24.84897383 | AI6: 24.20707898 | AJ6: 22.38544587 | AK6: 20.18607808 | AL6: 18.83756415 | AM6: 17.98892943 | AN6: 16.36174606 | AO6: 15.29219324 | AP6: 13.13254063 | AQ6: 11.32202161 | AR6: 9.692105986 | AS6: 8.697741849
A7: Bruttó külső adósság (jobb tengely) | B7: Gross external debt (r.h.s.) | C7: 84.04497778 | D7: 79.85308679 | E7: 86.56154775 | F7: 97.186406 | G7: 117.7905995 | H7: 105.944405 | I7: 108.7023416 | J7: 108.6687263 | K7: 112.0126912 | L7: 120.5476428 | M7: 113.8291851 | N7: 112.0315832 | O7: 108.0176192 | P7: 108.5375199 | Q7: 116.4807124 | R7: 115.4238091 | S7: 106.9892233 | T7: 103.6525269 | U7: 100.1113773 | V7: 98.85962702 | W7: 100.1950395 | X7: 94.60371481 | Y7: 89.44090981 | Z7: 87.80150519 | AA7: 90.12481794 | AB7: 90.19088465 | AC7: 87.09676644 | AD7: 84.81912134 | AE7: 85.49102765 | AF7: 84.16538088 | AG7: 78.91162453 | AH7: 74.98752659 | AI7: 73.61115554 | AJ7: 72.16655629 | AK7: 68.65050152 | AL7: 68.52115582 | AM7: 68.258067 | AN7: 66.14374276 | AO7: 63.79795739 | AP7: 60.41285726 | AQ7: 58.97929591 | AR7: 60.03491154 | AS7: 58.02591015

Sheet 17. adat
C1: 2008. I. | D1: II. | E1: III. | F1: IV. | G1: 2009. I. | H1: II. | I1: III. | J1: IV. | K1: 2010. I. | L1: II. | M1: III. | N1: IV. | O1: 2011. I. | P1: II. | Q1: III. | R1: IV. | S1: 2012. I. | T1: II. | U1: III. | V1: IV. | W1: 2013. I. | X1: II. | Y1: III. | Z1: IV. | AA1: 2014. I. | AB1: II. | AC1: III. | AD1: IV. | AE1: 2015.I. | AF1: II. | AG1: III. | AH1: IV. | AI1: 2016.I. | AJ1: II. | AK1: III. | AL1: IV. | AM1: 2017.I. | AN1: II. | AO1: III. | AP1: IV. | AQ1: 2018.I. | AR1: II. | AS1: III.
C2: 2008 Q1 | D2: Q2 | E2: Q3 | F2: Q4 | G2: 2009 Q1 | H2: Q2 | I2: Q3 | J2: Q4 | K2: 2010 Q1 | L2: Q2 | M2: Q3 | N2: Q4 | O2: 2011 Q1 | P2: Q2 | Q2: Q3 | R2: Q4 | S2: 2012 Q1 | T2: Q2 | U2: Q3 | V2: Q4 | W2: 2013 Q1 | X2: Q2 | Y2: Q3 | Z2: Q4 | AA2: 2014 Q1 | AB2: Q2 | AC2: Q3 | AD2: Q4 | AE2: 2015 Q1 | AF2: Q2 | AG2: Q3 | AH2: Q4 | AI2: 2016 Q1 | AJ2: Q2 | AK2: Q3 | AL2: Q4 | AM2: 2017 Q1 | AN2: Q2 | AO2: Q3 | AP2: Q4 | AQ2: 2018 Q1 | AR2: Q2 | AS2: Q3
A3: Bankok külföldi eszközei | B3: Foreign assets of banks | C3: 11.37620385 | D3: 11.17170802 | E3: 13.5971274 | F3: 12.44991521 | G3: 14.80917209 | H3: 13.99680178 | I3: 12.93637746 | J3: 13.13001302 | K3: 13.04052101 | L3: 14.18280178 | M3: 13.34832529 | N3: 12.45137477 | O3: 11.18987562 | P3: 10.59353887 | Q3: 11.74346244 | R3: 12.18750371 | S3: 11.17945702 | T3: 9.358501187 | U3: 9.074822277 | V3: 8.677610801 | W3: 9.464046291 | X3: 8.297415806 | Y3: 7.624894072 | Z3: 7.454275875 | AA3: 7.109401222 | AB3: 6.042151413 | AC3: 6.043991174 | AD3: 7.237277833 | AE3: 7.235406535 | AF3: 7.902927457 | AG3: 7.715857817 | AH3: 9.652352647 | AI3: 11.20121294 | AJ3: 13.61232249 | AK3: 14.3555093 | AL3: 15.27413348 | AM3: 15.70636607 | AN3: 15.43660539 | AO3: 16.15230938 | AP3: 14.77461516 | AQ3: 15.1727591 | AR3: 15.41030117 | AS3: 15.51437828
A4: Bankok külföldi tartozása | B4: External debt of banks | C4: 34.09315713 | D4: 33.22641947 | E4: 36.18059764 | F4: 41.54130493 | G4: 48.76118332 | H4: 40.89752588 | I4: 39.2737036 | J4: 39.55297813 | K4: 39.68814095 | L4: 42.85290935 | M4: 39.72025695 | N4: 36.05020693 | O4: 35.32550743 | P4: 34.42779342 | Q4: 35.15589464 | R4: 32.49296331 | S4: 30.38301239 | T4: 28.57139374 | U4: 25.45236175 | V4: 23.5211479 | W4: 24.52891621 | X4: 21.87175123 | Y4: 21.4428091 | Z4: 19.10472054 | AA4: 19.79597024 | AB4: 18.53450873 | AC4: 18.14812614 | AD4: 17.64928412 | AE4: 17.88412172 | AF4: 18.5524267 | AG4: 16.17359187 | AH4: 15.42265152 | AI4: 15.23420665 | AJ4: 15.45380289 | AK4: 14.27097211 | AL4: 13.86426561 | AM4: 15.07372223 | AN4: 15.78929592 | AO4: 15.53492838 | AP4: 14.33838709 | AQ4: 14.14976267 | AR4: 14.50103887 | AS4: 14.33103244
A5: Bankok nettó külső adóssága | B5: Bank net external debt | C5: 22.71695327 | D5: 22.05471146 | E5: 22.58347024 | F5: 29.09138972 | G5: 33.95201123 | H5: 26.9007241 | I5: 26.33732614 | J5: 26.42296511 | K5: 26.64761994 | L5: 28.67010757 | M5: 26.37193166 | N5: 23.59883216 | O5: 24.13563181 | P5: 23.83425455 | Q5: 23.4124322 | R5: 20.3054596 | S5: 19.20355537 | T5: 19.21289255 | U5: 16.37753947 | V5: 14.8435371 | W5: 15.06486992 | X5: 13.57433542 | Y5: 13.81791503 | Z5: 11.65044467 | AA5: 12.68656902 | AB5: 12.49235732 | AC5: 12.10413496 | AD5: 10.41200629 | AE5: 10.64871519 | AF5: 10.64949924 | AG5: 8.457734049 | AH5: 5.770298874 | AI5: 4.032993705 | AJ5: 1.841480397 | AK5: -0.08453718264 | AL5: -1.409867874 | AM5: -0.6326438467 | AN5: 0.3526905236 | AO5: -0.6173810034 | AP5: -0.4362280687 | AQ5: -1.022996435 | AR5: -0.9092622989 | AS5: -1.18334584

Sheet 18. adat
C1: 2008. I. | D1: II. | E1: III. | F1: IV. | G1: 2009. I. | H1: II. | I1: III. | J1: IV. | K1: 2010. I. | L1: II. | M1: III. | N1: IV. | O1: 2011. I. | P1: II. | Q1: III. | R1: IV. | S1: 2012. I. | T1: II. | U1: III. | V1: IV. | W1: 2013. I. | X1: II. | Y1: III. | Z1: IV. | AA1: 2014. I. | AB1: II. | AC1: III. | AD1: IV. | AE1: 2015.I. | AF1: II. | AG1: III. | AH1: IV. | AI1: 2016.I. | AJ1: II. | AK1: III. | AL1: IV. | AM1: 2017.I. | AN1: II. | AO1: III. | AP1: IV. | AQ1: 2018.I. | AR1: II. | AS1: III.
C2: 2008 Q1 | D2: Q2 | E2: Q3 | F2: Q4 | G2: 2009 Q1 | H2: Q2 | I2: Q3 | J2: Q4 | K2: 2010 Q1 | L2: Q2 | M2: Q3 | N2: Q4 | O2: 2011 Q1 | P2: Q2 | Q2: Q3 | R2: Q4 | S2: 2012 Q1 | T2: Q2 | U2: Q3 | V2: Q4 | W2: 2013 Q1 | X2: Q2 | Y2: Q3 | Z2: Q4 | AA2: 2014 Q1 | AB2: Q2 | AC2: Q3 | AD2: Q4 | AE2: 2015 Q1 | AF2: Q2 | AG2: Q3 | AH2: Q4 | AI2: 2016 Q1 | AJ2: Q2 | AK2: Q3 | AL2: Q4 | AM2: 2017 Q1 | AN2: Q2 | AO2: Q3 | AP2: Q4 | AQ2: 2018 Q1 | AR2: Q2 | AS2: Q3
A3: Bankrendszer | B3: Banking sector | C3: 12.63782326 | D3: 14.86765694 | E3: 15.68842135 | F3: 18.50153457 | G3: 19.95740808 | H3: 18.57788772 | I3: 18.14299037 | J3: 18.47125309 | K3: 19.91519735 | L3: 21.44106154 | M3: 21.80297033 | N3: 18.46503942 | O3: 18.56918717 | P3: 17.76511183 | Q3: 18.6567327 | R3: 14.99837693 | S3: 15.35763172 | T3: 13.81431686 | U3: 11.95663496 | V3: 10.19604517 | W3: 11.55607289 | X3: 11.39840505 | Y3: 11.2722472 | Z3: 10.09836002 | AA3: 10.28450065 | AB3: 9.620130518 | AC3: 9.945051652 | AD3: 8.928396635 | AE3: 9.699183389 | AF3: 10.39803756 | AG3: 8.211360415 | AH3: 7.957930392 | AI3: 7.101729127 | AJ3: 7.079183446 | AK3: 6.261771672 | AL3: 5.281154967 | AM3: 7.084460447 | AN3: 6.766805729 | AO3: 6.816480993 | AP3: 5.813021475 | AQ3: 6.259804538 | AR3: 5.8749561 | AS3: 6.120599516
A4: Vállalatok | B4: Corporate sector | C4: 4.082893374 | D4: 5.614388337 | E4: 6.009968109 | F4: 5.135052257 | G4: 5.044022266 | H4: 5.429614471 | I4: 5.748548847 | J4: 6.190487113 | K4: 6.069219818 | L4: 7.013693697 | M4: 6.876870714 | N4: 7.057780085 | O4: 7.158528973 | P4: 6.787513365 | Q4: 6.487034557 | R4: 6.753022571 | S4: 6.770302537 | T4: 6.026562856 | U4: 6.132930787 | V4: 5.827159332 | W4: 6.432963789 | X4: 6.650671419 | Y4: 6.047586753 | Z4: 7.123304886 | AA4: 7.479296565 | AB4: 7.701332189 | AC4: 6.710859016 | AD4: 7.081808545 | AE4: 7.862113324 | AF4: 7.579733953 | AG4: 7.404847444 | AH4: 7.200940863 | AI4: 7.903863343 | AJ4: 8.044877879 | AK4: 7.806016227 | AL4: 8.071043986 | AM4: 8.331109188 | AN4: 7.609183268 | AO4: 7.597607888 | AP4: 7.210476399 | AQ4: 7.634221985 | AR4: 8.004307872 | AS4: 7.764132275
A5: Államháztartás | B5: General government | C5: 5.475218152 | D5: 5.750313576 | E5: 6.665317896 | F5: 5.915122578 | G5: 5.704145123 | H5: 6.035075423 | I5: 6.75552478 | J5: 6.23105264 | K5: 7.140971452 | L5: 8.354862233 | M5: 7.654197979 | N5: 12.42417202 | O5: 7.873758872 | P5: 9.743637143 | Q5: 13.61424226 | R5: 15.03280491 | S5: 14.72855739 | T5: 14.28347702 | U5: 13.43589266 | V5: 12.53449958 | W5: 10.38674818 | X5: 10.43403185 | Y5: 9.358749464 | Z5: 11.08068623 | AA5: 11.04198171 | AB5: 9.760570274 | AC5: 7.729174135 | AD5: 5.523936947 | AE5: 5.834091774 | AF5: 6.419853863 | AG5: 6.873155828 | AH5: 6.569640981 | AI5: 5.727786614 | AJ5: 4.684738988 | AK5: 4.347221805 | AL5: 5.252964041 | AM5: 5.15727166 | AN5: 5.587944945 | AO5: 4.466739149 | AP5: 3.767132075 | AQ5: 4.04006043 | AR5: 4.834098862 | AS5: 4.272583839
A6: Rövid lejáratú külső adósság | B6: Short-term external debt | C6: 22.19593478 | D6: 26.23235885 | E6: 28.36370736 | F6: 29.5517094 | G6: 30.70557547 | H6: 30.04257761 | I6: 30.647064 | J6: 30.89279285 | K6: 33.12538862 | L6: 36.80961747 | M6: 36.33403902 | N6: 37.94699152 | O6: 33.60147502 | P6: 34.29626234 | Q6: 38.75800952 | R6: 36.78420441 | S6: 36.85649165 | T6: 34.12435674 | U6: 31.5254584 | V6: 28.55770408 | W6: 28.37578486 | X6: 28.48310832 | Y6: 26.67858341 | Z6: 28.30235113 | AA6: 28.80577892 | AB6: 27.08203298 | AC6: 24.3850848 | AD6: 21.53414213 | AE6: 23.39538849 | AF6: 24.39762538 | AG6: 22.48936369 | AH6: 21.72851224 | AI6: 20.73337908 | AJ6: 19.80880031 | AK6: 18.4150097 | AL6: 18.60516299 | AM6: 20.57284129 | AN6: 19.96393394 | AO6: 18.88082803 | AP6: 16.79062995 | AQ6: 17.93408695 | AR6: 18.71336283 | AS6: 18.15731563

Sheet 19. adat
C1: 2008. I. | D1: II. | E1: III. | F1: IV. | G1: 2009. I. | H1: II. | I1: III. | J1: IV. | K1: 2010. I. | L1: II. | M1: III. | N1: IV. | O1: 2011. I. | P1: II. | Q1: III. | R1: IV. | S1: 2012. I. | T1: II. | U1: III. | V1: IV. | W1: 2013. I. | X1: II. | Y1: III. | Z1: IV. | AA1: 2014. I. | AB1: II. | AC1: III. | AD1: IV. | AE1: 2015.I. | AF1: II. | AG1: III. | AH1: IV. | AI1: 2016.I. | AJ1: II. | AK1: III. | AL1: IV. | AM1: 2017.I. | AN1: II. | AO1: III. | AP1: IV. | AQ1: 2018.I. | AR1: II. | AS1: III.
C2: 2008 Q1 | D2: Q2 | E2: Q3 | F2: Q4 | G2: 2009 Q1 | H2: Q2 | I2: Q3 | J2: Q4 | K2: 2010 Q1 | L2: Q2 | M2: Q3 | N2: Q4 | O2: 2011 Q1 | P2: Q2 | Q2: Q3 | R2: Q4 | S2: 2012 Q1 | T2: Q2 | U2: Q3 | V2: Q4 | W2: 2013 Q1 | X2: Q2 | Y2: Q3 | Z2: Q4 | AA2: 2014 Q1 | AB2: Q2 | AC2: Q3 | AD2: Q4 | AE2: 2015 Q1 | AF2: Q2 | AG2: Q3 | AH2: Q4 | AI2: 2016 Q1 | AJ2: Q2 | AK2: Q3 | AL2: Q4 | AM2: 2017 Q1 | AN2: Q2 | AO2: Q3 | AP2: Q4 | AQ2: 2018 Q1 | AR2: Q2 | AS2: Q3
A3: Guidotti-Greenspan mutató* | B3: Guidotti-Greenspan rule* | C3: =+'18. adat'!C6 -> 22.19593478 | D3: =+'18. adat'!D6 -> 26.23235885 | E3: =+'18. adat'!E6 -> 28.36370736 | F3: =+'18. adat'!F6 -> 29.5517094 | G3: =+'18. adat'!G6 -> 30.70557547 | H3: =+'18. adat'!H6 -> 30.04257761 | I3: =+'18. adat'!I6 -> 30.647064 | J3: =+'18. adat'!J6 -> 30.89279285 | K3: =+'18. adat'!K6 -> 33.12538862 | L3: =+'18. adat'!L6 -> 36.80961747 | M3: =+'18. adat'!M6 -> 36.33403902 | N3: =+'18. adat'!N6 -> 37.94699152 | O3: =+'18. adat'!O6 -> 33.60147502 | P3: =+'18. adat'!P6 -> 34.29626234 | Q3: =+'18. adat'!Q6 -> 38.75800952 | R3: =+'18. adat'!R6 -> 36.78420441 | S3: =+'18. adat'!S6 -> 36.85649165 | T3: =+'18. adat'!T6 -> 34.12435674 | U3: =+'18. adat'!U6 -> 31.5254584 | V3: =+'18. adat'!V6 -> 28.55770408 | W3: =+'18. adat'!W6 -> 28.37578486 | X3: =+'18. adat'!X6 -> 28.48310832 | Y3: =+'18. adat'!Y6 -> 26.67858341 | Z3: =+'18. adat'!Z6 -> 28.30235113 | AA3: =+'18. adat'!AA6 -> 28.80577892 | AB3: =+'18. adat'!AB6 -> 27.08203298 | AC3: =+'18. adat'!AC6 -> 24.3850848 | AD3: =+'18. adat'!AD6 -> 21.53414213 | AE3: =+'18. adat'!AE6 -> 23.39538849 | AF3: =+'18. adat'!AF6 -> 24.39762538 | AG3: =+'18. adat'!AG6 -> 22.48936369 | AH3: =+'18. adat'!AH6 -> 21.72851224 | AI3: =+'18. adat'!AI6 -> 20.73337908 | AJ3: =+'18. adat'!AJ6 -> 19.80880031 | AK3: =+'18. adat'!AK6 -> 18.4150097 | AL3: =+'18. adat'!AL6 -> 18.60516299 | AM3: =+'18. adat'!AM6 -> 20.57284129 | AN3: =+'18. adat'!AN6 -> 19.96393394 | AO3: =+'18. adat'!AO6 -> 18.88082803 | AP3: =+'18. adat'!AP6 -> 16.79062995 | AQ3: =+'18. adat'!AQ6 -> 17.93408695 | AR3: =+'18. adat'!AR6 -> 18.71336283 | AS3: =+'18. adat'!AS6 -> 18.15731563
A4: Tartalékszint | B4: FX reserves | C4: 16.81537324 | D4: 17.28992082 | E4: 17.40914956 | F4: 24.04009649 | G4: 27.88961191 | H4: 26.94976908 | I4: 30.60275625 | J4: 30.67650301 | K4: 33.85242138 | L4: 35.17362834 | M4: 33.67591276 | N4: 33.67448431 | O4: 35.69202165 | P4: 37.00251761 | Q4: 38.7636657 | R4: 37.77449579 | S4: 34.69650987 | T4: 35.5752599 | U4: 34.57673155 | V4: 33.8813192 | W4: 35.46686275 | X4: 34.32914031 | Y4: 30.81512803 | Z4: 33.78247466 | AA4: 36.19651417 | AB4: 36.0799795 | AC4: 35.68395666 | AD4: 34.57827878 | AE4: 36.90773064 | AF4: 34.76098397 | AG4: 32.12660501 | AH4: 30.32211967 | AI4: 27.55099135 | AJ4: 24.78480781 | AK4: 23.66056631 | AL4: 24.38385785 | AM4: 24.39832914 | AN4: 23.46126139 | AO4: 22.2259414 | AP4: 23.3679393 | AQ4: 23.0585561 | AR4: 24.06100634 | AS4: 23.72673933

Sheet 20. adat
C1: 2006. I. | D1: II. | E1: III. | F1: IV. | G1: 2007. I. | H1: II. | I1: III. | J1: IV. | K1: 2008. I. | L1: II. | M1: III. | N1: IV. | O1: 2009. I. | P1: II. | Q1: III. | R1: IV. | S1: 2010. I. | T1: II. | U1: III. | V1: IV. | W1: 2011. I. | X1: II. | Y1: III. | Z1: IV. | AA1: 2012. I. | AB1: II. | AC1: III. | AD1: IV. | AE1: 2013. I. | AF1: II. | AG1: III. | AH1: IV. | AI1: 2014. I. | AJ1: II. | AK1: III. | AL1: IV. | AM1: 2015.I. | AN1: II. | AO1: III. | AP1: IV. | AQ1: 2016.I. | AR1: II. | AS1: III. | AT1: IV. | AU1: 2017.I. | AV1: II. | AW1: III. | AX1: IV. | AY1: 2018. I. | AZ1: II. | BA1: III.
C2: 2006 Q1 | D2: Q2 | E2: Q3 | F2: Q4 | G2: 2007 Q1 | H2: Q2 | I2: Q3 | J2: Q4 | K2: 2008 Q1 | L2: Q2 | M2: Q3 | N2: Q4 | O2: 2009 Q1 | P2: Q2 | Q2: Q3 | R2: Q4 | S2: 2010 Q1 | T2: Q2 | U2: Q3 | V2: Q4 | W2: 2011 Q1 | X2: Q2 | Y2: Q3 | Z2: Q4 | AA2: 2012 Q1 | AB2: Q2 | AC2: Q3 | AD2: Q4 | AE2: 2013 Q1 | AF2: Q2 | AG2: Q3 | AH2: Q4 | AI2: 2014 Q1 | AJ2: Q2 | AK2: Q3 | AL2: Q4 | AM2: 2015 Q1 | AN2: Q2 | AO2: Q3 | AP2: Q4 | AQ2: 2016 Q1 | AR2: Q2 | AS2: Q3 | AT2: Q4 | AU2: 2017 Q1 | AV2: Q2 | AW2: Q3 | AX2: Q4 | AY2: 2018 Q1 | AZ2: Q2 | BA2: Q3
A3: Államháztartás | B3: General government | C3: -8.583134854 | D3: -8.448951027 | E3: -8.489695799 | F3: -9.321277366 | G3: -7.866196896 | H3: -6.469728846 | I3: -6.185783382 | J3: -4.780812964 | K3: -3.614080072 | L3: -3.465274757 | M3: -2.667118143 | N3: -3.365471987 | O3: -4.260458765 | P3: -4.568306683 | Q3: -5.737099909 | R3: -4.523401751 | S3: -4.595551601 | T3: -5.514659268 | U3: -4.769055173 | V3: -4.477527842 | W3: -4.232068264 | X3: -3.914105633 | Y3: -4.377542485 | Z3: -5.385827024 | AA3: -4.694039001 | AB3: -3.958678399 | AC3: -3.338884478 | AD3: -2.511140658 | AE3: -2.438154057 | AF3: -2.452337469 | AG3: -2.703973162 | AH3: -2.49929624 | AI3: -2.784509853 | AJ3: -3.109250267 | AK3: -2.575067139 | AL3: -2.602762067 | AM3: -2.430575647 | AN3: -1.928518969 | AO3: -2.065284363 | AP3: -1.987070792 | AQ3: -0.7284654781 | AR3: -0.4233688417 | AS3: 0.1246220177 | AT3: -1.705812221 | AU3: -1.507529783 | AV3: -1.51529048 | AW3: -2.487412939 | AX3: -2.240160146 | AY3: -3.030233988 | AZ3: -3.16010609 | BA3: -2.238932103
A4: Háztartás | B4: Household sector | C4: 3.58607542 | D4: 3.349946677 | E4: 3.556731391 | F4: 3.30889713 | G4: 2.637325712 | H4: 2.147524908 | I4: 1.884310072 | J4: 1.697150966 | K4: 1.526222402 | L4: 1.235126988 | M4: 0.7387919779 | N4: 1.174260296 | O4: 2.159675355 | P4: 2.850293048 | Q4: 3.828278378 | R4: 3.655630942 | S4: 3.599802824 | T4: 4.545370555 | U4: 4.841564729 | V4: 4.506593467 | W4: 4.595608906 | X4: 4.279298473 | Y4: 4.136776827 | Z4: 5.262629439 | AA4: 5.019277722 | AB4: 5.257344429 | AC4: 5.653278462 | AD4: 5.231224252 | AE4: 5.340571202 | AF4: 5.302878907 | AG4: 4.91319405 | AH4: 4.877355654 | AI4: 5.266907856 | AJ4: 5.367549071 | AK4: 5.579902781 | AL4: 5.431488723 | AM4: 6.969516018 | AN4: 7.296766443 | AO4: 7.700517806 | AP4: 7.95151192 | AQ4: 6.108719957 | AR4: 5.778523219 | AS4: 5.078307602 | AT4: 4.699293171 | AU4: 4.455113028 | AV4: 4.499972147 | AW4: 4.651532019 | AX4: 5.195176706 | AY4: 5.708644867 | AZ4: 5.864047655 | BA4: 6.16742036
A5: Vállalat | B5: Corporate sector | C5: =+C6-C4-C3 -> -4.817838633 | D5: -4.421590211 | E5: -4.563402116 | F5: -2.553670561 | G5: -2.553984254 | H5: -3.492383815 | I5: -2.086323601 | J5: -3.311154102 | K5: -4.770399276 | L5: -4.353193279 | M5: -5.860828528 | N5: -6.149352017 | O5: -3.987341558 | P5: -1.34552223 | Q5: 0.67792263 | R5: 1.480299303 | S5: 2.266174996 | T5: 1.499699966 | U5: 0.8321461113 | V5: 1.208153265 | W5: 0.4127391868 | X5: -0.1870569744 | Y5: 0.6262099787 | Z5: 0.9617539095 | AA5: 0.3030963029 | AB5: 1.202673547 | AC5: 1.840335414 | AD5: 2.147143529 | AE5: 3.81223746 | AF5: 3.569360998 | AG5: 4.092838821 | AH5: 3.942166946 | AI5: 2.454145561 | AJ5: 1.734258523 | AK5: 0.4845007623 | AL5: 1.331534381 | AM5: 0.3286473079 | AN5: 0.5140637437 | AO5: 0.2257332821 | AP5: 0.2505512932 | AQ5: 0.6048874625 | AR5: 0.8839820818 | AS5: 0.681706338 | AT5: 0.5896556146 | AU5: -0.1808427153 | AV5: -0.1448393814 | AW5: -0.6791046489 | AX5: -1.028796368 | AY5: -0.1727539278 | AZ5: -1.238855636 | BA5: =+BA6-BA4-BA3 -> -2.266428767
A6: Külső finanszírozási képesség (finanszírozás alapján) | B6: Net lending (from the financial account side) | C6: -9.814898067 | D6: -9.520594561 | E6: -9.496366524 | F6: -8.566050796 | G6: -7.782855438 | H6: -7.814587753 | I6: -6.387796911 | J6: -6.3948161 | K6: -6.858256946 | L6: -6.583341048 | M6: -7.789154692 | N6: -8.340563709 | O6: -6.088124968 | P6: -3.063535865 | Q6: -1.230898901 | R6: 0.6125284937 | S6: 1.27042622 | T6: 0.5304112533 | U6: 0.9046556672 | V6: 1.237218891 | W6: 0.7762798289 | X6: 0.1781358653 | Y6: 0.3854443209 | Z6: 0.8385563246 | AA6: 0.6283350243 | AB6: 2.501339578 | AC6: 4.154729398 | AD6: 4.867227123 | AE6: 6.714654605 | AF6: 6.419902437 | AG6: 6.302059709 | AH6: 6.32022636 | AI6: 4.936543565 | AJ6: 3.992557328 | AK6: 3.489336404 | AL6: 4.160261036 | AM6: 4.867587679 | AN6: 5.882311218 | AO6: 5.860966725 | AP6: 6.214992422 | AQ6: 5.985141941 | AR6: 6.239136459 | AS6: 5.884635957 | AT6: 3.583136564 | AU6: 2.76674053 | AV6: 2.839842285 | AW6: 1.485014431 | AX6: 1.926220192 | AY6: 2.505656951 | AZ6: 1.465085929 | BA6: 1.66205949

Sheet 21. adat
C1: 2006.I. | D1: II. | E1: III. | F1: IV. | G1: 2007.I. | H1: II. | I1: III. | J1: IV. | K1: 2008.I. | L1: II. | M1: III. | N1: IV. | O1: 2009.I. | P1: II. | Q1: III. | R1: IV. | S1: 2010.I. | T1: II. | U1: III. | V1: IV. | W1: 2011.I. | X1: II. | Y1: III. | Z1: IV. | AA1: 2012.I. | AB1: II. | AC1: III. | AD1: IV. | AE1: 2013.I. | AF1: II. | AG1: III. | AH1: IV. | AI1: 2014.I. | AJ1: II. | AK1: III. | AL1: IV. | AM1: 2015.I. | AN1: II. | AO1: III. | AP1: IV. | AQ1: 2016.I. | AR1: II. | AS1: III. | AT1: IV. | AU1: 2017.I. | AV1: II. | AW1: III. | AX1: IV. | AY1: 2018. I. | AZ1: II. | BA1: III.
C2: 2006 Q1 | D2: Q4 | E2: Q1 | F2: Q2 | G2: 2007 Q1 | H2: Q3 | I2: Q4 | J2: Q1 | K2: 2008 Q1 | L2: Q2 | M2: Q3 | N2: Q4 | O2: 2009 Q1 | P2: Q2 | Q2: Q3 | R2: Q4 | S2: 2010 Q1 | T2: Q2 | U2: Q3 | V2: Q4 | W2: 2011 Q1 | X2: Q2 | Y2: Q3 | Z2: Q4 | AA2: 2012 Q1 | AB2: Q2 | AC2: Q3 | AD2: Q4 | AE2: 2013 Q1 | AF2: Q2 | AG2: Q3 | AH2: Q4 | AI2: 2014 Q1 | AJ2: Q2 | AK2: Q3 | AL2: Q4 | AM2: 2015 Q1 | AN2: Q2 | AO2: Q3 | AP2: Q4 | AQ2: 2016 Q1 | AR2: Q2 | AS2: Q3 | AT2: Q4 | AU2: 2017 Q1 | AV2: Q2 | AW2: Q3 | AX2: Q4 | AY2: 2018 Q1 | AZ2: Q2 | BA2: Q3
A3: Nettó finanszírozási képesség | B3: Net lending | C3: 3.089417692 | D3: 2.013051232 | E3: 2.46884876 | F3: 1.406163756 | G3: 1.932839731 | H3: 1.096719879 | I3: 1.770657955 | J3: 1.048407432 | K3: 0.9891194761 | L3: 1.688252559 | M3: 1.193668076 | N3: 3.24142876 | O3: 3.34463998 | P3: 2.984551178 | Q3: 3.751306711 | R3: 3.745662192 | S3: 2.781886418 | T3: 5.130045396 | U3: 4.115303973 | V3: 4.287992317 | W3: 5.39423138 | X3: 4.041469534 | Y3: 4.704633645 | Z3: 4.576332006 | AA3: 4.127552018 | AB3: 4.948392497 | AC3: 4.954852563 | AD3: 5.150163018 | AE3: 4.959369052 | AF3: 5.1539847 | AG3: 4.757948919 | AH3: 5.311845514 | AI3: 5.155726063 | AJ3: 5.170342799 | AK3: 5.294107508 | AL3: 4.784477448 | AM3: 5.78696394 | AN3: 5.042542951 | AO3: 6.031631336 | AP3: 5.276612442 | AQ3: 5.541364958 | AR3: 5.085642073 | AS3: 4.58827562 | AT3: 4.691598088 | AU3: 4.250436233 | AV3: 5.302202135 | AW3: 5.112315601 | AX3: 5.913882301 | AY3: 6.078246627 | AZ3: 6.119952531 | BA3: 6.277061672
A4: Követelés | B4: Assets | C4: 8.521738422 | D4: 8.018619126 | E4: 7.989256428 | F4: 6.950165536 | G4: 7.704861159 | H4: 6.844458308 | I4: 7.587411932 | J4: 6.982490261 | K4: 6.184232965 | L4: 6.478117144 | M4: 6.369726852 | N4: 7.386624323 | O4: 4.494422278 | P4: 2.196462236 | Q4: 3.696777304 | R4: 3.744257716 | S4: 2.513196935 | T4: 3.965870394 | U4: 3.365620882 | V4: 2.883630542 | W4: 4.27615889 | X4: 2.662911354 | Y4: 3.123489239 | Z4: 3.208440029 | AA4: 1.977437133 | AB4: 3.412175309 | AC4: 3.172627104 | AD4: 3.479086691 | AE4: 3.634010864 | AF4: 3.527097665 | AG4: 3.543985546 | AH4: 3.777930586 | AI4: 4.188015847 | AJ4: 4.156986408 | AK4: 4.373205926 | AL4: 3.99038137 | AM4: 4.723927558 | AN4: 3.922414678 | AO4: 4.599092558 | AP4: 4.468113979 | AQ4: 4.255394104 | AR4: 4.96858262 | AS4: 4.510488833 | AT4: 5.074561377 | AU4: 4.932184374 | AV4: 5.133385886 | AW4: 5.102538589 | AX4: 7.011326409 | AY4: 7.033310059 | AZ4: 6.831363149 | BA4: 6.901215689
A5: Tartozás | B5: Liabilities | C5: 4.906723073 | D5: 5.409928805 | E5: 5.306066897 | F5: 5.246212521 | G5: 5.647448108 | H5: 5.872977007 | I5: 6.061719153 | J5: 6.000521548 | K5: 5.642476984 | L5: 5.539566989 | M5: 5.768878393 | N5: 3.443760549 | O5: 0.3569317542 | P5: 0.2531033431 | Q5: -0.2152975117 | R5: -0.2186029439 | S5: -0.3345531511 | T5: -1.044327564 | U5: -0.9886877958 | V5: -1.252684467 | W5: -1.455302248 | X5: -1.231308326 | Y5: -1.358789807 | Z5: -1.390657145 | AA5: -1.508369381 | AB5: -1.506710912 | AC5: -1.736457212 | AD5: -1.557725038 | AE5: -1.522128841 | AF5: -1.493520242 | AG5: -1.290348987 | AH5: -1.546058003 | AI5: -1.030997042 | AJ5: -1.006674895 | AK5: -0.8352428369 | AL5: -0.6997104554 | AM5: -1.08663235 | AN5: -1.226541081 | AO5: -1.246119939 | AP5: -1.257751254 | AQ5: -0.6862015455 | AR5: 0.07228828054 | AS5: 0.4021722978 | AT5: 1.370294763 | AU5: 0.8362529084 | AV5: 0.4633016518 | AW5: 0.6018247623 | AX5: 0.1845377777 | AY5: 0.623925405 | AZ5: 0.9192844808 | BA5: 0.9383807294

Sheet 22. adat
A1: Tranzakciók | C1: 2008.I. | D1: II. | E1: III. | F1: IV. | G1: 2009.I. | H1: II. | I1: III. | J1: IV. | K1: 2010.I. | L1: II. | M1: III. | N1: IV. | O1: 2011.I. | P1: II. | Q1: III. | R1: IV. | S1: 2012.I. | T1: II. | U1: III. | V1: IV. | W1: 2013.I. | X1: II. | Y1: III. | Z1: IV. | AA1: 2014.I. | AB1: II. | AC1: III. | AD1: IV. | AE1: 2015.I. | AF1: II. | AG1: III. | AH1: IV. | AI1: 2016.I. | AJ1: II. | AK1: III. | AL1: IV. | AM1: 2017.I. | AN1: II. | AO1: III. | AP1: IV. | AQ1: 2018. I. | AR1: II. | AS1: III.
C2: 2008 Q1 | D2: Q2 | E2: Q3 | F2: Q4 | G2: 2009 Q1 | H2: Q2 | I2: Q3 | J2: Q4 | K2: 2010 Q1 | L2: Q2 | M2: Q3 | N2: Q4 | O2: 2011 Q1 | P2: Q2 | Q2: Q3 | R2: Q4 | S2: 2012 Q1 | T2: Q2 | U2: Q3 | V2: Q4 | W2: 2013 Q1 | X2: Q2 | Y2: Q3 | Z2: Q4 | AA2: 2014 Q1 | AB2: Q2 | AC2: Q3 | AD2: Q4 | AE2: 2015 Q1 | AF2: Q2 | AG2: Q3 | AH2: Q4 | AI2: 2016 Q1 | AJ2: Q2 | AK2: Q3 | AL2: Q4 | AM2: 2017 Q1 | AN2: Q2 | AO2: Q3 | AP2: Q4 | AQ2: 2018 Q1 | AR2: Q2 | AS2: Q3
A3: Betét | B3: Deposits | C3: 25.327 | D3: 117.161 | E3: 261.842 | F3: 851.283 | G3: 784.766 | H3: 942.105 | I3: 1073.853 | J3: 1228.285 | K3: 1020.36 | L3: 856.15 | M3: 760.729 | N3: 968.021 | O3: 1032.297 | P3: 1072.14 | Q3: 1236.915 | R3: 1361.632 | S3: 1236.398 | T3: 1323.103 | U3: 1338.744 | V3: 1520.475 | W3: 1397.917 | X3: 1128.168 | Y3: 725.162 | Z3: 753.293 | AA3: 521.884 | AB3: 472.799 | AC3: 438.926 | AD3: 739.921 | AE3: 799.789 | AF3: 772.35 | AG3: 726.133 | AH3: 1033.467 | AI3: 934.823 | AJ3: 994.799 | AK3: 1028.179 | AL3: 1360.334 | AM3: 1320.885 | AN3: 1528.541 | AO3: 1527.674 | AP3: 1776.265 | AQ3: 1989.597 | AR3: 2238.439 | AS3: 2390.262
A4: Állampapír | B4: Goverment securities | C4: 22.215 | D4: 32.196 | E4: 3.655 | F4: 58.993 | G4: 13.608 | H4: -50.936 | I4: -124.423 | J4: -166.278 | K4: -187.825 | L4: -188.827 | M4: -192.032 | N4: -177.74 | O4: -169.063 | P4: -175.678 | Q4: -173.95 | R4: -158.1 | S4: -104.526 | T4: 6.445 | U4: 148.428 | V4: 326.618 | W4: 512.148 | X4: 662.178 | Y4: 950.434 | Z4: 1068.977 | AA4: 1219.915 | AB4: 1364.507 | AC4: 1327.264 | AD4: 1382.463 | AE4: 1506.697 | AF4: 1746.659 | AG4: 1964.404 | AH4: 2218.956 | AI4: 2567.788 | AJ4: 2790.9 | AK4: 2955.272 | AL4: 3246.51 | AM4: 3513.983 | AN4: 3631.932 | AO4: 3835.071 | AP4: 4097.594 | AQ4: 4208.136 | AR4: 4349.76 | AS4: 4554.652
A5: Befektetési jegy | B5: Mutual funds | C5: 26.165 | D5: -14.599 | E5: -38.376 | F5: -379.05 | G5: -476.11 | H5: -540.979 | I5: -536.509 | J5: -380.531 | K5: -213.951 | L5: -69.989 | M5: -3.064 | N5: 5.307 | O5: 6.968 | P5: 38.963 | Q5: 16.305 | R5: -70.24 | S5: -202.446 | T5: -172.071 | U5: -89.3 | V5: -10.203 | W5: 263.554 | X5: 506.175 | Y5: 605.191 | Z5: 855.499 | AA5: 1051.948 | AB5: 1145.231 | AC5: 1318.321 | AD5: 1404.686 | AE5: 1428.23 | AF5: 1365.979 | AG5: 1353.345 | AH5: 1386.365 | AI5: 1285.564 | AJ5: 1237.106 | AK5: 1247.044 | AL5: 1245.201 | AM5: 1219.035 | AN5: 1256.159 | AO5: 1259.364 | AP5: 1332.867 | AQ5: 1346.313 | AR5: 1314.603 | AS5: 1301.768
A6: Készpénz (forint) | B6: Currency in circulation | C6: -6.424 | D6: -61.286 | E6: -74.693 | F6: 49.128 | G6: 133.232 | H6: 32.935 | I6: -38.033 | J6: 17.963 | K6: -37.533 | L6: 112.797 | M6: 130.081 | N6: 170.724 | O6: 75.424 | P6: 123.31 | Q6: 287.322 | R6: 457.801 | S6: 374.223 | T6: 370.113 | U6: 261.688 | V6: 372.37 | W6: 418.356 | X6: 486.904 | Y6: 621.351 | Z6: 753.883 | AA6: 866.443 | AB6: 949.592 | AC6: 1074.475 | AD6: 1190.892 | AE6: 1207.232 | AF6: 1372.376 | AG6: 1496.949 | AH6: 1634.006 | AI6: 1508.942 | AJ6: 1638.509 | AK6: 1652.239 | AL6: 1768.412 | AM6: 1752.796 | AN6: 1863.615 | AO6: 1947.138 | AP6: 2157.482 | AQ6: 2233.973 | AR6: 2514.868 | AS6: 2644.429

Sheet 23. ábra
C2: 2008 | D2: 2009 | E2: 2010 | F2: 2011 | G2: 2012 | H2: 2013 | I2: 2014 | J2: 2015 | K2: 2016 | L2: 2017 | M2: 2018. III.
A4: Áruegyenleg | B4: Balance of goods | C4: -0.8535323981 | D4: 2.780659345 | E4: 2.644981914 | F4: 2.880565215 | G4: 2.946445541 | H4: 3.270938587 | I4: 2.013170615 | J4: 3.652581201 | K4: 4.058926652 | L4: 1.535315787 | M4: -0.03513351422
A5: Szolgáltatásegyenleg | B5: Balance of services | C5: 1.209621218 | D5: 1.245230503 | E5: 2.673785567 | F5: 3.237490188 | G5: 3.814925936 | H5: 3.692469035 | I5: 4.36419033 | J5: 4.441781097 | K5: 5.948954357 | L5: 5.928878377 | M5: 6.122509788
A6: Külkereskedelmi egyenleg | B6: Balance of goods and services | C6: 0.3560888195 | D6: 4.025889848 | E6: 5.318767481 | F6: 6.118055403 | G6: 6.761371477 | H6: 6.963407622 | I6: 6.377360945 | J6: 8.094362298 | K6: 10.00788101 | L6: 7.464194164 | M6: 6.087376273

Sheet 24. ábra
C1: 2008 Q1 | D1: Q2 | E1: Q3 | F1: Q4 | G1: 2009 Q1 | H1: Q2 | I1: Q3 | J1: Q4 | K1: 2010 Q1 | L1: Q2 | M1: Q3 | N1: Q4 | O1: 2011 Q1 | P1: Q2 | Q1: Q3 | R1: Q4 | S1: 2012 Q1 | T1: Q2 | U1: Q3 | V1: Q4 | W1: 2013 Q1 | X1: Q2 | Y1: Q3 | Z1: Q4 | AA1: 2014 Q1 | AB1: Q2 | AC1: Q3 | AD1: Q4 | AE1: 2015 Q1 | AF1: Q2 | AG1: Q3 | AH1: Q4 | AI1: 2016 Q1 | AJ1: Q2 | AK1: Q3 | AL1: Q4 | AM1: 2017 Q1 | AN1: Q2 | AO1: Q3 | AP1: Q4 | AQ1: 2018 Q1 | AR1: Q2 | AS1: Q3
C2: 2008. I. | D2: II. | E2: III. | F2: IV. | G2: 2009. I. | H2: II. | I2: III. | J2: IV. | K2: 2010. I. | L2: II. | M2: III. | N2: IV. | O2: 2011. I. | P2: II. | Q2: III. | R2: IV. | S2: 2012. I. | T2: II. | U2: III. | V2: IV. | W2: 2013. I. | X2: II. | Y2: III. | Z2: IV. | AA2: 2014. I. | AB2: II. | AC2: III. | AD2: IV. | AE2: 2015. I. | AF2: II. | AG2: III. | AH2: IV. | AI2: 2016. I. | AJ2: II. | AK2: III. | AL2: IV. | AM2: 2017. I. | AN2: II. | AO2: III. | AP2: IV. | AQ2: 2018. I. | AR2: II. | AS2: III.
A3: Külkereskedelmi egyenleg | B3: Balance of goods and services | C3: 190.8169446 | D3: 166.6270695 | E3: 66.22075625 | F3: 81.40927395 | G3: 185.9856186 | H3: 500.0023597 | I3: 866.8641724 | J3: 1211.477825 | K3: 1406.967386 | L3: 1434.43555 | M3: 1442.248105 | N3: 1464.629845 | O3: 1546.514497 | P3: 1638.885998 | Q3: 1722.925305 | R3: 1744.567118 | S3: 1734.204351 | T3: 1870.198118 | U3: 2020.787494 | V3: 1971.301666 | W3: 2058.729896 | X3: 1940.955667 | Y3: 2044.61232 | Z3: 2108.383933 | AA3: 2171.645173 | AB3: 2083.273456 | AC3: 2035.937436 | AD3: 2080.980927 | AE3: 2281.154836 | AF3: 2470.159004 | AG3: 2562.392116 | AH3: 2784.640186 | AI3: 2845.779661 | AJ3: 3254.36498 | AK3: 3502.933113 | AL3: 3550.060013 | AM3: 3322.946521 | AN3: 3198.14097 | AO3: 2931.385072 | AP3: 2862.88355 | AQ3: 2850.192631 | AR3: 2779.215125 | AS3: 2485.19492
A4: Éves változás | B4: Yearly change | C4: 280.9075019 | D4: 155.8634479 | E4: -111.361458 | F4: -81.66921416 | G4: -4.83132603 | H4: 333.3752902 | I4: 800.6434161 | J4: 1130.068552 | K4: 1220.981767 | L4: 934.4331907 | M4: 575.3839324 | N4: 253.1520191 | O4: 139.5471113 | P4: 204.4504474 | Q4: 280.6772003 | R4: 279.9372732 | S4: 187.6898538 | T4: 231.3121201 | U4: 297.8621887 | V4: 226.734548 | W4: 324.525545 | X4: 70.75754863 | Y4: 23.82482602 | Z4: 137.0822674 | AA4: 112.9152774 | AB4: 142.3177895 | AC4: -8.674883976 | AD4: -27.40300612 | AE4: 109.5096621 | AF4: 386.8855478 | AG4: 526.4546799 | AH4: 703.6592588 | AI4: 564.6248254 | AJ4: 784.2059763 | AK4: 940.5409974 | AL4: 765.4198269 | AM4: 477.1668601 | AN4: -56.22401045 | AO4: -571.5480412 | AP4: -687.1764626 | AQ4: -472.75389 | AR4: -418.9258447 | AS4: -446.1901521
A5: Cserearány hatás | B5: Terms of trade | C5: -1.044406882 | D5: 41.35884571 | E5: -139.6212081 | F5: -268.994218 | G5: -248.3070328 | H5: -354.8429385 | I5: -92.14326234 | J5: 258.8879086 | K5: 384.2795436 | L5: 422.6969596 | M5: 265.5391343 | N5: 38.58973111 | O5: -36.82761609 | P5: -36.35535194 | Q5: -116.755909 | R5: -269.9610626 | S5: -391.5895246 | T5: -444.1321462 | U5: -361.1717083 | V5: -179.4408471 | W5: -4.514641112 | X5: 139.1511433 | Y5: 149.5263828 | Z5: 173.2697505 | AA5: 137.2196059 | AB5: 88.4760661 | AC5: 170.3300983 | AD5: 209.3288428 | AE5: 204.9628983 | AF5: 194.1151083 | AG5: 147.4626289 | AH5: 169.9771255 | AI5: 260.3106148 | AJ5: 380.8840321 | AK5: 402.0477566 | AL5: 276.2198823 | AM5: 78.34148862 | AN5: -3.748860103 | AO5: -31.3715125 | AP5: 52.7274934 | AQ5: 202.2665201 | AR5: 42.42590938 | AS5: -101.8395611
A6: Volumenhatás | B6: Volume effect | C6: 259.6404069 | D6: 132.0651543 | E6: 47.13220809 | F6: 193.230218 | G6: 288.0290328 | H6: 669.2389385 | I6: 832.2732623 | J6: 707.6290914 | K6: 647.3654564 | L6: 381.3650404 | M6: 228.6848657 | N6: 338.6002689 | O6: 176.3747274 | P6: 240.8057993 | Q6: 397.4331093 | R6: 549.8983358 | S6: 579.2793784 | T6: 675.4442663 | U6: 659.033897 | V6: 406.175395 | W6: 329.0401861 | X6: -68.39359464 | Y6: -125.7015568 | Z6: -36.18748318 | AA6: -24.30432854 | AB6: 53.84172338 | AC6: -179.0049823 | AD6: -236.7318489 | AE6: -95.45323623 | AF6: 192.7704395 | AG6: 378.992051 | AH6: 533.6821334 | AI6: 304.3142106 | AJ6: 403.3219442 | AK6: 538.4932408 | AL6: 489.1999445 | AM6: 398.8253715 | AN6: -52.47515034 | AO6: -540.1765287 | AP6: -739.903956 | AQ6: -675.0204101 | AR6: -461.3517541 | AS6: -344.3505911

Sheet 25. ábra
B1: Terms of trade | C1: Terms of trade (intra EU-countries) | D1: Terms of trade (Extra-EU countries) | E1: Brent (EUR/barrell, r.h.s.)
B2: Cserearány | C2: Cserearány (EU-n belüli országok) | D2: Cserearány (EU-n kívüli országok) | E2: Brent (EUR/hordó, jobb tengely)
A3: 2015 | B3: 1.412112132 | C3: 0.2304929918 | D3: 1.18161914 | E3: -47.48951955
B4: -0.02809892044 | C4: -0.5378169808 | D4: 0.5097180604 | E4: -35.98916596
B5: 0.7511261482 | C5: -0.3841549863 | D5: 1.135281134 | E5: -33.6946083
B6: 0.05799623592 | C6: -0.5341883234 | D6: 0.5921845593 | E6: -29.41052901
B7: 0.6896195891 | C7: -0.3052504705 | D7: 0.9948700596 | E7: -27.60578575
B8: 0.7474952949 | C8: -0.1526252353 | D8: 0.9001205302 | E8: -32.43142451
B9: -0.004771371953 | C9: -0.6128873816 | D9: 0.6081160097 | E9: -35.73160436
B10: 0.4653958599 | C10: -0.3064436908 | D10: 0.7718395508 | E10: -44.81207391
B11: 1.142006783 | C11: 0.2298327681 | D11: 0.9121740145 | E11: -44.23596529
B12: 1.066599169 | C12: 0.3012445675 | D12: 0.7653546016 | E12: -37.79138381
B13: 1.856642629 | C13: 0.3012445675 | D13: 1.555398061 | E13: -34.23996041
B14: 2.18506519 | C14: 0.7531114188 | D14: 1.431953771 | E14: -31.31733393
A15: 2016 | B15: 1.319727501 | C15: 0.316388409 | D15: 1.003339092 | E15: -31.52921127
B16: 2.158688354 | C16: 0.632776818 | D16: 1.525911536 | E16: -41.33042678
B17: 2.505008638 | C17: 0.7909710225 | D17: 1.714037615 | E17: -31.70905798
B18: 2.683653476 | C18: 0.9492416661 | D18: 1.734411809 | E18: -32.36592856
B19: 2.420963892 | C19: 0.7910347218 | D19: 1.62992917 | E19: -27.92334203
B20: 2.053791669 | C20: 0.6328277774 | D20: 1.420963892 | E20: -22.41670057
B21: 2.284484942 | C21: 0.5480630878 | D21: 1.736421854 | E21: -19.74631232
B22: 1.172863468 | C22: 0.3914736341 | D22: 0.7813898343 | E22: -2.491968761
B23: 0.9813898343 | C23: 0.1565894536 | D23: 0.8248003807 | E23: -1.993513382
B24: 1.085383663 | C24: 0.156810553 | D24: 0.9285731098 | E24: 5.301532412
B25: -0.04883693562 | C25: -0.156810553 | D25: 0.1079736174 | E25: 3.998822147
B26: -1.62857311 | C26: -0.5488369356 | D26: -1.079736174 | E26: 47.58151654
A27: 2017 | B27: -1.368301437 | C27: -0.4644173935 | D27: -0.9038840434 | E27: 82.28316969
B28: -0.8005101336 | C28: -0.07740289892 | D28: -0.7231072347 | E28: 74.30929304
B29: -1.404394177 | C29: 0.1548057978 | D29: -1.559199975 | E29: 38.20485371
B30: -0.6075234086 | C30: 0.2335958482 | D30: -0.8411192567 | E30: 32.58170609
B31: -1.328870581 | C31: -0.1557305654 | D31: -1.173140016 | E31: 10.49294189
B32: -0.4648290629 | C32: 0 | D32: -0.4648290629 | E32: -3.211380424
B33: -0.02330464616 | C33: 0.3862381204 | D33: -0.4095427666 | E33: 3.890740521
B34: 0.5502761351 | C34: 0.2317428722 | D34: 0.3185332629 | E34: 5.621154575
B35: 0.3 | C35: 0.2317428722 | D35: 0.06825712776 | E35: 12.34006437
B36: 0.2635386557 | C36: 0.3090257705 | D36: -0.04548711475 | E36: 8.712060978
B37: 0.03646134426 | C37: -0.07725644262 | D37: 0.1137177869 | E37: 23.8623788
B38: 0.6548711475 | C38: 0.1545128852 | D38: 0.5003582623 | E38: 5.936777395
A39: 2018 | B39: 0.2388160913 | C39: -0.235342069 | D39: 0.4741581603 | E39: 9.45575689
B40: 0.1112372405 | C40: -0.4706841381 | D40: 0.5819213786 | E40: 1.506473452
B41: 0.01123724052 | C41: -0.5491314944 | D41: 0.560368735 | E41: 10.79128306
B42: -0.6437568017 | C42: -0.7078176013 | D42: 0.06406079958 | E42: 18.02024458
B43: -0.3448064036 | C43: -0.7078176013 | D43: 0.3630111976 | E43: 40.78576036
B44: -1.170828799 | C44: -0.7864640014 | D44: -0.3843647975 | E44: 54.21815178
B45: -1.268729595 | C45: -0.3932320007 | D45: -0.8754975943 | E45: 50.57428006
B46: -2.053094392 | C46: -0.7078176013 | D46: -1.345276791 | E46: 45.60945327
B47: -2.445276791 | C47: -0.8651104015 | D47: -1.58016639 | E47: 46.09916643

Sheet 26. ábra
B1: EU15 | C1: EU10 | D1: Extra EU | E1: Total
B2: EU15 | C2: EU10 | D2: EU-n kívül | E2: Összesen
A3: 2010 | B3: 6.026304021 | C3: 3.59775614 | D3: -4.843873056 | E3: 4.780187105
B4: 6.148286439 | C4: 3.897362164 | D4: -5.068039696 | E4: 4.977608906
B5: 6.215044867 | C5: 4.041400624 | D5: -5.104186878 | E5: 5.152258613
B6: 6.240458595 | C6: 4.325492171 | D6: -5.090641378 | E6: 5.475309387
A7: 2011 | B7: 6.56736382 | C7: 4.541844705 | D7: -4.774586179 | E7: 6.334622347
B8: 6.243634407 | C8: 4.446972894 | D8: -4.159964765 | E8: 6.530642537
B9: 6.022694782 | C9: 4.439358513 | D9: -3.543777597 | E9: 6.918275697
B10: 5.969635293 | C10: 4.197149357 | D10: -3.111938585 | E10: 7.054846066
A11: 2012 | B11: 5.528307348 | C11: 4.113349587 | D11: -2.974910931 | E11: 6.666746004
B12: 5.430429277 | C12: 4.301857636 | D12: -2.618395074 | E12: 7.113891838
B13: 5.413235341 | C13: 4.466959934 | D13: -2.694194381 | E13: 7.186000894
B14: 4.698948669 | C14: 4.618654949 | D14: -2.537512046 | E14: 6.780091572
A15: 2013 | B15: 5.029988023 | C15: 4.604776818 | D15: -2.960913352 | E15: 6.67385149
B16: 4.964369221 | C16: 4.416404325 | D16: -3.301057608 | E16: 6.079715939
B17: 5.207089756 | C17: 4.052702288 | D17: -3.102802332 | E17: 6.156989712
B18: 5.23907093 | C18: 3.685571252 | D18: -2.461417468 | E18: 6.463224714
A19: 2014 | B19: 5.131484693 | C19: 3.320469674 | D19: -1.714813683 | E19: 6.737140684
B20: 5.189904129 | C20: 2.841061891 | D20: -1.583012424 | E20: 6.447953595
B21: 4.918275515 | C21: 2.533289926 | D21: -1.026937457 | E21: 6.424627985
B22: 4.570621016 | C22: 2.279097025 | D22: -0.9033500903 | E22: 5.946367951
A23: 2015 | B23: 4.763442987 | C23: 2.194916458 | D23: -0.4305122674 | E23: 6.527847178
B24: 4.657721809 | C24: 2.236849154 | D24: 0.1172397834 | E24: 7.011810747
B25: 4.875508801 | C25: 2.283928148 | D25: -0.09692025659 | E25: 7.062516692
B26: 5.356852286 | C26: 2.38662082 | D26: 0.008116699953 | E26: 7.751589805
A27: 2016 | B27: 5.108369376 | C27: 2.61354246 | D27: -0.05642313585 | E27: 7.6654887
B28: 5.561893179 | C28: 2.795336045 | D28: 0.1360501294 | E28: 8.493279353
B29: 5.4328731 | C29: 2.65863613 | D29: 0.5535107588 | E29: 8.645019988
B30: 5.258531334 | C30: 2.531037699 | D30: 0.7496752547 | E30: 8.539244288
A31: 2017 | B31: 5.181394113 | C31: 2.463663773 | D31: 0.318639224 | E31: 7.96369711
B32: 4.949757041 | C32: 2.434777706 | D32: 0.1391401005 | E32: 7.523674847
B33: 4.887484869 | C33: 2.429946264 | D33: -0.3962129666 | E33: 6.921218167
B34: 5.022837652 | C34: 2.325625312 | D34: -0.8292315367 | E34: 6.519231427
A35: 2018 | B35: 4.986281784 | C35: 2.154183403 | D35: -0.6762648481 | E35: 6.464200339
B36: 5.101929313 | C36: 2.183725242 | D36: -1.284333515 | E36: 6.001321039
B37: 5.01822786 | C37: 2.352121835 | D37: -2.200863186 | E37: 5.169486509
B39: =+B37-B33 -> 0.130742991 | C39: =+C37-C33 -> -0.07782442891 | D39: -1.80465022 | E39: -1.751731658

Sheet 27. ábra
C1: 2008. I. | D1: II. | E1: III. | F1: IV. | G1: 2009. I. | H1: II. | I1: III. | J1: IV. | K1: 2010. I. | L1: II. | M1: III. | N1: IV. | O1: 2011. I. | P1: II. | Q1: III. | R1: IV. | S1: 2012. I. | T1: II. | U1: III. | V1: IV. | W1: 2013. I. | X1: II. | Y1: III. | Z1: IV. | AA1: 2014. I. | AB1: II. | AC1: III. | AD1: IV. | AE1: 2015. I. | AF1: II. | AG1: III. | AH1: IV. | AI1: 2016. I. | AJ1: II. | AK1: III. | AL1: IV. | AM1: 2017. I. | AN1: II. | AO1: III. | AP1: IV. | AQ1: 2018. I. | AR1: II. | AS1: III.
C2: 2008 Q1 | D2: Q2 | E2: Q3 | F2: Q4 | G2: 2009 Q1 | H2: Q2 | I2: Q3 | J2: Q4 | K2: 2010 Q1 | L2: Q2 | M2: Q3 | N2: Q4 | O2: 2011 Q1 | P2: Q2 | Q2: Q3 | R2: Q4 | S2: 2012 Q1 | T2: Q2 | U2: Q3 | V2: Q4 | W2: 2013 Q1 | X2: Q2 | Y2: Q3 | Z2: Q4 | AA2: 2014 Q1 | AB2: Q2 | AC2: Q3 | AD2: Q4 | AE2: 2015 Q1 | AF2: Q2 | AG2: Q3 | AH2: Q4 | AI2: 2016 Q1 | AJ2: Q2 | AK2: Q3 | AL2: Q4 | AM2: 2017 Q1 | AN2: Q2 | AO2: Q3 | AP2: Q4 | AQ2: 2018 Q1 | AR2: Q2 | AS2: Q3
A3: Áruexport | B3: Export of goods | C3: 17.54717416 | D3: 12.01632523 | E3: 4.971226929 | F3: -4.927415367 | G3: -23.00461457 | H3: -20.04945931 | I3: -12.06418732 | J3: -1.093554385 | K3: 10.69017008 | L3: 15.24638576 | M3: 13.30240482 | N3: 11.3784001 | O3: 16.08283547 | P3: 6.244500313 | Q3: 3.606900205 | R3: 1.5995064 | S3: -1.59336625 | T3: 0.6624279053 | U3: -1.13028637 | V3: -5.56219202 | W3: -2.013608033 | X3: 1.537401666 | Y3: 5.021740868 | Z3: 8.306419203 | AA3: 10.56706982 | AB3: 8.166097313 | AC3: 6.93565673 | AD3: 6.341257234 | AE3: 6.765873566 | AF3: 6.884788569 | AG3: 5.351188525 | AH3: 8.942273539 | AI3: 2.796431976 | AJ3: 7.843784224 | AK3: 3.982662615 | AL3: 0.007742310054 | AM3: 7.328960283 | AN3: 2.609877954 | AO3: 2.662205855 | AP3: 4.759355839 | AQ3: 3.929941687 | AR3: 9.141177298 | AS3: 3.208679495
A4: Áruimport | B4: Import of goods | C4: 14.98990829 | D4: 13.58071456 | E4: 4.563650823 | F4: -8.173416663 | G4: -25.50634158 | H4: -25.49714991 | I4: -15.67605712 | J4: -3.106651552 | K4: 10.8399891 | L4: 15.55440918 | M4: 14.66774815 | N4: 12.32543479 | O4: 13.50031534 | P4: 6.255087222 | Q4: 0.973301703 | R4: -0.6703937093 | S4: -1.744757183 | T4: -2.853794816 | U4: -4.102028843 | V4: -4.787744841 | W4: -2.602920255 | X4: 4.24999211 | Y4: 4.760614982 | Z4: 7.211133722 | AA4: 10.89954426 | AB4: 12.67040781 | AC4: 11.9720533 | AD4: 9.65324556 | AE4: 5.148321774 | AF4: 4.707929476 | AG4: 5.657048103 | AH4: 5.910578589 | AI4: 5.91837345 | AJ4: 5.670407643 | AK4: 3.903674692 | AL4: 2.739497255 | AM4: 10.85413415 | AN4: 6.179843923 | AO4: 7.788750613 | AP4: 8.312264238 | AQ4: 7.040285327 | AR4: 10.23748533 | AS4: 6.631296494
A5: Áruegyenleg (jobb t.) | B5: Balance of goods (r.h.s.) | C5: -0.3393049887 | D5: -0.4219281873 | E5: -0.9072844265 | F5: -0.8535323981 | G5: -0.5287047749 | H5: 0.3566225341 | I5: 1.678848141 | J5: 2.780659345 | K5: 3.022321529 | L5: 2.949989352 | M5: 2.77701293 | N5: 2.644981914 | O5: 3.098516009 | P5: 3.007293887 | Q5: 3.064659186 | R5: 2.880565215 | S5: 2.455255363 | T5: 2.782754726 | U5: 3.194139827 | V5: 2.946445541 | W5: 3.149836462 | X5: 2.911558474 | Y5: 2.973942892 | Z5: 3.270938587 | AA5: 3.342381613 | AB5: 2.760689252 | AC5: 2.298316196 | AD5: 2.013170615 | AE5: 2.427172989 | AF5: 2.836417849 | AG5: 2.878244776 | AH5: 3.652581201 | AI5: 3.51491886 | AJ5: 4.346454335 | AK5: 4.580080237 | AL5: 4.058926652 | AM5: 3.251952431 | AN5: 2.731644186 | AO5: 2.002721613 | AP5: 1.535315787 | AQ5: 1.192933951 | AR5: 0.8183377482 | AS5: -0.03513351422

Sheet 28. ábra
C1: 2006 Q1 | D1: Q2 | E1: Q3 | F1: Q4 | G1: 2007 Q1 | H1: Q2 | I1: Q3 | J1: Q4 | K1: 2008 Q1 | L1: Q2 | M1: Q3 | N1: Q4 | O1: 2009 Q1 | P1: Q2 | Q1: Q3 | R1: Q4 | S1: 2010 Q1 | T1: Q2 | U1: Q3 | V1: Q4 | W1: 2011 Q1 | X1: Q2 | Y1: Q3 | Z1: Q4 | AA1: 2012 Q1 | AB1: Q2 | AC1: Q3 | AD1: Q4 | AE1: 2013 Q1 | AF1: Q2 | AG1: Q3 | AH1: Q4 | AI1: 2014 Q1 | AJ1: Q2 | AK1: Q3 | AL1: Q4 | AM1: 2015 Q1 | AN1: Q2 | AO1: Q3 | AP1: Q4 | AQ1: 2016 Q1 | AR1: Q2 | AS1: Q3 | AT1: Q4 | AU1: 2017 Q1 | AV1: Q2 | AW1: Q3 | AX1: Q4 | AY1: 2018 Q1 | AZ1: Q2 | BA1: Q3
C2: 2006. I. | D2: II. | E2: III. | F2: IV. | G2: 2007. I. | H2: II. | I2: III. | J2: IV. | K2: 2008. I. | L2: II. | M2: III. | N2: IV. | O2: 2009. I. | P2: II. | Q2: III. | R2: IV. | S2: 2010. I. | T2: II. | U2: III. | V2: IV. | W2: 2011. I. | X2: II. | Y2: III. | Z2: IV. | AA2: 2012. I. | AB2: II. | AC2: III. | AD2: IV. | AE2: 2013. I. | AF2: II. | AG2: III. | AH2: IV. | AI2: 2014. I. | AJ2: II. | AK2: III. | AL2: IV. | AM2: 2015. I. | AN2: II. | AO2: III. | AP2: IV. | AQ2: 2016. I. | AR2: II. | AS2: III. | AT2: IV. | AU2: 2017. I. | AV2: II. | AW2: III. | AX2: IV. | AY2: 2018. I. | AZ2: II. | BA2: III.
A3: Szolgáltatás egyenleg | B3: Balance of services | C3: 0.8353888294 | D3: 0.9912710263 | E3: 1.188693125 | F3: 1.23710907 | G3: 1.271445385 | H3: 1.159863177 | I3: 1.033028522 | J3: 0.8874854525 | K3: 0.8811225134 | L3: 1.028360752 | M3: 1.182554683 | N3: 1.209621218 | O3: 1.255502684 | P3: 1.336912842 | Q3: 1.379261866 | R3: 1.245230503 | S3: 1.695277796 | T3: 1.914922489 | U3: 2.125003263 | V3: 2.673785567 | W3: 2.524066785 | X3: 2.761710715 | Y3: 3.009355171 | Z3: 3.237490188 | AA3: 3.558835016 | AB3: 3.646694839 | AC3: 3.757420498 | AD3: 3.814925936 | AE3: 3.874345439 | AF3: 3.787342181 | AG3: 3.918782405 | AH3: 3.692469035 | AI3: 3.694950887 | AJ3: 3.878806591 | AK3: 4.041851417 | AL3: 4.36419033 | AM3: 4.483900091 | AN3: 4.567886686 | AO3: 4.718671262 | AP3: 4.441781097 | AQ3: 4.686586467 | AR3: 4.933256068 | AS3: 5.325428047 | AT3: 5.948954357 | AU3: 5.943372326 | AV3: 5.974537706 | AW3: 5.817637562 | AX3: 5.928878377 | AY3: 6.093790602 | AZ3: 6.12437732 | BA3: 6.139737208
A4: Szolgáltatás export | B4: Export of services | C4: 11.09686048 | D4: 11.26880434 | E4: 11.6169344 | F4: 11.86017877 | G4: 11.88872527 | H4: 11.88565015 | I4: 12.03577054 | J4: 12.15733821 | K4: 12.2817667 | L4: 12.39566318 | M4: 12.59100309 | N4: 12.88279933 | O4: 13.44189737 | P4: 13.9475359 | Q4: 14.13083136 | R4: 14.10508024 | S4: 14.168575 | T4: 14.34134305 | U4: 14.55428628 | V4: 14.81288925 | W4: 14.85791828 | X4: 15.03853937 | Y4: 15.30314992 | Z4: 15.79472473 | AA4: 16.13899086 | AB4: 16.33573382 | AC4: 16.36309472 | AD4: 16.13560247 | AE4: 16.1760172 | AF4: 16.26672869 | AG4: 16.47991271 | AH4: 16.68560162 | AI4: 16.84771229 | AJ4: 17.14389875 | AK4: 17.48781387 | AL4: 17.74022914 | AM4: 17.83546135 | AN4: 17.9368092 | AO4: 18.23936171 | AP4: 18.23620411 | AQ4: 18.4853146 | AR4: 18.75903932 | AS4: 19.06400603 | AT4: 19.41464968 | AU4: 19.46932701 | AV4: 19.45966549 | AW4: 19.31091306 | AX4: 19.14991464 | AY4: 18.99275971 | AZ4: 18.91743363 | BA4: 18.66518924
A5: Szolgáltatás import | B5: Import of services | C5: 10.26147165 | D5: 10.27753331 | E5: 10.42824128 | F5: 10.6230697 | G5: 10.61727989 | H5: 10.72578697 | I5: 11.00274202 | J5: 11.26985276 | K5: 11.40064418 | L5: 11.36730243 | M5: 11.40844841 | N5: 11.67317812 | O5: 12.18639469 | P5: 12.61062306 | Q5: 12.75156949 | R5: 12.85984974 | S5: 12.47329721 | T5: 12.42642056 | U5: 12.42928302 | V5: 12.13910369 | W5: 12.3338515 | X5: 12.27682866 | Y5: 12.29379475 | Z5: 12.55723454 | AA5: 12.58015584 | AB5: 12.68903898 | AC5: 12.60567422 | AD5: 12.32067653 | AE5: 12.30167176 | AF5: 12.47938651 | AG5: 12.5611303 | AH5: 12.99313258 | AI5: 13.15276141 | AJ5: 13.26509216 | AK5: 13.44596245 | AL5: 13.37603881 | AM5: 13.35156126 | AN5: 13.36892251 | AO5: 13.52069045 | AP5: 13.79442301 | AQ5: 13.79872813 | AR5: 13.82578325 | AS5: 13.73857798 | AT5: 13.46569533 | AU5: 13.52595468 | AV5: 13.48512778 | AW5: 13.4932755 | AX5: 13.22103626 | AY5: 12.8989691 | AZ5: 12.79305631 | BA5: 12.52545203

Sheet 29. ábra
C1: 2012. I. | D1: II. | E1: III. | F1: IV. | G1: 2013. I. | H1: II. | I1: III. | J1: IV. | K1: 2014. I. | L1: II. | M1: III. | N1: IV. | O1: 2015. I. | P1: II. | Q1: III. | R1: IV. | S1: 2016. I. | T1: II. | U1: III. | V1: IV. | W1: 2017. I. | X1: II. | Y1: III. | Z1: IV. | AA1: 2018. I. | AB1: II. | AC1: III.
A2: Áruegyenleg (fizetési mérleg) | B2: Balance of goods (BoP) | C2: 2.45539184 | D2: 2.782815331 | E2: 3.193130631 | F2: 2.946438438 | G2: 3.149392927 | H2: 2.91088965 | I2: 2.973295968 | J2: 3.271060624 | K2: 3.342069366 | L2: 2.759604717 | M2: 2.295130398 | N2: 2.012682833 | O2: 2.424703408 | P2: 2.835712552 | Q2: 2.881910443 | R2: 3.655110862 | S2: 3.523073336 | T2: 4.355639879 | U2: 4.592931534 | V2: 4.065083037 | W2: 3.258239837 | X2: 2.741481927 | Y2: 2.007422077 | Z2: 1.542195524 | AA2: 1.197258241 | AB2: 0.8202476094 | AC2: 0.1376843056
C3: 2012 Q1 | D3: Q2 | E3: Q3 | F3: Q4 | G3: 2013 Q1 | H3: Q2 | I3: Q3 | J3: Q4 | K3: 2014 Q1 | L3: Q2 | M3: Q3 | N3: Q4 | O3: 2015 Q1 | P3: Q2 | Q3: Q3 | R3: Q4 | S3: 2016 Q1 | T3: Q2 | U3: Q3 | V3: Q4 | W3: 2017 Q1 | X3: Q2 | Y3: Q3 | Z3: Q4 | AA3: 2018 Q1 | AB3: Q2 | AC3: Q3
A4: Élelmiszer és élő állat | B4: Food and live animals | C4: 2.340300342 | D4: 2.669310185 | E4: 2.967182215 | F4: 3.005435787 | G4: 2.995146012 | H4: 2.89773678 | I4: 2.853080386 | J4: 3.083361343 | K4: 3.100325039 | L4: 2.896565524 | M4: 2.783815946 | N4: 2.546096255 | O4: 2.473484662 | P4: 2.491435731 | Q4: 2.428252409 | R4: 2.405126747 | S4: 2.326249171 | T4: 2.271666436 | U4: 2.152995078 | V4: 2.068832018 | W4: 2.098847887 | X4: 2.198148932 | Y4: 2.224807932 | Z4: 2.17043602 | AA4: 2.081786391 | AB4: 1.910050988 | AC4: 1.807913124
A5: Ásványi fűtőanyag, kenőanyag | B5: Fuels, lubricants | C5: -6.264936017 | D5: -6.392803199 | E5: -6.402499547 | F5: -6.337453062 | G5: -6.421421869 | H5: -6.35131568 | I5: -6.276414883 | J5: -6.303967008 | K5: -5.962652184 | L5: -5.960512716 | M5: -6.109208484 | N5: -6.152526041 | O5: -5.557074406 | P5: -5.212202549 | Q5: -4.773328224 | R5: -4.154315332 | S5: -3.882169135 | T5: -3.456536945 | U5: -3.278976624 | V5: -3.168177343 | W5: -3.649337339 | X5: -3.763786506 | Y5: -3.753863441 | Z5: -3.770720297 | AA5: -3.501020358 | AB5: -3.632534586 | AC5: -3.832312323
A6: Vegyi áru | B6: Chemical products | C6: 0.04912623518 | D6: 0.2369376205 | E6: 0.3961226127 | F6: 0.5463165187 | G6: 0.5735371412 | H6: 0.6089679261 | I6: 0.662176587 | J6: 0.7006605992 | K6: 0.6196397278 | L6: 0.4633258093 | M6: 0.3659770597 | N6: 0.2870478942 | O6: 0.2178603305 | P6: 0.2435491137 | Q6: 0.1338257389 | R6: 0.03994629964 | S6: -0.01308338548 | T6: -0.02701531333 | U6: -0.05321684952 | V6: 0.05168555368 | W6: 0.2401977559 | X6: 0.3343248757 | Y6: 0.4145340365 | Z6: 0.3564897836 | AA6: 0.3487495913 | AB6: 0.286360633 | AC6: 0.09456381812
A7: Feldolgozott termék | B7: Manufactured goods | C7: -0.2020872854 | D7: 0.01453640093 | E7: 0.3141011467 | F7: 0.3240127351 | G7: 0.3499448181 | H7: 0.2279853143 | I7: 0.08318743531 | J7: 0.04178484751 | K7: -0.02792227661 | L7: -0.1694701002 | M7: -0.2285177198 | N7: -0.3035645527 | O7: -0.5001016789 | P7: -0.558446937 | Q7: -0.7540488753 | R7: -0.9551570954 | S7: -0.9953248903 | T7: -1.043104656 | U7: -0.9873298645 | V7: -1.03220039 | W7: -1.020663457 | X7: -1.120179533 | Y7: -1.303557697 | Z7: -1.374173233 | AA7: -1.588594936 | AB7: -1.619676951 | AC7: -1.783461906
A8: Gépek és szállítóeszközök | B8: Macihnery and transport equipment | C8: 10.53760801 | D8: 10.33805443 | E8: 9.703974633 | F8: 9.139716359 | G8: 9.11220231 | H8: 8.672389647 | I8: 8.824281182 | J8: 8.941384922 | K8: 9.007751237 | L8: 9.218042755 | M8: 9.612560683 | N8: 9.569315175 | O8: 9.89367838 | P8: 10.04747826 | Q8: 10.02781668 | R8: 10.41598919 | S8: 10.22981694 | T8: 10.74826983 | U8: 10.81154825 | V8: 10.61910445 | W8: 10.29465226 | X8: 9.875167078 | Y8: 9.339297336 | Z8: 9.137199154 | AA8: 9.123279651 | AB8: 9.057120956 | AC8: 8.850257661
A9: Áruegyenleg (külkereskedelem) | B9: Balance of goods (trade stat.) | C9: 6.460011285 | D9: 6.866035438 | E9: 6.97888106 | F9: 6.678028339 | G9: 6.609408412 | H9: 6.055763988 | I9: 6.146310708 | J9: 6.463224704 | K9: 6.737141543 | L9: 6.447951272 | M9: 6.424627484 | N9: 5.946368731 | O9: 6.527847288 | P9: 7.011813622 | Q9: 7.062517726 | R9: 7.751589805 | S9: 7.6654887 | T9: 8.493279353 | U9: 8.645019988 | V9: 8.539244288 | W9: 7.96369711 | X9: 7.523674847 | Y9: 6.921218167 | Z9: 6.519231427 | AA9: 6.464200339 | AB9: 6.001321039 | AC9: 5.136960373

Sheet 30. ábra
C1: 2004 | D1: 2005 | E1: 2006 | F1: 2007 | G1: 2008 | H1: 2009 | I1: 2010 | J1: 2011 | K1: 2012 | L1: 2013 | M1: 2014 | N1: 2015 | O1: 2016 | P1: 2017 | Q1: 2018. III.
C2: 2004 | D2: 2005 | E2: 2006 | F2: 2007 | G2: 2008 | H2: 2009 | I2: 2010 | J2: 2011 | K2: 2012 | L2: 2013 | M2: 2014 | N2: 2015 | O2: 2016 | P2: 2017 | Q2: 2018. Q3.
A3: Beruházási gépimport | B3: Machinery import for investments | C3: 3.817296574 | D3: 3.864244845 | E3: 3.735720025 | F3: 3.904838955 | G3: 3.605969486 | H3: 3.419260323 | I3: 3.396112464 | J3: 3.764179366 | K3: 4.035163895 | L3: 4.036525848 | M3: 4.760513248 | N3: 5.00766123 | O3: 4.996272459 | P3: 5.359168897 | Q3: 5.719829725
A4: Feldolgozóipari, szállítási és raktározási beruházás | B4: Investment related to manufacturing or transportation | C4: 6.80369637 | D4: 7.474205585 | E4: 7.335543891 | F4: 7.644571517 | G4: 6.495788932 | H4: 6.416187965 | I4: 6.230078908 | J4: 6.36993879 | K4: 6.611613941 | L4: 6.865234846 | M4: 7.793320209 | N4: 7.308692986 | O4: 6.76472985 | P4: 7.753531798 | Q4: 8.019908658

Sheet 31. ábra
B1: Machinery exports | C1: Vehicle exports
B2: Feldolgozóipari exportértékesítés | C2: Járműipari export
B3: 95.73325819 | C3: 89.797825
B4: 96.55856734 | C4: 91.969275
A5: 2015 Q1 | B5: 98.90214558 | C5: 99.750225
B6: 99.02440069 | C6: 101.063525
B7: 98.72925231 | C7: 103.572225
A8: Q2 | B8: 100.465535 | C8: 102.84935
B9: 100.3111141 | C9: 96.770075
B10: 98.77215413 | C10: 100.46555
A11: Q3 | B11: 100.5958319 | C11: 100.88385
B12: 102.1292483 | C12: 102.37245
B13: 101.4867443 | C13: 103.47965
A14: Q4 | B14: 102.4025571 | C14: 97.867925
B15: 100.161797 | C15: 96.65885
B16: 100.6652821 | C16: 93.7627
A17: 2016 Q1 | B17: 99.22197203 | C17: 100.801
B18: 100.8770328 | C18: 104.248725
B19: 100.3926158 | C19: 105.4962
A20: Q2 | B20: 100.2576681 | C20: 105.36935
B21: 101.1195095 | C21: 99.827025
B22: 100.968162 | C22: 102.516475
A23: Q3 | B23: 100.6162139 | C23: 102.153
B24: 100.3108849 | C24: 104.64675
B25: 101.7296148 | C25: 101.9262
A26: Q4 | B26: 103.0232008 | C26: 97.52415
B27: 103.3888463 | C27: 97.00205
B28: 105.0931533 | C28: 97.7736
A29: 2017 Q1 | B29: 104.7240692 | C29: 103.17835
B30: 106.1273861 | C30: 108.278875
B31: 107.0607115 | C31: 108.265925
A32: Q2 | B32: 105.7137305 | C32: 102.91695
B33: 104.0251948 | C33: 101.485675
B34: 106.7186267 | C34: 99.990925
A35: Q3 | B35: 107.5436886 | C35: 101.607125
B36: 107.8289936 | C36: 104.95845
B37: 106.545686 | C37: 101.676875
A38: Q4 | B38: 106.2095862 | C38: 98.960575
B39: 107.3083356 | C39: 96.778725
B40: 106.8270349 | C40: 97.8205
A41: 2018 Q1 | B41: 107.2006236 | C41: 104.199475
B42: 106.6132892 | C42: 105.436375
B43: 107.4646137 | C43: 107.135225
A44: Q2 | B44: 107.3585816 | C44: 101.264475
B45: 105.7137393 | C45: 95.134175
B46: 106.1080757 | C46: 92.31355
A47: Q3 | B47: 104.2327964 | C47: 92.581075

Sheet 32. ábra
C1: 2008 | G1: 2009 | K1: 2010 | O1: 2011 | S1: 2012 | W1: 2013 | AA1: 2014 | AE1: 2015 | AI1: 2016 | AM1: 2017 | AQ1: 2018 | BC1: 2021
A2: Lakossági fogyasztás (j.t.) | B2: Household consumption (r.h.s.) | C2: 65.06611097 | D2: 65.02916877 | E2: 65.46213484 | F2: 64.76495415 | G2: 65.0265172 | H2: 65.30458899 | I2: 64.91656085 | J2: 65.05293324 | K2: 65.01844364 | L2: 64.48743489 | M2: 64.23139277 | N2: 63.53356389 | O2: 63.07874992 | P2: 63.0550313 | Q2: 62.86071027 | R2: 63.35155724 | S2: 63.57193979 | T2: 63.71028678 | U2: 63.4264422 | V2: 64.08107775 | W2: 63.86027325 | X2: 63.5417015 | Y2: 62.86723682 | Z2: 62.10378887 | AA2: 61.57315207 | AB2: 61.21299105 | AC2: 60.48264852 | AD2: 60.16687197 | AE2: 60.22318934 | AF2: 60.09858209 | AG2: 60.04043479 | AH2: 59.52809181 | AI2: 59.6399925 | AJ2: 59.49466145 | AK2: 59.52890919 | AL2: 59.97540296 | AM2: 59.79720535 | AN2: 59.78151718 | AO2: 59.76017695 | AP2: 59.68927482 | AQ2: 59.70661104 | AR2: 59.54714678 | AS2: 59.36121536
A3: Állóeszköz felhalmozás | B3: Fixed capital formation | C3: 23.15395233 | D3: 22.94454475 | E3: 22.97683549 | F3: 23.15366503 | G3: 23.30396095 | H3: 23.59210482 | I3: 23.43437944 | J3: 22.7046657 | K3: 22.27564456 | L3: 21.67922461 | M3: 21.17425136 | N3: 20.24334683 | O3: 20.21075048 | P3: 19.96774103 | Q3: 19.71022942 | R3: 19.67388517 | S3: 19.55279377 | T3: 19.54483492 | U3: 19.59314077 | V3: 19.27540622 | W3: 19.0115133 | X3: 19.30941227 | Y3: 19.88084141 | Z3: 20.85486641 | AA3: 21.22846281 | AB3: 21.83803832 | AC3: 22.31984238 | AD3: 22.16900225 | AE3: 21.92155723 | AF3: 22.23402071 | AG3: 22.20626693 | AH3: 22.52433011 | AI3: 22.19018962 | AJ3: 21.12677708 | AK3: 20.69285552 | AL3: 19.6219668 | AM3: 20.11719128 | AN3: 21.13816443 | AO3: 21.90752923 | AP3: 22.23466935 | AQ3: 22.6159999 | AR3: 23.30048321 | AS3: 24.44902652
A4: Áruegyenleg | B4: Balance of goods | C4: -0.4413001001 | D4: -0.5250344865 | E4: -0.9631181595 | F4: -0.8796655687 | G4: -0.4618129225 | H4: 0.4797012912 | I4: 1.677547894 | J4: 2.721842114 | K4: 2.955953754 | L4: 2.877554154 | M4: 2.684329422 | N4: 2.54898153 | O4: 3.001227055 | P4: 2.921914498 | Q4: 2.997611336 | R4: 2.805005261 | S4: 2.398109887 | T4: 2.741950195 | U4: 3.138961376 | V4: 2.932605271 | W4: 3.164023714 | X4: 2.922729588 | Y4: 2.999803553 | Z4: 3.28259153 | AA4: 3.358496057 | AB4: 2.760867722 | AC4: 2.300535441 | AD4: 2.018646045 | AE4: 2.4335069 | AF4: 2.843528052 | AG4: 2.886110367 | AH4: 3.661295853 | AI4: 3.53235731 | AJ4: 4.350073123 | AK4: 4.585538967 | AL4: 4.058475084 | AM4: 3.261947436 | AN4: 2.735622418 | AO4: 2.010747509 | AP4: 1.538337194 | AQ4: 1.194862737 | AR4: 0.8342278961 | AS4: -0.04377735109

Sheet 33. ábra
B1: Export | C1: Households' consumption | D1: Fixed capital formation | E1: Government's final cons. | F1: Import, yearly change
B2: Export | C2: Háztartások fogyasztása | D2: Bruttó felhalmozás | E2: Közösségi fogyasztás | F2: Import éves változása
A3: 2010 | B3: 9.607996994 | C3: -0.6406406812 | D3: 1.237654825 | E3: -0.04611352151 | F3: 10.15889762
A4: 2011 | B4: 5.138573722 | C4: 0.1667266384 | D4: -0.9071354947 | E4: 0.02551826538 | F4: 4.423683131
A5: 2012 | B5: -1.39032224 | C5: -0.5539480056 | D5: -1.372779415 | E5: -0.1388395353 | F5: -3.455889196
A6: 2013 | B6: 3.176799911 | C6: 0.03769380034 | D6: 0.9176479351 | E6: 0.4095579654 | F6: 4.541699612
A7: 2014 | B7: 7.089616538 | C7: 0.5704583403 | D7: 2.82768868 | E7: 0.4940806425 | F7: 10.9818442
A8: 2015 | B8: 5.262032591 | C8: 0.7350224394 | D8: -0.3269832636 | E8: 0.1454112285 | F8: 5.815482996
A9: 2016 | B9: 3.804446551 | C9: 0.9297587046 | D9: -0.9206067437 | E9: 0.09620569066 | F9: 3.909804202
A10: 2017 | B10: 3.539966093 | C10: 1.0948199 | D10: 2.903838344 | E10: 0.1828825722 | F10: 7.72150691
A11: 2018 | B11: 5.3438 | C11: 1.154836 | D11: 2.59875 | E11: 0.112896521 | F11: 9.200282521

Sheet 34. ábra
A1: Consumption of dureables/ total consumption | B1: Consumption of durables / import | C1: Growth rate of durable consumption (r.h.s.)
A2: Tartós fogyasztás / összes fogyasztás | B2: Tartós fogyasztás / import | C2: Tartós termékek növekedése (jobb tengely)
A3: 10.05722991 | B3: 9.643090052 | C3: 15 | D3: 2002
A4: 10.05031527 | B4: 9.92560731 | C4: 8.8
A5: 10.33256148 | B5: 10.40398069 | C5: 21.8
A6: 10.36398325 | B6: 10.64783178 | C6: 10.3
A7: 10.68629775 | B7: 11.25226743 | C7: 31.2 | D7: 2003
A8: 10.93113907 | B8: 11.65594501 | C8: 26.5
A9: 11.5609565 | B9: 12.23652026 | C9: 32.6
A10: 11.89054102 | B10: 12.45970701 | C10: 25.3
A11: 11.76293232 | B11: 12.00304231 | C11: -0.1 | D11: 2004
A12: 11.74538022 | B12: 11.59356422 | C12: 8.9
A13: 11.68990544 | B13: 11.44653652 | C13: 4.9
A14: 11.93677248 | B14: 11.56440686 | C14: 12.8
A15: 11.96792024 | B15: 11.71592616 | C15: 10.8 | D15: 2005
A16: 12.0127583 | B16: 11.80491605 | C16: 9.9
A17: 11.75741073 | B17: 11.39861273 | C17: -0.3
A18: 11.4808124 | B18: 10.99235465 | C18: 2.5
A19: 11.41995298 | B19: 10.45358626 | C19: 9.1 | D19: 2006
A20: 11.52992676 | B20: 10.1930254 | C20: 17.7
A21: 11.16610573 | B21: 9.476362372 | C21: -0.9
A22: 11.03179657 | B22: 9.025461106 | C22: 1.7
A23: 10.89654375 | B23: 8.801278928 | C23: 3.1 | D23: 2007
A24: 10.71597013 | B24: 8.687590379 | C24: 0.5
A25: 10.63920616 | B25: 8.649852605 | C25: 2.9
A26: 10.40702124 | B26: 8.487280225 | C26: 0.7
A27: 10.18851348 | B27: 8.149220038 | C27: -0.9 | D27: 2008
A28: 9.973512845 | B28: 7.854645154 | C28: -1.5
A29: 9.680408694 | B29: 7.688588467 | C29: -5.4
A30: 9.27040657 | B30: 7.438066013 | C30: -14.5
A31: 8.987539125 | B31: 7.523154895 | C31: -18.4 | D31: 2009
A32: 8.46865065 | B32: 7.473790849 | C32: -25.6
A33: 7.616479633 | B33: 6.961745412 | C33: -38.3
A34: 6.952955236 | B34: 6.522486625 | C34: -31.2
A35: 6.519197634 | B35: 6.101217224 | C35: -22.7 | D35: 2010
A36: 6.268763164 | B36: 5.654748179 | C36: -14.1
A37: 6.144437485 | B37: 5.280249409 | C37: -3.5
A38: 6.066385242 | B38: 4.983694295 | C38: -2.8
A39: 6.014877142 | B39: 4.723018566 | C39: -0.1 | D39: 2011
A40: 5.894885668 | B40: 4.582915327 | C40: -1.6
A41: 5.833666826 | B41: 4.526100215 | C41: 0.9
A42: 5.864934791 | B42: 4.478350405 | C42: 7.9
A43: 5.844554188 | B43: 4.412724927 | C43: 5.9 | D43: 2012
A44: 5.814529704 | B44: 4.311259203 | C44: 1.5
A45: 5.779549134 | B45: 4.257225722 | C45: -0.8
A46: 5.76515927 | B46: 4.356692221 | C46: 3.6
A47: 5.741765864 | B47: 4.472849496 | C47: 2.2 | D47: 2013
A48: 5.742434631 | B48: 4.582372414 | C48: 4.7
A49: 5.765746021 | B49: 4.64400368 | C49: 4.8
A50: 5.747365004 | B50: 4.65447007 | C50: 2.9
A51: 5.793031949 | B51: 4.617438279 | C51: 4.4 | D51: 2014
A52: 5.821163633 | B52: 4.561646363 | C52: 6.1
A53: 5.85083201 | B53: 4.496121594 | C53: 7.9
A54: 5.931404615 | B54: 4.49832051 | C54: 10.3
A55: 5.909109305 | B55: 4.486148154 | C55: 2.2 | D55: 2015
A56: 5.906008145 | B56: 4.465076868 | C56: 3.4
A57: 5.835455384 | B57: 4.400521338 | C57: -2.4
A58: 5.860434385 | B58: 4.412944015 | C58: 4.3
A59: 5.960846775 | B59: 4.489703394 | C59: 9.8 | D59: 2016
A60: 6.098249216 | B60: 4.611132428 | C60: 14.3
A61: 6.1732271 | B61: 4.699117962 | C61: 9.3
A62: 6.271627025 | B62: 4.809962376 | C62: 12.5
A63: 6.292402742 | B63: 4.732633359 | C63: 9.8 | D63: 2017
A64: 6.303098878 | B64: 4.721964955 | C64: 6.8
A65: 6.311561175 | B65: 4.713919069 | C65: 8.7
A66: 6.333307818 | B66: 4.713064279 | C66: 8.9
A67: 6.406314738 | B67: 4.778998821 | C67: 13.4 | D67: 2018
A68: 6.462579159 | B68: 4.76519231 | C68: 13.8

Sheet 35. ábra
F1: Hungary | AE1: Czechia | BD1: Poland | CC1: Slovakia | DB1: Romania
F2: 2013 | J2: 2014 | N2: 2015 | R2: 2016 | V2: 2017 | Z2: 2018 | AE2: 2013 | AI2: 2014 | AM2: 2015 | AQ2: 2016 | AU2: 2017 | AY2: 2018 | BD2: 2013 | BH2: 2014 | BL2: 2015 | BP2: 2016 | BT2: 2017 | BX2: 2018 | CC2: 2013 | CG2: 2014 | CK2: 2015 | CO2: 2016 | CS2: 2017 | CW2: 2018 | DB2: 2013 | DF2: 2014 | DJ2: 2015 | DN2: 2016 | DR2: 2017 | DV2: 2018
F3: Magyarország | AE3: Csehország | BD3: Lengyelország | CC3: Szlovákia | DB3: Románia
F4: 2013 | J4: 2014 | N4: 2015 | R4: 2016 | V4: 2017 | Z4: 2018 | AE4: 2013 | AI4: 2014 | AM4: 2015 | AQ4: 2016 | AU4: 2017 | AY4: 2018 | BD4: 2013 | BH4: 2014 | BL4: 2015 | BP4: 2016 | BT4: 2017 | BX4: 2018 | CC4: 2013 | CG4: 2014 | CK4: 2015 | CO4: 2016 | CS4: 2017 | CW4: 2018 | DB4: 2013 | DF4: 2014 | DJ4: 2015 | DN4: 2016 | DR4: 2017 | DV4: 2018
D5: Current account | E5: Folyó fizetési mérleg | F5: 2.636538441 | G5: 2.820623215 | H5: 3.33865494 | I5: 3.82193935 | J5: 3.579953737 | K5: 2.686339332 | L5: 2.089452241 | M5: 1.503768765 | N5: 2.184351568 | O5: 2.692868898 | P5: 2.614247312 | Q5: 2.818897524 | R5: 3.231838392 | S5: 4.657311596 | T5: 5.761489038 | U5: 6.207607698 | V5: 5.182687848 | W5: 4.671329338 | X5: 3.585578504 | Y5: 3.18290503 | Z5: 3.036446802 | AA5: 2.454360672 | AB5: 1.782760892 | AE5: -1.800496301 | AF5: -1.777356798 | AG5: -1.253182992 | AH5: -0.5259736759 | AI5: 0.9628041143 | AJ5: 0.1872207908 | AK5: 0.01496641192 | AL5: 0.1888287193 | AM5: 0.4356389277 | AN5: 0.1822278138 | AO5: -0.05975867666 | AP5: 0.2186069916 | AQ5: 0.8234024818 | AR5: 1.615318323 | AS5: 2.218222851 | AT5: 1.55595384 | AU5: 1.083719902 | AV5: 1.101718254 | AW5: 0.7439192697 | AX5: 1.016876206 | AY5: 0.2737416697 | AZ5: 0.58438999 | BD5: -2.981397052 | BE5: -2.292621132 | BF5: -1.558357007 | BG5: -1.273535586 | BH5: -1.388358622 | BI5: -2.052873688 | BJ5: -2.364956104 | BK5: -2.07547831 | BL5: -1.374433269 | BM5: -0.5802851475 | BN5: -0.6386020104 | BO5: -0.5603594153 | BP5: -0.7315136957 | BQ5: -0.4966125331 | BR5: -0.6267924964 | BS5: -0.5259466464 | BT5: 0.04781874042 | BU5: -0.3714811149 | BV5: 0.3260042631 | BW5: 0.1515786979 | BX5: -0.1584601736 | BY5: -0.01942696883 | CC5: 1.615870435 | CD5: 2.299598625 | CE5: 2.627256242 | CF5: 1.85938212 | CG5: 1.513566016 | CH5: 0.865927898 | CI5: 0.8887982282 | CJ5: 1.143941604 | CK5: 0.8149264333 | CL5: -0.2147636758 | CM5: -1.594099026 | CN5: -1.763198321 | CO5: -2.320308234 | CP5: -1.771390416 | CQ5: -1.360107567 | CR5: -2.164280257 | CS5: -2.034198869 | CT5: -2.483146325 | CU5: -2.58693783 | CV5: -1.988228539 | CW5: -2.004036875 | CX5: -1.809454948 | DB5: -3.963868344 | DC5: -2.172271103 | DD5: -1.324969573 | DE5: -1.073365679 | DF5: -0.9670932699 | DG5: -1.642308364 | DH5: -1.380948252 | DI5: -0.6664776421 | DJ5: 0.2340103781 | DK5: -0.2730514993 | DL5: -0.5986977926 | DM5: -1.233304845 | DN5: -2.191465321 | DO5: -2.366594724 | DP5: -2.235561043 | DQ5: -2.045989859 | DR5: -2.352782597 | DS5: -2.716556334 | DT5: -3.014854863 | DU5: -3.355298139 | DV5: -3.496006735 | DW5: -3.363178044
D6: Balance of goods | E6: Áruegyenleg | F6: 3.149836462 | G6: 2.911558474 | H6: 2.973942892 | I6: 3.270938587 | J6: 3.342381613 | K6: 2.760689252 | L6: 2.298316196 | M6: 2.013170615 | N6: 2.427172989 | O6: 2.836417849 | P6: 2.878244776 | Q6: 3.652581201 | R6: 3.51491886 | S6: 4.346454335 | T6: 4.580080237 | U6: 4.058926652 | V6: 3.251952431 | W6: 2.731644186 | X6: 2.002721613 | Y6: 1.535315787 | Z6: 1.192933951 | AA6: 0.8183377482 | AB6: -0.03513351422 | AE6: 3.174245723 | AF6: 3.744091735 | AG6: 3.883092477 | AH6: 4.090279253 | AI6: 4.573861878 | AJ6: 4.625484911 | AK6: 4.952539205 | AL6: 5.103673861 | AM6: 5.083713046 | AN6: 4.55779631 | AO6: 4.156891047 | AP6: 4.077993563 | AQ6: 4.236644097 | AR6: 4.923615057 | AS6: 5.132736284 | AT6: 5.152530764 | AU6: 5.220105527 | AV6: 4.981740132 | AW6: 4.847312534 | AX6: 4.740020769 | AY6: 4.60619495 | AZ6: 4.556129848 | BD6: -1.626300095 | BE6: -0.9168708189 | BF6: -0.5409926105 | BG6: -0.08477572805 | BH6: -0.01521145046 | BI6: -0.3563773833 | BJ6: -0.5173127429 | BK6: -0.7920443202 | BL6: -0.2195166485 | BM6: 0.0586564672 | BN6: -0.01817496019 | BO6: 0.514955672 | BP6: 0.4266930289 | BQ6: 0.7557984096 | BR6: 0.8234797892 | BS6: 0.6887156162 | BT6: 0.5650046249 | BU6: 0.3396276301 | BV6: 0.5427525668 | BW6: 0.3062482104 | BX6: -0.08055268759 | BY6: -0.2451953574 | CC6: 3.862621584 | CD6: 4.414031228 | CE6: 4.53362644 | CF6: 3.920059108 | CG6: 3.777207161 | CH6: 3.325926084 | CI6: 3.559961428 | CJ6: 3.624365536 | CK6: 3.465885647 | CL6: 2.831281708 | CM6: 1.802064008 | CN6: 1.329718466 | CO6: 1.136120555 | CP6: 1.575193295 | CQ6: 1.970076392 | CR6: 2.017399019 | CS6: 1.674403608 | CT6: 1.166862553 | CU6: 0.6331098945 | CV6: 0.8119060731 | CW6: 0.7104018061 | CX6: 0.8381907963 | DB6: -6.340259557 | DC6: -5.2471607 | DD6: -4.633243585 | DE6: -4.047845578 | DF6: -4.041966322 | DG6: -4.191739382 | DH6: -3.924036082 | DI6: -4.339906918 | DJ6: -4.351666647 | DK6: -4.365265261 | DL6: -4.65548674 | DM6: -4.856800644 | DN6: -5.198746497 | DO6: -5.462206508 | DP6: -5.526875099 | DQ6: -5.41145972 | DR6: -5.450707659 | DS6: -5.766785097 | DT6: -5.938935784 | DU6: -6.344415544 | DV6: -6.512527165 | DW6: -6.514874385
D7: Balance of services | E7: Szolgáltatásegyenleg | F7: 3.874345439 | G7: 3.787342181 | H7: 3.918782405 | I7: 3.692469035 | J7: 3.694950887 | K7: 3.878806591 | L7: 4.041851417 | M7: 4.36419033 | N7: 4.483900091 | O7: 4.567886686 | P7: 4.718671262 | Q7: 4.441781097 | R7: 4.686586467 | S7: 4.933256068 | T7: 5.325428047 | U7: 5.948954357 | V7: 5.943372326 | W7: 5.974537706 | X7: 5.817637562 | Y7: 5.928878377 | Z7: 6.093790595 | AA7: 6.124377898 | AB7: 6.122509788 | AE7: 1.871048958 | AF7: 1.802511032 | AG7: 1.710728208 | AH7: 1.720417152 | AI7: 1.645827179 | AJ7: 1.553440382 | AK7: 1.493635118 | AL7: 1.291287131 | AM7: 1.260211959 | AN7: 1.331270268 | AO7: 1.474107903 | AP7: 1.697586541 | AQ7: 1.812233158 | AR7: 1.941329502 | AS7: 2.107954464 | AT7: 2.256932534 | AU7: 2.300386438 | AV7: 2.416583283 | AW7: 2.433583441 | AX7: 2.415523879 | AY7: 2.484747665 | AZ7: 2.510145143 | BD7: 1.629796362 | BE7: 1.774411866 | BF7: 1.837634007 | BG7: 1.936037511 | BH7: 2.005300914 | BI7: 2.028182128 | BJ7: 2.096991675 | BK7: 2.205790382 | BL7: 2.26786434 | BM7: 2.36650064 | BN7: 2.489639092 | BO7: 2.538539102 | BP7: 2.694096644 | BQ7: 2.860269425 | BR7: 3.043897316 | BS7: 3.279259378 | BT7: 3.426647992 | BU7: 3.55798011 | BV7: 3.715826925 | BW7: 3.854202842 | BX7: 4.014618308 | BY7: 4.171770142 | CC7: 0.6470325747 | CD7: 0.6689122585 | CE7: 0.782145771 | CF7: 0.6522870494 | CG7: 0.540118488 | CH7: 0.4480363231 | CI7: 0.2630630822 | CJ7: 0.2309174401 | CK7: 0.289226414 | CL7: 0.2524347003 | CM7: 0.255148159 | CN7: 0.1987416409 | CO7: 0.265375817 | CP7: 0.3775421693 | CQ7: 0.4792346151 | CR7: 0.5779135964 | CS7: 0.5812171241 | CT7: 0.6950442164 | CU7: 0.902381347 | CV7: 1.035356744 | CW7: 1.050447006 | CX7: 1.043797697 | DB7: 2.214733967 | DC7: 2.670383604 | DD7: 3.048689305 | DE7: 3.271879169 | DF7: 3.490170533 | DG7: 3.698589557 | DH7: 3.713495756 | DI7: 3.89614184 | DJ7: 3.897802638 | DK7: 4.002727927 | DL7: 4.189232968 | DM7: 4.236093349 | DN7: 4.410452289 | DO7: 4.471991146 | DP7: 4.512792613 | DQ7: 4.518698193 | DR7: 4.466208756 | DS7: 4.411321781 | DT7: 4.366232093 | DU7: 4.225543464 | DV7: 4.125927332 | DW7: 3.990247083

Sheet 36. ábra
C2: 2013Q1 | D2: 2013Q2 | E2: 2013Q3 | F2: 2013Q4 | G2: 2014Q1 | H2: 2014Q2 | I2: 2014Q3 | J2: 2014Q4 | K2: 2015Q1 | L2: 2015Q2 | M2: 2015Q3 | N2: 2015Q4 | O2: 2016Q1 | P2: 2016Q2 | Q2: 2016Q3 | R2: 2016Q4 | S2: 2017Q1 | T2: 2017Q2 | U2: 2017Q3 | V2: 2017Q4 | W2: 2018Q1 | X2: 2018Q2
A3: Csehország | B3: Czechia | C3: -0.3 | D3: 0.7 | E3: 1 | F3: 0.5 | G3: 0.9 | H3: 1.4 | I3: 2.2 | J3: 2.5 | K3: 3.8 | L3: 3.7 | M3: 3.3 | N3: 4.4 | O3: 3.7 | P3: 4 | Q3: 3.4 | R3: 3.2 | S3: 4 | T3: 4.1 | U3: 4.4 | V3: 4.5 | W3: 4.1 | X3: 3.8
A4: Magyarország | B4: Hungary | C4: -0.5 | D4: 0.7 | E4: -0.5 | F4: 1 | G4: 1.4 | H4: 3.7 | I4: 1.9 | J4: 4 | K4: 4.1 | L4: 3.7 | M4: 3.4 | N4: 4.3 | O4: 4 | P4: 4.1 | Q4: 3.6 | R4: 4.1 | S4: 3.8 | T4: 4.7 | U4: 4.6 | V4: 5.5 | W4: 5.9 | X4: 5.4
A5: Lengyelország | B5: Poland | C5: 0.1 | D5: -0.3 | E5: 0.9 | F5: 0.6 | G5: 2 | H5: 2.9 | I5: 2.3 | J5: 3 | K5: 3.7 | L5: 3.5 | M5: 2.8 | N5: 2.1 | O5: 3.2 | P5: 2.7 | Q5: 4.8 | R5: 4.7 | S5: 4.7 | T5: 4.8 | U5: 4.8 | V5: 4.8 | W5: 4.2 | X5: 4.7
A6: Románia | B6: Romania | C6: -0.7 | D6: 1.2 | E6: 4.3 | F6: 2.7 | G6: 4.1 | H6: 4 | I6: 4 | J6: 4.6 | K6: 4.7 | L6: 5.3 | M6: 6.1 | N6: 7.1 | O6: 9.7 | P6: 10.9 | Q6: 7.2 | R6: 5.1 | S6: 7.3 | T6: 7.3 | U6: 13.6 | V6: 11.7 | W6: 5.9 | X6: 5.1
A7: Szlovákia | B7: Slovakia | C7: -1.7 | D7: 0.2 | E7: -1 | F7: -0.7 | G7: 1.9 | H7: 1.3 | I7: 0.8 | J7: 1.4 | K7: 1.4 | L7: 2.2 | M7: 2.7 | N7: 2.8 | O7: 2.9 | P7: 3.5 | Q7: 2 | R7: 3.2 | S7: 3.2 | T7: 3.4 | U7: 4 | V7: 3.4 | W7: 3.5 | X7: 2
C10: 2013Q1 | D10: 2013Q2 | E10: 2013Q3 | F10: 2013Q4 | G10: 2014Q1 | H10: 2014Q2 | I10: 2014Q3 | J10: 2014Q4 | K10: 2015Q1 | L10: 2015Q2 | M10: 2015Q3 | N10: 2015Q4 | O10: 2016Q1 | P10: 2016Q2 | Q10: 2016Q3 | R10: 2016Q4 | S10: 2017Q1 | T10: 2017Q2 | U10: 2017Q3 | V10: 2017Q4 | W10: 2018Q1 | X10: 2018Q2
A11: Csehország | B11: Czechia | C11: -5.1 | D11: -5.6 | E11: -0.7 | F11: 0.9 | G11: 3.9 | H11: 4.7 | I11: 4.8 | J11: 2.5 | K11: 6.8 | L11: 11.4 | M11: 11.2 | N11: 10.9 | O11: 0.4 | P11: -3.2 | Q11: -4.2 | R11: -4.7 | S11: 0 | T11: 3.6 | U11: 4.6 | V11: 4.6 | W11: 8.9 | X11: 8.8
A12: Magyarország | B12: Hungary | C12: -5.1 | D12: 9.1 | E12: 12.9 | F12: 16.4 | G12: 20.4 | H12: 19.4 | I12: 13.8 | J12: 2.4 | K12: -2.9 | L12: 7.9 | M12: 1.2 | N12: 9.4 | O12: -6.2 | P12: -15.7 | Q12: -5.9 | R12: -16.1 | S12: 20 | T12: 24.4 | U12: 18.8 | V12: 11.6 | W12: 17.1 | X12: 15
A13: Lengyelország | B13: Poland | C13: -3.7 | D13: -3.1 | E13: 0.6 | F13: 0.2 | G13: 12.7 | H13: 9.4 | I13: 9.4 | J13: 9.7 | K13: 11.8 | L13: 6 | M13: 5.1 | N13: 4.6 | O13: -10.1 | P13: -4.6 | Q13: -7.7 | R13: -9.7 | S13: 1 | T13: 1.1 | U13: 3.5 | V13: 5.7 | W13: 8.1 | X13: 4.5
A14: Románia | B14: Romania | C14: -9.9 | D14: -4.5 | E14: -5.9 | F14: -4 | G14: 3.4 | H14: 2.1 | I14: 3.4 | J14: 3.9 | K14: 7.1 | L14: 6.3 | M14: 0.7 | N14: 16.3 | O14: 2.3 | P14: 6.7 | Q14: -0.2 | R14: -12.1 | S14: -0.9 | T14: -0.4 | U14: 6.2 | V14: 10.1 | W14: 6.3 | X14: -4.8
A15: Szlovákia | B15: Slovakia | C15: -5.2 | D15: -4 | E15: -1.8 | F15: 6 | G15: 1 | H15: 3.9 | I15: 4.4 | J15: 2.4 | K15: 12.7 | L15: 20 | M15: 25.6 | N15: 26.1 | O15: 3.9 | P15: -4.4 | Q15: -13.7 | R15: -17.2 | S15: -0.9 | T15: -3.5 | U15: 14.9 | V15: 2.2 | W15: 8.1 | X15: 18.5

Sheet 37. ábra
C1: Hungary | AC1: Csehország | AU1: Czechia | BW1: Poland | CY1: Slovakia | EA1: Romania
G2: 2013 | K2: 2014 | O2: 2015 | S2: 2016 | W2: 2017 | AA2: 2018 | AC2: 2006. I. | AD2: II. | AE2: III. | AF2: IV. | AG2: 2007. I. | AH2: II. | AI2: III. | AJ2: IV. | AK2: 2008. I. | AL2: II. | AM2: III. | AN2: IV. | AO2: 2009. I. | AP2: II. | AQ2: III. | AR2: IV. | AY2: 2013 | BC2: 2014 | BG2: 2015 | BK2: 2016 | BO2: 2017 | BS2: 2018 | CA2: 2013 | CE2: 2014 | CI2: 2015 | CM2: 2016 | CQ2: 2017 | CU2: 2018 | DC2: 2013 | DG2: 2014 | DK2: 2015 | DO2: 2016 | DS2: 2017 | DW2: 2018 | EE2: 2013 | EI2: 2014 | EM2: 2015 | EQ2: 2016 | EU2: 2017 | EY2: 2018
C3: Magyarország | AC3: Csehország | AU3: Csehország | BW3: Lengyelország | CY3: Szlovákia | EA3: Románia
G4: 2013 | K4: 2014 | O4: 2015 | S4: 2016 | W4: 2017 | AA4: 2018 | AC4: 2006. I. | AD4: II. | AE4: III. | AF4: IV. | AG4: 2007. I. | AH4: II. | AI4: III. | AJ4: IV. | AK4: 2008. I. | AL4: II. | AM4: III. | AN4: IV. | AO4: 2009. I. | AP4: II. | AQ4: III. | AR4: IV. | AY4: 2013 | BC4: 2014 | BG4: 2015 | BK4: 2016 | BO4: 2017 | BS4: 2018 | CA4: 2013 | CE4: 2014 | CI4: 2015 | CM4: 2016 | CQ4: 2017 | CU4: 2018 | DC4: 2013 | DG4: 2014 | DK4: 2015 | DO4: 2016 | DS4: 2017 | DW4: 2018 | EE4: 2013 | EI4: 2014 | EM4: 2015 | EQ4: 2016 | EU4: 2017 | EY4: 2018
A5: Áruegyenleg (jobb tengely) | B5: Balance of goods (r.h.s.) | C5: 2.452434081 | D5: 2.775305652 | E5: 3.172510694 | F5: 2.926660908 | G5: 3.150914087 | H5: 2.913042196 | I5: 2.975313508 | J5: 3.277233971 | K5: 3.34834718 | L5: 2.763739446 | M5: 2.298269585 | N5: 2.015480375 | O5: 2.429069263 | P5: 2.843178293 | Q5: 2.885340253 | R5: 3.659004021 | S5: 3.525943428 | T5: 4.348946537 | U5: 4.58369566 | V5: 4.052553648 | W5: 3.254166516 | X5: 2.734275297 | Y5: 2.006822006 | Z5: 1.537216111 | AA5: 1.19513835 | AB5: 0.8287692998 | AC5: 0.6790569127 | AD5: 0.5506938502 | AE5: 0.6406146704 | AF5: 0.6883293659 | AG5: 0.6790965139 | AH5: 0.6661343518 | AI5: 0.3762318269 | AJ5: 0.2603670128 | AK5: 0.0309925576 | AL5: 0.2050098919 | AM5: 0.3457365562 | AN5: -0.1068603741 | AO5: 0.09989789893 | AP5: 0.3911620887 | AQ5: 0.7192409271 | AR5: 1.640269441 | AU5: 2.204671525 | AV5: 2.389212534 | AW5: 2.995905938 | AX5: 3.049526541 | AY5: 3.174245723 | AZ5: 3.744091735 | BA5: 3.883092477 | BB5: 4.090279253 | BC5: 4.573861878 | BD5: 4.625484911 | BE5: 4.952539205 | BF5: 5.103673861 | BG5: 5.083713046 | BH5: 4.55779631 | BI5: 4.156891047 | BJ5: 4.077993563 | BK5: 4.236644097 | BL5: 4.923615057 | BM5: 5.132736284 | BN5: 5.152530764 | BO5: 5.220105527 | BP5: 4.981740132 | BQ5: 4.847312534 | BR5: 4.740020769 | BS5: 4.60619495 | BT5: 4.556287976 | BW5: -3.591791038 | BX5: -3.112428839 | BY5: -2.533277608 | BZ5: -2.08632992 | CA5: -1.626300095 | CB5: -0.9168708189 | CC5: -0.5409926105 | CD5: -0.08477572805 | CE5: -0.01521145046 | CF5: -0.3563773833 | CG5: -0.5173127429 | CH5: -0.7920443202 | CI5: -0.2195166485 | CJ5: 0.0586564672 | CK5: -0.01817496019 | CL5: 0.514955672 | CM5: 0.4266930289 | CN5: 0.7557984096 | CO5: 0.8234797892 | CP5: 0.6887156162 | CQ5: 0.5650046249 | CR5: 0.3396276301 | CS5: 0.5427525668 | CT5: 0.3062482104 | CU5: -0.08055268759 | CV5: -0.2451953574 | CY5: 0.5546028387 | CZ5: 2.069816614 | DA5: 2.767345462 | DB5: 3.446601608 | DC5: 3.862621584 | DD5: 4.414031228 | DE5: 4.53362644 | DF5: 3.920059108 | DG5: 3.777207161 | DH5: 3.325926084 | DI5: 3.559961428 | DJ5: 3.624365536 | DK5: 3.462801917 | DL5: 2.826630893 | DM5: 1.798075656 | DN5: 1.325655625 | DO5: 1.133274258 | DP5: 1.57152356 | DQ5: 1.966329032 | DR5: 2.015608284 | DS5: 1.674293188 | DT5: 1.167905097 | DU5: 0.6343785623 | DV5: 0.8131911388 | DW5: 0.711471829 | DX5: 0.8389401778 | EA5: -7.387663403 | EB5: -7.272418707 | EC5: -7.358466231 | ED5: -6.96988881 | EE5: -6.364810915 | EF5: -5.261693958 | EG5: -4.635150554 | EH5: -4.047845578 | EI5: -4.041966322 | EJ5: -4.191739382 | EK5: -3.924036082 | EL5: -4.339906918 | EM5: -4.351666647 | EN5: -4.365265261 | EO5: -4.65548674 | EP5: -4.856800644 | EQ5: -5.198746497 | ER5: -5.462206508 | ES5: -5.526875099 | ET5: -5.41145972 | EU5: -5.450707659 | EV5: -5.766785097 | EW5: -5.938935784 | EX5: -6.344415544 | EY5: -6.512527165 | EZ5: -6.514874385
A6: Áruexport | B6: Export of goods | C6: 0.1206909663 | D6: -1.442489049 | E6: -1.61109254 | F6: -1.62237054 | G6: -1.897752695 | H6: -1.643702585 | I6: -0.4861302743 | J6: 1.172886695 | K6: 2.810090071 | L6: 3.832609436 | M6: 3.884125118 | N6: 3.351224825 | O6: 3.464484776 | P6: 4.121201993 | Q6: 4.241009747 | R6: 4.920069599 | S6: 3.526319459 | T6: 3.524123745 | U6: 2.144165527 | V6: 1.773565149 | W6: 2.966838339 | X6: 3.935122211 | Y6: 5.314626116 | Z6: 4.333245155 | AA6: 3.741107396 | AB6: 4.59234968 | AU6: 10.16672627 | AV6: 6.880063406 | AW6: 5.385656154 | AX6: 5.258506586 | AY6: 0.9552600474 | AZ6: -0.1387243426 | BA6: -0.664213936 | BB6: -1.103458455 | BC6: 3.273659439 | BD6: 5.303731657 | BE6: 6.390120095 | BF6: 6.993408881 | BG6: 5.644988053 | BH6: 5.12684542 | BI6: 4.389829312 | BJ6: 4.685671429 | BK6: 4.444197614 | BL6: 4.575225288 | BM6: 3.546864831 | BN6: 2.128257886 | BO6: 3.554401363 | BP6: 4.001780487 | BQ6: 6.237324709 | BR6: 8.735346272 | BS6: 7.849863554 | BT6: 7.530423405 | BW6: 8.585939048 | BX6: 6.025845205 | BY6: 5.536063424 | BZ6: 6.499269367 | CA6: 5.820152318 | CB6: 6.680204141 | CC6: 6.778608185 | CD6: 5.734553536 | CE6: 7.070848541 | CF6: 7.146970149 | CG6: 6.43149518 | CH6: 6.400112666 | CI6: 6.804576788 | CJ6: 7.514976082 | CK6: 7.784245862 | CL6: 8.505172183 | CM6: 6.281999127 | CN6: 5.028742805 | CO6: 4.205208929 | CP6: 3.056571463 | CQ6: 6.583505219 | CR6: 8.451147868 | CS6: 11.34223409 | CT6: 13.8379357 | CU6: 11.13296976 | CV6: 9.428823999 | CY6: 11.5449166 | CZ6: 7.512790545 | DA6: 2.323941495 | DB6: -0.6174224855 | DC6: 1.172394283 | DD6: 2.523631841 | DE6: 6.691943556 | DF6: 10.13308376 | DG6: 11.31613721 | DH6: 10.41478121 | DI6: 8.751124484 | DJ6: 6.712444553 | DK6: 5.726092746 | DL6: 6.624709659 | DM6: 5.949560376 | DN6: 4.848909252 | DO6: 4.157800897 | DP6: 3.531004748 | DQ6: 3.790392942 | DR6: 6.218413133 | DS6: 8.492148563 | DT6: 9.163748709 | DU6: 9.855838162 | DV6: 9.574902472 | DW6: 8.970222679 | DX6: 9.532024151 | EA6: 12.89685827 | EB6: 11.30919393 | EC6: 10.82375461 | ED6: 10.03361793 | EE6: 8.411494265 | EF6: 6.810870095 | EG6: 4.310284976 | EH6: 3.742422152 | EI6: 4.550129171 | EJ6: 2.94926354 | EK6: 2.320148703 | EL6: 0.2735125452 | EM6: -0.9277665237 | EN6: -0.1439115443 | EO6: 1.052695042 | EP6: 3.306754446 | EQ6: 3.447797754 | ER6: 4.929851014 | ES6: 4.265043443 | ET6: 3.887678963 | EU6: 6.123643714 | EV6: 4.432453994 | EW6: 5.745482143 | EX6: 6.424889598 | EY6: 4.697788798 | EZ6: 6.886992555
A7: Áruimport | B7: Import of goods | C7: 0.9910575302 | D7: -0.8735875182 | E7: -1.935520408 | F7: -2.357760768 | G7: -2.625792607 | H7: -1.507426817 | I7: -0.6717097116 | J7: 0.9684046664 | K7: 2.216515847 | L7: 4.245577774 | M7: 5.472790671 | N7: 5.45429675 | O7: 4.010420869 | P7: 3.329749759 | Q7: 2.951452573 | R7: 3.062519395 | S7: 2.489626556 | T7: 1.323886036 | U7: 0.7424085599 | V7: 0.9445356167 | W7: 4.633762177 | X7: 6.811768049 | Y7: 8.535888946 | Z7: 6.93009336 | AA7: 6.048439483 | AB7: 6.397698113 | AU7: 8.034281369 | AV7: 4.894210512 | AW7: 2.973900646 | AX7: 3.503129672 | AY7: -0.5211583753 | AZ7: -2.266725106 | BA7: -2.056070776 | BB7: -2.694312923 | BC7: 1.30581358 | BD7: 4.314163321 | BE7: 5.166295622 | BF7: 5.86243185 | BG7: 5.13389798 | BH7: 5.357451006 | BI7: 5.591094987 | BJ7: 6.147613021 | BK7: 5.586165475 | BL7: 3.780962453 | BM7: 1.795079094 | BN7: 0.2251127174 | BO7: 1.916480027 | BP7: 3.881679476 | BQ7: 6.728667167 | BR7: 9.455068484 | BS7: 8.692152593 | BT7: 7.984017212 | BW7: 9.404443918 | BX7: 4.367764678 | BY7: 2.406626079 | BZ7: 2.365538413 | CA7: 0.404162823 | CB7: 0.6336851085 | CC7: 1.234580475 | CD7: 0.1957685828 | CE7: 2.51558008 | CF7: 5.500686817 | CG7: 6.332566729 | CH7: 8.3397068 | CI7: 7.360108914 | CJ7: 6.367694673 | CK7: 6.395069033 | CL7: 4.956544081 | CM7: 4.568866856 | CN7: 3.244987913 | CO7: 2.078910503 | CP7: 2.673176553 | CQ7: 6.294089382 | CR7: 9.610392641 | CS7: 12.1798818 | CT7: 14.93399496 | CU7: 12.84165793 | CV7: 10.9339951 | CY7: 11.35325471 | CZ7: 7.411345759 | DA7: 2.949624759 | DB7: -0.7280606542 | DC7: -1.461935923 | DD7: -2.840831506 | DE7: -1.114636841 | DF7: 1.212492645 | DG7: 3.845211054 | DH7: 6.746224483 | DI7: 6.295119132 | DJ7: 7.375093544 | DK7: 6.678036383 | DL7: 7.00895675 | DM7: 8.143694199 | DN7: 6.596309529 | DO7: 6.846364765 | DP7: 7.208666105 | DQ7: 6.695279731 | DR7: 7.937099379 | DS7: 9.153570825 | DT7: 9.838436651 | DU7: 11.01669559 | DV7: 12.46547906 | DW7: 12.18019055 | DX7: 11.69927691 | EA7: 11.92181228 | EB7: 6.826829273 | EC7: 6.202681748 | ED7: 5.381371655 | EE7: 4.098012004 | EF7: 3.853563514 | EG7: 2.109877705 | EH7: 3.20814803 | EI7: 4.783168013 | EJ7: 4.401649909 | EK7: 3.58187536 | EL7: 0.5384620556 | EM7: -0.7044033887 | EN7: 0.3553639184 | EO7: 3.224507383 | EP7: 6.315442838 | EQ7: 6.514569085 | ER7: 6.626175561 | ES7: 4.070210815 | ET7: 3.027296612 | EU7: 5.479019744 | EV7: 4.975030884 | EW7: 7.515361321 | EX7: 8.030924799 | EY7: 5.917517344 | EZ7: 7.325018342
